Workbook

Sheet Home
D2: Inspection and Replacement Obligation Volume Model | J2: Overall check: | K2: =IF(COUNTA(Check_Status_List)=COUNTIF(Check_Status_List,"Ok"),"Ok","Check") -> Ok
D4: =RIGHT(CELL("filename",D3),LEN(CELL("filename",D3))-FIND("]",CELL("filename",D3))) -> Home | E4: =RIGHT(CELL("filename",E3),LEN(CELL("filename",E3))-FIND("]",CELL("filename",E3))) -> Home | F4: =RIGHT(CELL("filename",F3),LEN(CELL("filename",F3))-FIND("]",CELL("filename",F3))) -> Home | G4: =RIGHT(CELL("filename",G3),LEN(CELL("filename",G3))-FIND("]",CELL("filename",G3))) -> Home | H4: =RIGHT(CELL("filename",H3),LEN(CELL("filename",H3))-FIND("]",CELL("filename",H3))) -> Home
E6: Copyright Jemena Limited. Jemena is not liable for any loss caused by reliance on this document.
B8: Project Details
C10: Project Name: | E10: ACS Metering - Revised Proposal
C12: Project No: | E12: 1
C14: Start Year: | E14: 2024
C16: Asset Type: | E16: JEN | I16: Description of each asset type ---> | L16: Click Link
C18: Number of Options: | E18: 3 | I18: <--- select from drop-down list
C20: Cashflow Type: | E20: Annual
C22: Dollar Unit: | E22: Millions | I22: <--- select from drop-down list
J25: <--- Click button after completing the above Project Details section
B28: Table Of Contents & Checks
C30: Worksheet | E30: Ref | F30: Check | G30: Description
C32: =D4 -> Home | E32: 1 | F32: Ok | G32: Outlines project details, model checks and model structure
C33: ='Input|Installations'!$D$2 -> Input|Installations | E33: =E32+1 -> 2 | F33: ='Input|Installations'!$N$1 -> Ok | G33: Input for meter installations with reallocation of meters installed from calendar years into financial years
C34: ='Input|RP_Vol'!$D$2 -> Input|RP_Vol | E34: 3 | F34: ='Input|RP_Vol'!$J$1 -> Ok | G34: Outlines the replacement and inspection profiles by meter installation year under the Revised Proposal Scenario
C35: ='Input|AER_DD_Vol'!$D$2 -> Input|AER_DD_Vol | E35: 4 | F35: ='Input|AER_DD_Vol'!$J$1 -> Ok | G35: Outlines the replacement and inspection profiles by meter installation year under the AER Draft Decision Scenario
C36: ='Input|IP_Vol'!$D$2 -> Input|IP_Vol | E36: 5 | F36: ='Input|IP_Vol'!$J$1 -> Ok | G36: Outlines the replacement and inspection profiles by meter installation year under the Initial Proposal Scenario
C37: ='Output|Charts'!$D$2 -> Output|Charts | E37: 6 | F37: ='Output|Charts'!$N$1 -> Ok | G37: Presents charts associated with the replacement and installation profiles by scenario
C38: =Checklist!D2 -> Checklist | E38: 7 | F38: =Checklist!$I$1 -> Ok | G38: Lists all checks in the model for users to navigate to the error cells
C39: =Lookup!D4 -> Lookup | E39: 8 | F39: =Lookup!$K$4 -> Ok | G39: Provides all lookup tables (name ranges) list
B41: Model Key Legend
C43: Model key | F43: Description
C45: Input | E45: ---------> | F45: Input assumption (hardcode)
C46: Internal link | E46: ---------> | F46: Internal link (different sheet within the model)
C47: Drop-down | E47: ---------> | F47: Choose from a drop-down list
C48: Calculation | E48: ---------> | F48: Calculation (general formula driven)
B50: End

Sheet Input|Installations
D1: =Model_Name -> Inspection and Replacement Obligation Volume Model | M1: Section Check: | N1: =IF(COUNTA($A$7:$A$42)=COUNTIF($A$7:$A$42,0),"Ok","Check") -> Ok | S1: Legend: | T1: Input | U1: Internal | V1: Select | W1: Calculation
D2: =RIGHT(CELL("filename",D1),LEN(CELL("filename",D1))-FIND("]",CELL("filename",D1))) -> Input|Installations
B5: Copyright Jemena Limited. All rights reserved. Jemena is not liable for any loss caused by reliance on this document.
B7: Input | Meter Population
C9: Input | Meter Installation by Year
D11: Volumes | E11: Unit | F11: Installation (Financial Year) | H11: Installation Volume (#, CY) | I11: Installation Volume (#, CY (1 Jan to 30 June) | J11: Installation Volume (#, CY (1 July to 31 Dec) | L11: Installation Volume (#, FY) | N11: Applied Installation Volume (#, FY) | O11: Comment
D13: =F13&" Installations" -> 2010 Installations | E13: # Meters | F13: 2010 | H13: 35689 | I13: =H13*$H$32 -> 17844.5 | J13: =H13*$H$33 -> 17844.5 | N13: =H13*(2/3)+4592 -> 28384.66667 | O13: Note: 2/3 of 2010 CY installations plus the balancing item to reconcile with total meters installed
D14: 2011 Installations | E14: # Meters | F14: 2011 | H14: 50044 | I14: =H14*$H$32 -> 25022 | J14: =H14*$H$33 -> 25022 | N14: =I14+(1/3)*H13 -> 36918.33333 | O14: Note: 1/3 of 2010 CY installations plus H1 CY2011
D15: 2012 Installations | E15: # Meters | F15: 2012 | H15: 63277 | I15: 31638.5 | J15: 31638.5 | N15: =I15+J14 -> 56660.5 | O15: Note: CY installation value apportioned into FY based on the assumption in H32
D16: 2013 Installations | E16: # Meters | F16: 2013 | H16: 115956 | I16: 57978 | J16: 57978 | N16: 89616.5
D17: 2014 Installations | E17: # Meters | F17: 2014 | H17: 34708 | I17: 17354 | J17: 17354 | N17: 75332
D18: 2015 Installations | E18: # Meters | F18: 2015 | H18: 9731 | I18: 4865.5 | J18: 4865.5 | N18: 22219.5
D19: 2016 Installations | E19: # Meters | F19: 2016 | H19: 9116 | I19: 4558 | J19: 4558 | N19: 9423.5
D20: 2017 Installations | E20: # Meters | F20: 2017 | H20: 9398 | I20: 4699 | J20: 4699 | N20: 9257
D21: 2018 Installations | E21: # Meters | F21: 2018 | H21: 9100 | I21: 4550 | J21: 4550 | N21: 9249
D22: 2019 Installations | E22: # Meters | F22: 2019 | H22: 9503 | I22: 4751.5 | J22: 4751.5 | N22: =I22+J21 -> 9301.5
D23: 2020 Installations | E23: # Meters | F23: 2020 | H23: 9184 | I23: 4592 | J23: 4592 | N23: =I23+J22 -> 9343.5
D24: 2021 Installations | E24: # Meters | F24: 2021 | L24: 8430 | N24: =L24 -> 8430 | O24: Note: 100% of the FY Installation value
D25: 2022 Installations | E25: # Meters | F25: 2022 | L25: 9186 | N25: =L25 -> 9186
D26: 2023 Installations | E26: # Meters | F26: 2023 | L26: 9538 | N26: =L26 -> 9538
D27: 2024 Installations | E27: # Meters | F27: 2024 | L27: 8283 | N27: =L27 -> 8283
D28: 2025 Installations | E28: # Meters | F28: 2025 | L28: 8983 | N28: =L28 -> 8983
A30: =IF(ROUND(SUM(H30:L30)-N30,3)=0,0,1) -> 0 | D30: Total | H30: =SUM(H13:H28) -> 355706 | L30: =SUM(L13:L28) -> 44420 | N30: =SUM(N13:N28) -> 400126
D32: % of CY installations: 1 January to 30 June | H32: 0.5
D33: % of CY installations: 1 July to 31 December | H33: =1-H32 -> 0.5
C35: Input | Obligations
D37: Item | H37: Unit | I37: Basis | J37: Input
D39: Inspection obligation starts after x years | H39: Years | I39: n/a | J39: 15 | L39: Note: '15 year inspection obligation' | Under our current MAMS, these physical inspections by a qualified technician fall due upon the 15 year anniversary of a meter’s service life.
D40: Inspection avoided if replacements done within x years | H40: Years | I40: n/a | J40: 5 | L40: Note: 'Substituted 20 year replacement obligation" | This inspection can be avoided if within the next 5 years the meter is planned to be replaced, creating a compliant replacement window of up to 20 years of a meter’s service life.
B42: End

Sheet Input|RP_Vol
D1: =Model_Name -> Inspection and Replacement Obligation Volume Model | H1: Section Check: | J1: =IF(COUNTA($A$8:$A$178)=COUNTIF($A$8:$A$178,0),"Ok","Check") -> Ok | L1: Overall Check: | M1: =Overall_Check -> Ok | O1: Legend: | P1: Input | Q1: Internal | R1: Select | S1: Calculation
D2: =RIGHT(CELL("filename",D1),LEN(CELL("filename",D1))-FIND("]",CELL("filename",D1))) -> Input|RP_Vol
H3: Year | J3: 2026 | K3: =IF(CF_Type=Annually,J3+1,IF(K4=1,J3+1,J3)) -> 2027 | L3: 2028 | M3: 2029 | N3: 2030 | O3: 2031 | P3: 2032 | Q3: 2033 | R3: 2034 | S3: 2035 | T3: 2036
E4: Unit | F4: Basis | H4: Month | J4: =IF(CF_Type=Annually,NA,Start_Month) -> n/a | K4: =IF(J4=NA,NA,IF(J4+1=Months_in_year,Months_in_year,MOD(J4+1,Months_in_year))) -> n/a | L4: n/a | M4: n/a | N4: n/a | O4: n/a | P4: n/a | Q4: n/a | R4: n/a | S4: n/a | T4: n/a
B6: Copyright Jemena Limited. All rights reserved. Jemena is not liable for any loss caused by reliance on this document.
B8: Input | Impact of Replacement Volumes on Inspection Obligations
C10: ="Calculation | "&'Output|Charts'!P13&" outstanding inspection obligations / replacements" -> Calculation | Revised Proposal outstanding inspection obligations / replacements
D12: Item | E12: =E$4 -> Unit | F12: =F$4 -> Basis | G12: Installation Year | H12: Installation Volume (#) | I12: Inspection Year | J12: =IF(CF_Type=Annually,"FY"&RIGHT(J$3,2),TEXT(DATE(J$3,J$4,1),"mmm-yyyy")) -> FY26 | K12: FY27 | L12: FY28 | M12: FY29 | N12: FY30 | O12: FY31 | P12: FY32 | Q12: FY33 | R12: FY34 | S12: FY35 | T12: =$T$3 -> 2036
D14: ='Input|Installations'!D39 -> Inspection obligation starts after x years | E14: Years | F14: n/a | I14: ='Input|Installations'!$J$39 -> 15
D15: ='Input|Installations'!D40 -> Inspection avoided if replacements done within x years | E15: Years | F15: n/a | I15: 1
D17: ="Inspection obligation - "&G17&" Installations" -> Inspection obligation - 2010 Installations | E17: # Meters | F17: n/a | G17: ='Input|Installations'!F13 -> 2010 | H17: ='Input|Installations'!N13 -> 28384.66667 | I17: =G17+$I$14+1 -> 2026 | J17: =AND(J$3>=$I17,J$3<=$I17+$I$15-1)*$H17/$I$15 -> 28384.66667 | K17: =AND(K$3>=$I17,K$3<=$I17+$I$15-1)*$H17/$I$15 -> 0 | L17: 0 | M17: 0 | N17: 0 | O17: 0 | P17: 0 | Q17: 0 | R17: 0 | S17: 0 | T17: 0
D18: ="Inspection obligation - "&G18&" Installations" -> Inspection obligation - 2011 Installations | E18: # Meters | F18: n/a | G18: ='Input|Installations'!F14 -> 2011 | H18: ='Input|Installations'!N14 -> 36918.33333 | I18: =G18+$I$14+1 -> 2027 | J18: =AND(J$3>=$I18,J$3<=$I18+$I$15-1)*$H18/$I$15 -> 0 | K18: 36918.33333 | L18: 0 | M18: 0 | N18: 0 | O18: 0 | P18: 0 | Q18: 0 | R18: 0 | S18: 0 | T18: 0
D19: Inspection obligation - 2012 Installations | E19: # Meters | F19: n/a | G19: ='Input|Installations'!F15 -> 2012 | H19: ='Input|Installations'!N15 -> 56660.5 | I19: 2028 | J19: 0 | K19: 0 | L19: 56660.5 | M19: 0 | N19: 0 | O19: 0 | P19: 0 | Q19: 0 | R19: 0 | S19: 0 | T19: 0
D20: Inspection obligation - 2013 Installations | E20: # Meters | F20: n/a | G20: ='Input|Installations'!F16 -> 2013 | H20: ='Input|Installations'!N16 -> 89616.5 | I20: 2029 | J20: 0 | K20: 0 | L20: 0 | M20: 89616.5 | N20: 0 | O20: 0 | P20: 0 | Q20: 0 | R20: 0 | S20: 0 | T20: 0
D21: Inspection obligation - 2014 Installations | E21: # Meters | F21: n/a | G21: ='Input|Installations'!F17 -> 2014 | H21: ='Input|Installations'!N17 -> 75332 | I21: 2030 | J21: 0 | K21: 0 | L21: 0 | M21: 0 | N21: 75332 | O21: 0 | P21: 0 | Q21: 0 | R21: 0 | S21: 0 | T21: 0
D22: Inspection obligation - 2015 Installations | E22: # Meters | F22: n/a | G22: ='Input|Installations'!F18 -> 2015 | H22: ='Input|Installations'!N18 -> 22219.5 | I22: 2031 | J22: 0 | K22: 0 | L22: 0 | M22: 0 | N22: 0 | O22: 22219.5 | P22: 0 | Q22: 0 | R22: 0 | S22: 0 | T22: 0
D23: Inspection obligation - 2016 Installations | E23: # Meters | F23: n/a | G23: ='Input|Installations'!F19 -> 2016 | H23: ='Input|Installations'!N19 -> 9423.5 | I23: 2032 | J23: 0 | K23: 0 | L23: 0 | M23: 0 | N23: 0 | O23: 0 | P23: 9423.5 | Q23: 0 | R23: 0 | S23: 0 | T23: 0
D24: Inspection obligation - 2017 Installations | E24: # Meters | F24: n/a | G24: ='Input|Installations'!F20 -> 2017 | H24: ='Input|Installations'!N20 -> 9257 | I24: 2033 | J24: 0 | K24: 0 | L24: 0 | M24: 0 | N24: 0 | O24: 0 | P24: 0 | Q24: 9257 | R24: 0 | S24: 0 | T24: 0
D25: Inspection obligation - 2018 Installations | E25: # Meters | F25: n/a | G25: ='Input|Installations'!F21 -> 2018 | H25: ='Input|Installations'!N21 -> 9249 | I25: 2034 | J25: 0 | K25: 0 | L25: 0 | M25: 0 | N25: 0 | O25: 0 | P25: 0 | Q25: 0 | R25: 9249 | S25: 0 | T25: 0
D26: Inspection obligation - 2019 Installations | E26: # Meters | F26: n/a | G26: ='Input|Installations'!F22 -> 2019 | H26: ='Input|Installations'!N22 -> 9301.5 | I26: 2035 | J26: 0 | K26: 0 | L26: 0 | M26: 0 | N26: 0 | O26: 0 | P26: 0 | Q26: 0 | R26: 0 | S26: 9301.5 | T26: 0
D27: Inspection obligation - 2020 Installations | E27: # Meters | F27: n/a | G27: ='Input|Installations'!F23 -> 2020 | H27: ='Input|Installations'!N23 -> 9343.5 | I27: 2036 | J27: 0 | K27: 0 | L27: 0 | M27: 0 | N27: 0 | O27: 0 | P27: 0 | Q27: 0 | R27: 0 | S27: 0 | T27: 9343.5
D28: Inspection obligation - 2021 Installations | E28: # Meters | F28: n/a | G28: ='Input|Installations'!F24 -> 2021 | H28: ='Input|Installations'!N24 -> 8430 | I28: 2037 | J28: 0 | K28: 0 | L28: 0 | M28: 0 | N28: 0 | O28: 0 | P28: 0 | Q28: 0 | R28: 0 | S28: 0 | T28: 0
D29: Inspection obligation - 2022 Installations | E29: # Meters | F29: n/a | G29: ='Input|Installations'!F25 -> 2022 | H29: ='Input|Installations'!N25 -> 9186 | I29: 2038 | J29: 0 | K29: 0 | L29: 0 | M29: 0 | N29: 0 | O29: 0 | P29: 0 | Q29: 0 | R29: 0 | S29: 0 | T29: 0
D30: Inspection obligation - 2023 Installations | E30: # Meters | F30: n/a | G30: ='Input|Installations'!F26 -> 2023 | H30: ='Input|Installations'!N26 -> 9538 | I30: 2039 | J30: 0 | K30: 0 | L30: 0 | M30: 0 | N30: 0 | O30: 0 | P30: 0 | Q30: 0 | R30: 0 | S30: 0 | T30: 0
D31: Inspection obligation - 2024 Installations | E31: # Meters | F31: n/a | G31: ='Input|Installations'!F27 -> 2024 | H31: ='Input|Installations'!N27 -> 8283 | I31: 2040 | J31: 0 | K31: 0 | L31: 0 | M31: 0 | N31: 0 | O31: 0 | P31: 0 | Q31: 0 | R31: 0 | S31: 0 | T31: 0
D32: Inspection obligation - 2025 Installations | E32: # Meters | F32: n/a | G32: ='Input|Installations'!F28 -> 2025 | H32: ='Input|Installations'!N28 -> 8983 | I32: 2041 | J32: 0 | K32: 0 | L32: 0 | M32: 0 | N32: 0 | O32: 0 | P32: 0 | Q32: 0 | R32: 0 | S32: 0 | T32: 0
D34: Total inspection obligation | E34: # Meters | F34: n/a | J34: =SUM(J17:J32) -> 28384.66667 | K34: =SUM(K17:K32) -> 36918.33333 | L34: 56660.5 | M34: 89616.5 | N34: 75332 | O34: 22219.5 | P34: 9423.5 | Q34: 9257 | R34: 9249 | S34: 9301.5 | T34: 9343.5
D36: Smoothing adjustment | E36: # Meters | F36: n/a | J36: 0 | K36: 0 | L36: 0 | M36: 0 | N36: 0 | O36: 0 | P36: 0 | Q36: 0 | R36: 0 | S36: 0 | T36: 0
D38: Total smoothed inspection obligations | E38: # Meters | F38: n/a | J38: =J34+J36 -> 28384.66667 | K38: =K34+K36 -> 36918.33333 | L38: 56660.5 | M38: 89616.5 | N38: 75332 | O38: 22219.5 | P38: 9423.5 | Q38: 9257 | R38: 9249 | S38: 9301.5 | T38: 9343.5
D40: Less allowed replacements | E40: # Meters | F40: n/a | J40: 0 | K40: =-'Output|Charts'!Q13 -> -22284.4 | L40: =-'Output|Charts'!R13 -> -29802 | M40: =-'Output|Charts'!S13 -> -34802.2 | N40: =-'Output|Charts'!T13 -> -37801.8 | O40: =-'Output|Charts'!U13 -> -41664.2
D42: Outstanding Inspections | E42: # Meters | F42: n/a | J42: =MAX(0,J38+SUM(J40:J40)) -> 28384.66667 | K42: 14633.93333 | L42: 26858.5 | M42: 54814.3 | N42: 37530.2 | O42: 0 | P42: 9423.5 | Q42: 9257 | R42: 9249 | S42: 9301.5 | T42: 9343.5
D44: Cumulative outstanding inspections / replacements | E44: # Meters | F44: n/a | J44: =SUM($J42:J42) -> 28384.66667 | K44: =SUM($J42:K42) -> 43018.6 | L44: =SUM($J42:L42) -> 69877.1 | M44: =SUM($J42:M42) -> 124691.4 | N44: =SUM($J42:N42) -> 162221.6 | O44: =SUM($J42:O42) -> 162221.6 | P44: =SUM($J42:P42) -> 171645.1 | Q44: =SUM($J42:Q42) -> 180902.1 | R44: =SUM($J42:R42) -> 190151.1 | S44: =SUM($J42:S42) -> 199452.6 | T44: =SUM($J42:T42) -> 208796.1
D46: Meters remaining in the field due for inspection / replacements | E46: # Meters | F46: n/a | J46: =SUMIF($I$17:$I$32,"<="&J$3,$H$17:$H$32)+SUM($J40:J40) -> 28384.66667 | K46: =SUMIF($I$17:$I$32,"<="&K$3,$H$17:$H$32)+SUM($J40:K40) -> 43018.6 | L46: =SUMIF($I$17:$I$32,"<="&L$3,$H$17:$H$32)+SUM($J40:L40) -> 69877.1 | M46: =SUMIF($I$17:$I$32,"<="&M$3,$H$17:$H$32)+SUM($J40:M40) -> 124691.4 | N46: =SUMIF($I$17:$I$32,"<="&N$3,$H$17:$H$32)+SUM($J40:N40) -> 162221.6 | O46: =SUMIF($I$17:$I$32,"<="&O$3,$H$17:$H$32)+SUM($J40:O40) -> 142776.9 | P46: =SUMIF($I$17:$I$32,"<="&P$3,$H$17:$H$32)+SUM($J40:P40) -> 152200.4 | Q46: =SUMIF($I$17:$I$32,"<="&Q$3,$H$17:$H$32)+SUM($J40:Q40) -> 161457.4 | R46: =SUMIF($I$17:$I$32,"<="&R$3,$H$17:$H$32)+SUM($J40:R40) -> 170706.4 | S46: =SUMIF($I$17:$I$32,"<="&S$3,$H$17:$H$32)+SUM($J40:S40) -> 180007.9 | T46: =SUMIF($I$17:$I$32,"<="&T$3,$H$17:$H$32)+SUM($J40:T40) -> 189351.4
B48: Input | Allocation of annual replacements and inspections to meter installation year
D50: Summary | E50: =E$4 -> Unit | F50: =F$4 -> Basis | J50: =IF(CF_Type=Annually,"FY"&RIGHT(J$3,2),TEXT(DATE(J$3,J$4,1),"mmm-yyyy")) -> FY26 | K50: FY27 | L50: FY28 | M50: FY29 | N50: FY30 | O50: FY31 | P50: FY32 | Q50: FY33 | R50: FY34 | S50: FY35 | T50: =$T$3 -> 2036
D52: =H12 -> Installation Volume (#) | E52: # Meters | F52: n/a | J52: =TRANSPOSE(H17:H27) -> 28384.66667 | K52: 36918.33333 | L52: 56660.5 | M52: 89616.5 | N52: 75332 | O52: 22219.5 | P52: 9423.5 | Q52: 9257 | R52: 9249 | S52: 9301.5 | T52: 9343.5
D54: Less allowed replacements | E54: # Meters | F54: n/a | J54: 0 | K54: =-'Output|Charts'!Q13 -> -22284.4 | L54: =-'Output|Charts'!R13 -> -29802 | M54: =-'Output|Charts'!S13 -> -34802.2 | N54: =-'Output|Charts'!T13 -> -37801.8 | O54: =-'Output|Charts'!U13 -> -41664.2
D55: Less allowed inspections | E55: # Meters | F55: n/a | J55: 0 | K55: =-'Output|Charts'!Q36 -> 0 | L55: =-'Output|Charts'!R36 -> 0 | M55: =-'Output|Charts'!S36 -> 0 | N55: =-'Output|Charts'!T36 -> 0 | O55: =-'Output|Charts'!U36 -> 0
D57: =D44 -> Cumulative outstanding inspections / replacements | E57: # Meters | F57: n/a | J57: =SUM($J52:J55) -> 28384.66667 | K57: =SUM($J52:K55) -> 43018.6 | L57: =SUM($J52:L55) -> 69877.1 | M57: =SUM($J52:M55) -> 124691.4 | N57: =SUM($J52:N55) -> 162221.6 | O57: =SUM($J52:O55) -> 142776.9 | P57: =SUM($J52:P55) -> 152200.4 | Q57: =SUM($J52:Q55) -> 161457.4 | R57: =SUM($J52:R55) -> 170706.4 | S57: =SUM($J52:S55) -> 180007.9 | T57: =SUM($J52:T55) -> 189351.4
D59: Inspection Volumes - 2026-31 Regulatory Period | E59: =E$4 -> Unit | F59: =F$4 -> Basis | G59: Installation Year | H59: Installation Volume (#) | I59: Inspection Year | J59: =IF(CF_Type=Annually,"FY"&RIGHT(J$3,2),TEXT(DATE(J$3,J$4,1),"mmm-yyyy")) -> FY26 | K59: FY27 | L59: FY28 | M59: FY29 | N59: FY30 | O59: FY31 | P59: FY32 | Q59: FY33 | R59: FY34 | S59: FY35 | T59: =$T$3 -> 2036
D61: ="Opening Inspections Due - "&I61 -> Opening Inspections Due - 2026 | E61: # Meters | F61: n/a | G61: =G17 -> 2010 | H61: 28384.66667 | I61: 2026 | J61: =IF(J$3=$I61,$H61,I137) -> 28384.66667 | K61: 28384.66667 | L61: 6100.266667 | M61: 0 | N61: 0 | O61: 0 | P61: 0 | Q61: 0 | R61: 0 | S61: 0 | T61: 0
D62: Opening Inspections Due - 2027 | E62: # Meters | F62: n/a | G62: 2011 | H62: 36918.33333 | I62: 2027 | J62: 0 | K62: 36918.33333 | L62: 36918.33333 | M62: 13216.6 | N62: 0 | O62: 0 | P62: 0 | Q62: 0 | R62: 0 | S62: 0 | T62: 0
D63: Opening Inspections Due - 2028 | E63: # Meters | F63: n/a | G63: 2012 | H63: 56660.5 | I63: 2028 | J63: 0 | K63: 0 | L63: 56660.5 | M63: 56660.5 | N63: 35074.9 | O63: 0 | P63: 0 | Q63: 0 | R63: 0 | S63: 0 | T63: 0
D64: Opening Inspections Due - 2029 | E64: # Meters | F64: n/a | G64: 2013 | H64: 89616.5 | I64: 2029 | J64: 0 | K64: 0 | L64: 0 | M64: 89616.5 | N64: 89616.5 | O64: 86889.6 | P64: 45225.4 | Q64: 45225.4 | R64: 45225.4 | S64: 45225.4 | T64: 45225.4
D65: Opening Inspections Due - 2030 | E65: # Meters | F65: n/a | G65: 2014 | H65: 75332 | I65: 2030 | J65: 0 | K65: 0 | L65: 0 | M65: 0 | N65: 75332 | O65: 75332 | P65: 75332 | Q65: 75332 | R65: 75332 | S65: 75332 | T65: 75332
D66: Opening Inspections Due - 2031 | E66: # Meters | F66: n/a | G66: 2015 | H66: 22219.5 | I66: 2031 | J66: 0 | K66: 0 | L66: 0 | M66: 0 | N66: 0 | O66: 22219.5 | P66: 22219.5 | Q66: 22219.5 | R66: 22219.5 | S66: 22219.5 | T66: 22219.5
D67: Opening Inspections Due - 2032 | E67: # Meters | F67: n/a | G67: 2016 | H67: 9423.5 | I67: 2032 | J67: 0 | K67: 0 | L67: 0 | M67: 0 | N67: 0 | O67: 0 | P67: 9423.5 | Q67: 9423.5 | R67: 9423.5 | S67: 9423.5 | T67: 9423.5
D68: Opening Inspections Due - 2033 | E68: # Meters | F68: n/a | G68: 2017 | H68: 9257 | I68: 2033 | J68: 0 | K68: 0 | L68: 0 | M68: 0 | N68: 0 | O68: 0 | P68: 0 | Q68: 9257 | R68: 9257 | S68: 9257 | T68: 9257
D69: Opening Inspections Due - 2034 | E69: # Meters | F69: n/a | G69: 2018 | H69: 9249 | I69: 2034 | J69: 0 | K69: 0 | L69: 0 | M69: 0 | N69: 0 | O69: 0 | P69: 0 | Q69: 0 | R69: 9249 | S69: 9249 | T69: 9249
D70: Opening Inspections Due - 2035 | E70: # Meters | F70: n/a | G70: 2019 | H70: 9301.5 | I70: 2035 | J70: 0 | K70: 0 | L70: 0 | M70: 0 | N70: 0 | O70: 0 | P70: 0 | Q70: 0 | R70: 0 | S70: 9301.5 | T70: 9301.5
D71: Opening Inspections Due - 2036 | E71: # Meters | F71: n/a | G71: 2020 | H71: 9343.5 | I71: 2036 | J71: 0 | K71: 0 | L71: 0 | M71: 0 | N71: 0 | O71: 0 | P71: 0 | Q71: 0 | R71: 0 | S71: 0 | T71: 9343.5
D72: Opening Inspections Due - 2037 | E72: # Meters | F72: n/a | G72: 2021 | H72: 8430 | I72: 2037 | J72: 0 | K72: 0 | L72: 0 | M72: 0 | N72: 0 | O72: 0 | P72: 0 | Q72: 0 | R72: 0 | S72: 0 | T72: 0
D73: Opening Inspections Due - 2038 | E73: # Meters | F73: n/a | G73: 2022 | H73: 9186 | I73: 2038 | J73: 0 | K73: 0 | L73: 0 | M73: 0 | N73: 0 | O73: 0 | P73: 0 | Q73: 0 | R73: 0 | S73: 0 | T73: 0
D74: Opening Inspections Due - 2039 | E74: # Meters | F74: n/a | G74: 2023 | H74: 9538 | I74: 2039 | J74: 0 | K74: 0 | L74: 0 | M74: 0 | N74: 0 | O74: 0 | P74: 0 | Q74: 0 | R74: 0 | S74: 0 | T74: 0
D75: Opening Inspections Due - 2040 | E75: # Meters | F75: n/a | G75: 2024 | H75: 8283 | I75: 2040 | J75: 0 | K75: 0 | L75: 0 | M75: 0 | N75: 0 | O75: 0 | P75: 0 | Q75: 0 | R75: 0 | S75: 0 | T75: 0
D76: Opening Inspections Due - 2041 | E76: # Meters | F76: n/a | G76: 2025 | H76: 8983 | I76: 2041 | J76: 0 | K76: 0 | L76: 0 | M76: 0 | N76: 0 | O76: 0 | P76: 0 | Q76: 0 | R76: 0 | S76: 0 | T76: 0
D78: Total Opening Inspections Due | E78: # Meters | F78: n/a | J78: =SUM(J61:J76) -> 28384.66667 | K78: =SUM(K61:K76) -> 65303 | L78: 99679.1 | M78: 159493.6 | N78: 200023.4 | O78: 184441.1 | P78: 152200.4 | Q78: 161457.4 | R78: 170706.4 | S78: 180007.9 | T78: 189351.4
D80: ="Inspections avoided due to replacements - "&I61 -> Inspections avoided due to replacements - 2026 | E80: # Meters | F80: n/a | J80: 0 | K80: =K$54 -> -22284.4 | L80: =-L61 -> -6100.266667 | M80: 0 | N80: 0 | O80: 0 | P80: 0 | Q80: 0 | R80: 0 | S80: 0 | T80: 0
D81: Inspections avoided due to replacements - 2027 | E81: # Meters | F81: n/a | J81: 0 | K81: 0 | L81: =L$54-L80 -> -23701.73333 | M81: =-M62 -> -13216.6 | N81: 0 | O81: 0 | P81: 0 | Q81: 0 | R81: 0 | S81: 0 | T81: 0
D82: Inspections avoided due to replacements - 2028 | E82: # Meters | F82: n/a | J82: 0 | K82: 0 | L82: 0 | M82: =M$54-M81 -> -21585.6 | N82: =-N63 -> -35074.9 | O82: 0 | P82: 0 | Q82: 0 | R82: 0 | S82: 0 | T82: 0
D83: Inspections avoided due to replacements - 2029 | E83: # Meters | F83: n/a | J83: 0 | K83: 0 | L83: 0 | M83: 0 | N83: =N$54-N82 -> -2726.9 | O83: =O$54 -> -41664.2 | P83: 0 | Q83: 0 | R83: 0 | S83: 0 | T83: 0
D84: Inspections avoided due to replacements - 2030 | E84: # Meters | F84: n/a | J84: 0 | K84: 0 | L84: 0 | M84: 0 | N84: 0 | O84: 0 | P84: 0 | Q84: 0 | R84: 0 | S84: 0 | T84: 0
D85: Inspections avoided due to replacements - 2031 | E85: # Meters | F85: n/a | J85: 0 | K85: 0 | L85: 0 | M85: 0 | N85: 0 | O85: 0 | P85: 0 | Q85: 0 | R85: 0 | S85: 0 | T85: 0
D86: Inspections avoided due to replacements - 2032 | E86: # Meters | F86: n/a | J86: 0 | K86: 0 | L86: 0 | M86: 0 | N86: 0 | O86: 0 | P86: 0 | Q86: 0 | R86: 0 | S86: 0 | T86: 0
D87: Inspections avoided due to replacements - 2033 | E87: # Meters | F87: n/a | J87: 0 | K87: 0 | L87: 0 | M87: 0 | N87: 0 | O87: 0 | P87: 0 | Q87: 0 | R87: 0 | S87: 0 | T87: 0
D88: Inspections avoided due to replacements - 2034 | E88: # Meters | F88: n/a | J88: 0 | K88: 0 | L88: 0 | M88: 0 | N88: 0 | O88: 0 | P88: 0 | Q88: 0 | R88: 0 | S88: 0 | T88: 0
D89: Inspections avoided due to replacements - 2035 | E89: # Meters | F89: n/a | J89: 0 | K89: 0 | L89: 0 | M89: 0 | N89: 0 | O89: 0 | P89: 0 | Q89: 0 | R89: 0 | S89: 0 | T89: 0
D90: Inspections avoided due to replacements - 2036 | E90: # Meters | F90: n/a | J90: 0 | K90: 0 | L90: 0 | M90: 0 | N90: 0 | O90: 0 | P90: 0 | Q90: 0 | R90: 0 | S90: 0 | T90: 0
D91: Inspections avoided due to replacements - 2037 | E91: # Meters | F91: n/a | J91: 0 | K91: 0 | L91: 0 | M91: 0 | N91: 0 | O91: 0 | P91: 0 | Q91: 0 | R91: 0 | S91: 0 | T91: 0
D92: Inspections avoided due to replacements - 2038 | E92: # Meters | F92: n/a | J92: 0 | K92: 0 | L92: 0 | M92: 0 | N92: 0 | O92: 0 | P92: 0 | Q92: 0 | R92: 0 | S92: 0 | T92: 0
D93: Inspections avoided due to replacements - 2039 | E93: # Meters | F93: n/a | J93: 0 | K93: 0 | L93: 0 | M93: 0 | N93: 0 | O93: 0 | P93: 0 | Q93: 0 | R93: 0 | S93: 0 | T93: 0
D94: Inspections avoided due to replacements - 2040 | E94: # Meters | F94: n/a | J94: 0 | K94: 0 | L94: 0 | M94: 0 | N94: 0 | O94: 0 | P94: 0 | Q94: 0 | R94: 0 | S94: 0 | T94: 0
D95: Inspections avoided due to replacements - 2041 | E95: # Meters | F95: n/a | J95: 0 | K95: 0 | L95: 0 | M95: 0 | N95: 0 | O95: 0 | P95: 0 | Q95: 0 | R95: 0 | S95: 0 | T95: 0
D97: Total inspections avoided due to replacements | E97: # Meters | F97: n/a | J97: =SUM(J80:J95) -> 0 | K97: =SUM(K80:K95) -> -22284.4 | L97: -29802 | M97: -34802.2 | N97: -37801.8 | O97: -41664.2 | P97: 0 | Q97: 0 | R97: 0 | S97: 0 | T97: 0
D99: ="Interim Balance - Prior to inspections - "&I61 -> Interim Balance - Prior to inspections - 2026 | E99: # Meters | F99: n/a | J99: =J61+J80 -> 28384.66667 | K99: =K61+K80 -> 6100.266667 | L99: 0 | M99: 0 | N99: 0 | O99: 0 | P99: 0 | Q99: 0 | R99: 0 | S99: 0 | T99: 0
D100: ="Interim Balance - Prior to inspections - "&I62 -> Interim Balance - Prior to inspections - 2027 | E100: # Meters | F100: n/a | J100: =J62+J81 -> 0 | K100: 36918.33333 | L100: 13216.6 | M100: 0 | N100: 0 | O100: 0 | P100: 0 | Q100: 0 | R100: 0 | S100: 0 | T100: 0
D101: Interim Balance - Prior to inspections - 2028 | E101: # Meters | F101: n/a | J101: 0 | K101: 0 | L101: 56660.5 | M101: 35074.9 | N101: 0 | O101: 0 | P101: 0 | Q101: 0 | R101: 0 | S101: 0 | T101: 0
D102: Interim Balance - Prior to inspections - 2029 | E102: # Meters | F102: n/a | J102: 0 | K102: 0 | L102: 0 | M102: 89616.5 | N102: 86889.6 | O102: 45225.4 | P102: 45225.4 | Q102: 45225.4 | R102: 45225.4 | S102: 45225.4 | T102: 45225.4
D103: Interim Balance - Prior to inspections - 2030 | E103: # Meters | F103: n/a | J103: 0 | K103: 0 | L103: 0 | M103: 0 | N103: 75332 | O103: 75332 | P103: 75332 | Q103: 75332 | R103: 75332 | S103: 75332 | T103: 75332
D104: Interim Balance - Prior to inspections - 2031 | E104: # Meters | F104: n/a | J104: 0 | K104: 0 | L104: 0 | M104: 0 | N104: 0 | O104: 22219.5 | P104: 22219.5 | Q104: 22219.5 | R104: 22219.5 | S104: 22219.5 | T104: 22219.5
D105: Interim Balance - Prior to inspections - 2032 | E105: # Meters | F105: n/a | J105: 0 | K105: 0 | L105: 0 | M105: 0 | N105: 0 | O105: 0 | P105: 9423.5 | Q105: 9423.5 | R105: 9423.5 | S105: 9423.5 | T105: 9423.5
D106: Interim Balance - Prior to inspections - 2033 | E106: # Meters | F106: n/a | J106: 0 | K106: 0 | L106: 0 | M106: 0 | N106: 0 | O106: 0 | P106: 0 | Q106: 9257 | R106: 9257 | S106: 9257 | T106: 9257
D107: Interim Balance - Prior to inspections - 2034 | E107: # Meters | F107: n/a | J107: 0 | K107: 0 | L107: 0 | M107: 0 | N107: 0 | O107: 0 | P107: 0 | Q107: 0 | R107: 9249 | S107: 9249 | T107: 9249
D108: Interim Balance - Prior to inspections - 2035 | E108: # Meters | F108: n/a | J108: 0 | K108: 0 | L108: 0 | M108: 0 | N108: 0 | O108: 0 | P108: 0 | Q108: 0 | R108: 0 | S108: 9301.5 | T108: 9301.5
D109: Interim Balance - Prior to inspections - 2036 | E109: # Meters | F109: n/a | J109: 0 | K109: 0 | L109: 0 | M109: 0 | N109: 0 | O109: 0 | P109: 0 | Q109: 0 | R109: 0 | S109: 0 | T109: 9343.5
D110: Interim Balance - Prior to inspections - 2037 | E110: # Meters | F110: n/a | J110: 0 | K110: 0 | L110: 0 | M110: 0 | N110: 0 | O110: 0 | P110: 0 | Q110: 0 | R110: 0 | S110: 0 | T110: 0
D111: Interim Balance - Prior to inspections - 2038 | E111: # Meters | F111: n/a | J111: 0 | K111: 0 | L111: 0 | M111: 0 | N111: 0 | O111: 0 | P111: 0 | Q111: 0 | R111: 0 | S111: 0 | T111: 0
D112: Interim Balance - Prior to inspections - 2039 | E112: # Meters | F112: n/a | J112: 0 | K112: 0 | L112: 0 | M112: 0 | N112: 0 | O112: 0 | P112: 0 | Q112: 0 | R112: 0 | S112: 0 | T112: 0
D113: Interim Balance - Prior to inspections - 2040 | E113: # Meters | F113: n/a | J113: 0 | K113: 0 | L113: 0 | M113: 0 | N113: 0 | O113: 0 | P113: 0 | Q113: 0 | R113: 0 | S113: 0 | T113: 0
D114: Interim Balance - Prior to inspections - 2041 | E114: # Meters | F114: n/a | J114: 0 | K114: 0 | L114: 0 | M114: 0 | N114: 0 | O114: 0 | P114: 0 | Q114: 0 | R114: 0 | S114: 0 | T114: 0
D116: Total Interim Balance | E116: # Meters | F116: n/a | J116: =SUM(J99:J114) -> 28384.66667 | K116: =SUM(K99:K114) -> 43018.6 | L116: 69877.1 | M116: 124691.4 | N116: 162221.6 | O116: 142776.9 | P116: 152200.4 | Q116: 161457.4 | R116: 170706.4 | S116: 180007.9 | T116: 189351.4
D118: ="Inspections completed - "&I61 -> Inspections completed - 2026 | E118: # Meters | F118: n/a | J118: 0 | K118: 0 | L118: 0 | M118: 0 | N118: 0 | O118: 0 | P118: 0 | Q118: 0 | R118: 0 | S118: 0 | T118: 0
D119: ="Inspections completed - "&I62 -> Inspections completed - 2027 | E119: # Meters | F119: n/a | J119: 0 | K119: 0 | L119: 0 | M119: 0 | N119: 0 | O119: 0 | P119: 0 | Q119: 0 | R119: 0 | S119: 0 | T119: 0
D120: Inspections completed - 2028 | E120: # Meters | F120: n/a | J120: 0 | K120: 0 | L120: 0 | M120: 0 | N120: 0 | O120: 0 | P120: 0 | Q120: 0 | R120: 0 | S120: 0 | T120: 0
D121: Inspections completed - 2029 | E121: # Meters | F121: n/a | J121: 0 | K121: 0 | L121: 0 | M121: 0 | N121: 0 | O121: 0 | P121: 0 | Q121: 0 | R121: 0 | S121: 0 | T121: 0
D122: Inspections completed - 2030 | E122: # Meters | F122: n/a | J122: 0 | K122: 0 | L122: 0 | M122: 0 | N122: 0 | O122: 0 | P122: 0 | Q122: 0 | R122: 0 | S122: 0 | T122: 0
D123: Inspections completed - 2031 | E123: # Meters | F123: n/a | J123: 0 | K123: 0 | L123: 0 | M123: 0 | N123: 0 | O123: 0 | P123: 0 | Q123: 0 | R123: 0 | S123: 0 | T123: 0
D124: Inspections completed - 2032 | E124: # Meters | F124: n/a | J124: 0 | K124: 0 | L124: 0 | M124: 0 | N124: 0 | O124: 0 | P124: 0 | Q124: 0 | R124: 0 | S124: 0 | T124: 0
D125: Inspections completed - 2033 | E125: # Meters | F125: n/a | J125: 0 | K125: 0 | L125: 0 | M125: 0 | N125: 0 | O125: 0 | P125: 0 | Q125: 0 | R125: 0 | S125: 0 | T125: 0
D126: Inspections completed - 2034 | E126: # Meters | F126: n/a | J126: 0 | K126: 0 | L126: 0 | M126: 0 | N126: 0 | O126: 0 | P126: 0 | Q126: 0 | R126: 0 | S126: 0 | T126: 0
D127: Inspections completed - 2035 | E127: # Meters | F127: n/a | J127: 0 | K127: 0 | L127: 0 | M127: 0 | N127: 0 | O127: 0 | P127: 0 | Q127: 0 | R127: 0 | S127: 0 | T127: 0
D128: Inspections completed - 2036 | E128: # Meters | F128: n/a | J128: 0 | K128: 0 | L128: 0 | M128: 0 | N128: 0 | O128: 0 | P128: 0 | Q128: 0 | R128: 0 | S128: 0 | T128: 0
D129: Inspections completed - 2037 | E129: # Meters | F129: n/a | J129: 0 | K129: 0 | L129: 0 | M129: 0 | N129: 0 | O129: 0 | P129: 0 | Q129: 0 | R129: 0 | S129: 0 | T129: 0
D130: Inspections completed - 2038 | E130: # Meters | F130: n/a | J130: 0 | K130: 0 | L130: 0 | M130: 0 | N130: 0 | O130: 0 | P130: 0 | Q130: 0 | R130: 0 | S130: 0 | T130: 0
D131: Inspections completed - 2039 | E131: # Meters | F131: n/a | J131: 0 | K131: 0 | L131: 0 | M131: 0 | N131: 0 | O131: 0 | P131: 0 | Q131: 0 | R131: 0 | S131: 0 | T131: 0
D132: Inspections completed - 2040 | E132: # Meters | F132: n/a | J132: 0 | K132: 0 | L132: 0 | M132: 0 | N132: 0 | O132: 0 | P132: 0 | Q132: 0 | R132: 0 | S132: 0 | T132: 0
D133: Inspections completed - 2041 | E133: # Meters | F133: n/a | J133: 0 | K133: 0 | L133: 0 | M133: 0 | N133: 0 | O133: 0 | P133: 0 | Q133: 0 | R133: 0 | S133: 0 | T133: 0
D135: Total inspections completed | E135: # Meters | F135: n/a | J135: =SUM(J118:J133) -> 0 | K135: =SUM(K118:K133) -> 0 | L135: 0 | M135: 0 | N135: 0 | O135: 0 | P135: 0 | Q135: 0 | R135: 0 | S135: 0 | T135: 0
D137: ="Closing Inspections Due - "&I61 -> Closing Inspections Due - 2026 | E137: # Meters | F137: n/a | J137: =J61+J80+J118 -> 28384.66667 | K137: =K61+K80+K118 -> 6100.266667 | L137: 0 | M137: 0 | N137: 0 | O137: 0 | P137: 0 | Q137: 0 | R137: 0 | S137: 0 | T137: 0
D138: Closing Inspections Due - 2027 | E138: # Meters | F138: n/a | J138: =J62+J81+J119 -> 0 | K138: 36918.33333 | L138: 13216.6 | M138: 0 | N138: 0 | O138: 0 | P138: 0 | Q138: 0 | R138: 0 | S138: 0 | T138: 0
D139: Closing Inspections Due - 2028 | E139: # Meters | F139: n/a | J139: 0 | K139: 0 | L139: 56660.5 | M139: 35074.9 | N139: 0 | O139: 0 | P139: 0 | Q139: 0 | R139: 0 | S139: 0 | T139: 0
D140: Closing Inspections Due - 2029 | E140: # Meters | F140: n/a | J140: 0 | K140: 0 | L140: 0 | M140: 89616.5 | N140: 86889.6 | O140: 45225.4 | P140: 45225.4 | Q140: 45225.4 | R140: 45225.4 | S140: 45225.4 | T140: 45225.4
D141: Closing Inspections Due - 2030 | E141: # Meters | F141: n/a | J141: 0 | K141: 0 | L141: 0 | M141: 0 | N141: 75332 | O141: 75332 | P141: 75332 | Q141: 75332 | R141: 75332 | S141: 75332 | T141: 75332
D142: Closing Inspections Due - 2031 | E142: # Meters | F142: n/a | J142: 0 | K142: 0 | L142: 0 | M142: 0 | N142: 0 | O142: 22219.5 | P142: 22219.5 | Q142: 22219.5 | R142: 22219.5 | S142: 22219.5 | T142: 22219.5
D143: Closing Inspections Due - 2032 | E143: # Meters | F143: n/a | J143: 0 | K143: 0 | L143: 0 | M143: 0 | N143: 0 | O143: 0 | P143: 9423.5 | Q143: 9423.5 | R143: 9423.5 | S143: 9423.5 | T143: 9423.5
D144: Closing Inspections Due - 2033 | E144: # Meters | F144: n/a | J144: 0 | K144: 0 | L144: 0 | M144: 0 | N144: 0 | O144: 0 | P144: 0 | Q144: 9257 | R144: 9257 | S144: 9257 | T144: 9257
D145: Closing Inspections Due - 2034 | E145: # Meters | F145: n/a | J145: 0 | K145: 0 | L145: 0 | M145: 0 | N145: 0 | O145: 0 | P145: 0 | Q145: 0 | R145: 9249 | S145: 9249 | T145: 9249
D146: Closing Inspections Due - 2035 | E146: # Meters | F146: n/a | J146: 0 | K146: 0 | L146: 0 | M146: 0 | N146: 0 | O146: 0 | P146: 0 | Q146: 0 | R146: 0 | S146: 9301.5 | T146: 9301.5
D147: Closing Inspections Due - 2036 | E147: # Meters | F147: n/a | J147: 0 | K147: 0 | L147: 0 | M147: 0 | N147: 0 | O147: 0 | P147: 0 | Q147: 0 | R147: 0 | S147: 0 | T147: 9343.5
D148: Closing Inspections Due - 2037 | E148: # Meters | F148: n/a | J148: 0 | K148: 0 | L148: 0 | M148: 0 | N148: 0 | O148: 0 | P148: 0 | Q148: 0 | R148: 0 | S148: 0 | T148: 0
D149: Closing Inspections Due - 2038 | E149: # Meters | F149: n/a | J149: 0 | K149: 0 | L149: 0 | M149: 0 | N149: 0 | O149: 0 | P149: 0 | Q149: 0 | R149: 0 | S149: 0 | T149: 0
D150: Closing Inspections Due - 2039 | E150: # Meters | F150: n/a | J150: 0 | K150: 0 | L150: 0 | M150: 0 | N150: 0 | O150: 0 | P150: 0 | Q150: 0 | R150: 0 | S150: 0 | T150: 0
D151: Closing Inspections Due - 2040 | E151: # Meters | F151: n/a | J151: 0 | K151: 0 | L151: 0 | M151: 0 | N151: 0 | O151: 0 | P151: 0 | Q151: 0 | R151: 0 | S151: 0 | T151: 0
D152: Closing Inspections Due - 2041 | E152: # Meters | F152: n/a | J152: 0 | K152: 0 | L152: 0 | M152: 0 | N152: 0 | O152: 0 | P152: 0 | Q152: 0 | R152: 0 | S152: 0 | T152: 0
D154: Total Outstanding Inspections Due | E154: # Meters | F154: n/a | J154: =SUM(J137:J152) -> 28384.66667 | K154: =SUM(K137:K152) -> 43018.6 | L154: 69877.1 | M154: 124691.4 | N154: 162221.6 | O154: 142776.9 | P154: 152200.4 | Q154: 161457.4 | R154: 170706.4 | S154: 180007.9 | T154: 189351.4
A156: =IF(SUM(J156:T156)=0,0,1) -> 0 | D156: Check - replacements | E156: n/a | F156: n/a | J156: =IF(ROUND(J97-J$54,3)=0,0,1) -> 0 | K156: =IF(ROUND(K97-K$54,3)=0,0,1) -> 0 | L156: 0 | M156: 0 | N156: 0 | O156: 0 | P156: 0 | Q156: 0 | R156: 0 | S156: 0 | T156: 0
A157: =IF(SUM(J157:T157)=0,0,1) -> 0 | D157: Check - inspections | E157: n/a | F157: n/a | J157: =IF(ROUND(J135-J$55,3)=0,0,1) -> 0 | K157: =IF(ROUND(K135-K$55,3)=0,0,1) -> 0 | L157: 0 | M157: 0 | N157: 0 | O157: 0 | P157: 0 | Q157: 0 | R157: 0 | S157: 0 | T157: 0
B159: Calculation | Inspection Delay and Meter Age
C161: Calculation | Chart Data - Inspection Delay
D163: Inspection Delay | E163: =E$4 -> Unit | F163: =F$4 -> Basis | J163: =IF(CF_Type=Annually,"FY"&RIGHT(J$3,2),TEXT(DATE(J$3,J$4,1),"mmm-yyyy")) -> FY26 | K163: FY27 | L163: FY28 | M163: FY29 | N163: FY30 | O163: FY31 | P163: FY32 | Q163: FY33 | R163: FY34 | S163: FY35 | T163: =$T$3 -> 2036
D165: ="Inspections - "&I61 -> Inspections - 2026 | E165: =Year -> year | F165: n/a | J165: 1 | K165: =J165+1 -> 2 | L165: =K165+1 -> 3 | M165: 4 | N165: 5 | O165: 6 | P165: 7 | Q165: 8 | R165: 9 | S165: 10 | T165: 11
D166: ="Inspections - "&I62 -> Inspections - 2027 | E166: year | F166: n/a | J166: 0 | K166: 1 | L166: =K166+1 -> 2 | M166: 3 | N166: 4 | O166: 5 | P166: 6 | Q166: 7 | R166: 8 | S166: 9 | T166: 10
D167: Inspections - 2028 | E167: year | F167: n/a | J167: 0 | K167: 0 | L167: 1 | M167: =L167+1 -> 2 | N167: 3 | O167: 4 | P167: 5 | Q167: 6 | R167: 7 | S167: 8 | T167: 9
D168: Inspections - 2029 | E168: year | F168: n/a | J168: 0 | K168: 0 | L168: 0 | M168: 1 | N168: =M168+1 -> 2 | O168: 3 | P168: 4 | Q168: 5 | R168: 6 | S168: 7 | T168: 8
D169: Inspections - 2030 | E169: year | F169: n/a | J169: 0 | K169: 0 | L169: 0 | M169: 0 | N169: 1 | O169: =N169+1 -> 2 | P169: 3 | Q169: 4 | R169: 5 | S169: 6 | T169: 7
D170: Inspections - 2031 | E170: year | F170: n/a | J170: 0 | K170: 0 | L170: 0 | M170: 0 | N170: 0 | O170: 1 | P170: =O170+1 -> 2 | Q170: 3 | R170: 4 | S170: 5 | T170: 6
D171: Inspections - 2032 | E171: year | F171: n/a | J171: 0 | K171: 0 | L171: 0 | M171: 0 | N171: 0 | O171: 0 | P171: 1 | Q171: =P171+1 -> 2 | R171: 3 | S171: 4 | T171: 5
D172: Inspections - 2033 | E172: year | F172: n/a | J172: 0 | K172: 0 | L172: 0 | M172: 0 | N172: 0 | O172: 0 | P172: 0 | Q172: 1 | R172: =Q172+1 -> 2 | S172: 3 | T172: 4
D173: Inspections - 2034 | E173: year | F173: n/a | J173: 0 | K173: 0 | L173: 0 | M173: 0 | N173: 0 | O173: 0 | P173: 0 | Q173: 0 | R173: 1 | S173: =R173+1 -> 2 | T173: 3
D174: Inspections - 2035 | E174: year | F174: n/a | J174: 0 | K174: 0 | L174: 0 | M174: 0 | N174: 0 | O174: 0 | P174: 0 | Q174: 0 | R174: 0 | S174: 1 | T174: =S174+1 -> 2
D175: Inspections - 2036 | E175: year | F175: n/a | J175: 0 | K175: 0 | L175: 0 | M175: 0 | N175: 0 | O175: 0 | P175: 0 | Q175: 0 | R175: 0 | S175: 0 | T175: 1
D176: Inspections - 2037 | E176: year | F176: n/a | J176: 0 | K176: 0 | L176: 0 | M176: 0 | N176: 0 | O176: 0 | P176: 0 | Q176: 0 | R176: 0 | S176: 0 | T176: 0
B178: End

Sheet Input|AER_DD_Vol
D1: =Model_Name -> Inspection and Replacement Obligation Volume Model | H1: Section Check: | J1: =IF(COUNTA($A$8:$A$178)=COUNTIF($A$8:$A$178,0),"Ok","Check") -> Ok | L1: Overall Check: | M1: =Overall_Check -> Ok | O1: Legend: | P1: Input | Q1: Internal | R1: Select | S1: Calculation
D2: =RIGHT(CELL("filename",D1),LEN(CELL("filename",D1))-FIND("]",CELL("filename",D1))) -> Input|AER_DD_Vol
H3: Year | J3: ='Input|RP_Vol'!$J$3 -> 2026 | K3: =IF(CF_Type=Annually,J3+1,IF(K4=1,J3+1,J3)) -> 2027 | L3: 2028 | M3: 2029 | N3: 2030 | O3: 2031 | P3: 2032 | Q3: 2033 | R3: 2034 | S3: 2035 | T3: 2036
E4: Unit | F4: Basis | H4: Month | J4: =IF(CF_Type=Annually,NA,Start_Month) -> n/a | K4: =IF(J4=NA,NA,IF(J4+1=Months_in_year,Months_in_year,MOD(J4+1,Months_in_year))) -> n/a | L4: n/a | M4: n/a | N4: n/a | O4: n/a | P4: n/a | Q4: n/a | R4: n/a | S4: n/a | T4: n/a
B6: Copyright Jemena Limited. All rights reserved. Jemena is not liable for any loss caused by reliance on this document.
B8: Input | Impact of Replacement Volumes on Inspection Obligations
C10: ="Calculation | "&'Output|Charts'!P14&" outstanding inspection obligations / replacements" -> Calculation | Adjusted AER DD outstanding inspection obligations / replacements
D12: Item | E12: =E$4 -> Unit | F12: =F$4 -> Basis | G12: Installation Year | H12: Installation Volume (#) | I12: Inspection Year | J12: =IF(CF_Type=Annually,"FY"&RIGHT(J$3,2),TEXT(DATE(J$3,J$4,1),"mmm-yyyy")) -> FY26 | K12: FY27 | L12: FY28 | M12: FY29 | N12: FY30 | O12: FY31 | P12: FY32 | Q12: FY33 | R12: FY34 | S12: FY35 | T12: =$T$3 -> 2036
D14: ='Input|Installations'!D39 -> Inspection obligation starts after x years | E14: Years | F14: n/a | I14: ='Input|Installations'!$J$39 -> 15
D15: ='Input|Installations'!D40 -> Inspection avoided if replacements done within x years | E15: Years | F15: n/a | I15: 1
D17: ="Inspection obligation - "&G17&" Installations" -> Inspection obligation - 2010 Installations | E17: # Meters | F17: n/a | G17: ='Input|Installations'!F13 -> 2010 | H17: ='Input|Installations'!N13 -> 28384.66667 | I17: =G17+$I$14+1 -> 2026 | J17: =AND(J$3>=$I17,J$3<=$I17+$I$15-1)*$H17/$I$15 -> 28384.66667 | K17: =AND(K$3>=$I17,K$3<=$I17+$I$15-1)*$H17/$I$15 -> 0 | L17: 0 | M17: 0 | N17: 0 | O17: 0 | P17: 0 | Q17: 0 | R17: 0 | S17: 0 | T17: 0
D18: ="Inspection obligation - "&G18&" Installations" -> Inspection obligation - 2011 Installations | E18: # Meters | F18: n/a | G18: ='Input|Installations'!F14 -> 2011 | H18: ='Input|Installations'!N14 -> 36918.33333 | I18: =G18+$I$14+1 -> 2027 | J18: =AND(J$3>=$I18,J$3<=$I18+$I$15-1)*$H18/$I$15 -> 0 | K18: 36918.33333 | L18: 0 | M18: 0 | N18: 0 | O18: 0 | P18: 0 | Q18: 0 | R18: 0 | S18: 0 | T18: 0
D19: Inspection obligation - 2012 Installations | E19: # Meters | F19: n/a | G19: ='Input|Installations'!F15 -> 2012 | H19: ='Input|Installations'!N15 -> 56660.5 | I19: 2028 | J19: 0 | K19: 0 | L19: 56660.5 | M19: 0 | N19: 0 | O19: 0 | P19: 0 | Q19: 0 | R19: 0 | S19: 0 | T19: 0
D20: Inspection obligation - 2013 Installations | E20: # Meters | F20: n/a | G20: ='Input|Installations'!F16 -> 2013 | H20: ='Input|Installations'!N16 -> 89616.5 | I20: 2029 | J20: 0 | K20: 0 | L20: 0 | M20: 89616.5 | N20: 0 | O20: 0 | P20: 0 | Q20: 0 | R20: 0 | S20: 0 | T20: 0
D21: Inspection obligation - 2014 Installations | E21: # Meters | F21: n/a | G21: ='Input|Installations'!F17 -> 2014 | H21: ='Input|Installations'!N17 -> 75332 | I21: 2030 | J21: 0 | K21: 0 | L21: 0 | M21: 0 | N21: 75332 | O21: 0 | P21: 0 | Q21: 0 | R21: 0 | S21: 0 | T21: 0
D22: Inspection obligation - 2015 Installations | E22: # Meters | F22: n/a | G22: ='Input|Installations'!F18 -> 2015 | H22: ='Input|Installations'!N18 -> 22219.5 | I22: 2031 | J22: 0 | K22: 0 | L22: 0 | M22: 0 | N22: 0 | O22: 22219.5 | P22: 0 | Q22: 0 | R22: 0 | S22: 0 | T22: 0
D23: Inspection obligation - 2016 Installations | E23: # Meters | F23: n/a | G23: ='Input|Installations'!F19 -> 2016 | H23: ='Input|Installations'!N19 -> 9423.5 | I23: 2032 | J23: 0 | K23: 0 | L23: 0 | M23: 0 | N23: 0 | O23: 0 | P23: 9423.5 | Q23: 0 | R23: 0 | S23: 0 | T23: 0
D24: Inspection obligation - 2017 Installations | E24: # Meters | F24: n/a | G24: ='Input|Installations'!F20 -> 2017 | H24: ='Input|Installations'!N20 -> 9257 | I24: 2033 | J24: 0 | K24: 0 | L24: 0 | M24: 0 | N24: 0 | O24: 0 | P24: 0 | Q24: 9257 | R24: 0 | S24: 0 | T24: 0
D25: Inspection obligation - 2018 Installations | E25: # Meters | F25: n/a | G25: ='Input|Installations'!F21 -> 2018 | H25: ='Input|Installations'!N21 -> 9249 | I25: 2034 | J25: 0 | K25: 0 | L25: 0 | M25: 0 | N25: 0 | O25: 0 | P25: 0 | Q25: 0 | R25: 9249 | S25: 0 | T25: 0
D26: Inspection obligation - 2019 Installations | E26: # Meters | F26: n/a | G26: ='Input|Installations'!F22 -> 2019 | H26: ='Input|Installations'!N22 -> 9301.5 | I26: 2035 | J26: 0 | K26: 0 | L26: 0 | M26: 0 | N26: 0 | O26: 0 | P26: 0 | Q26: 0 | R26: 0 | S26: 9301.5 | T26: 0
D27: Inspection obligation - 2020 Installations | E27: # Meters | F27: n/a | G27: ='Input|Installations'!F23 -> 2020 | H27: ='Input|Installations'!N23 -> 9343.5 | I27: 2036 | J27: 0 | K27: 0 | L27: 0 | M27: 0 | N27: 0 | O27: 0 | P27: 0 | Q27: 0 | R27: 0 | S27: 0 | T27: 9343.5
D28: Inspection obligation - 2021 Installations | E28: # Meters | F28: n/a | G28: ='Input|Installations'!F24 -> 2021 | H28: ='Input|Installations'!N24 -> 8430 | I28: 2037 | J28: 0 | K28: 0 | L28: 0 | M28: 0 | N28: 0 | O28: 0 | P28: 0 | Q28: 0 | R28: 0 | S28: 0 | T28: 0
D29: Inspection obligation - 2022 Installations | E29: # Meters | F29: n/a | G29: ='Input|Installations'!F25 -> 2022 | H29: ='Input|Installations'!N25 -> 9186 | I29: 2038 | J29: 0 | K29: 0 | L29: 0 | M29: 0 | N29: 0 | O29: 0 | P29: 0 | Q29: 0 | R29: 0 | S29: 0 | T29: 0
D30: Inspection obligation - 2023 Installations | E30: # Meters | F30: n/a | G30: ='Input|Installations'!F26 -> 2023 | H30: ='Input|Installations'!N26 -> 9538 | I30: 2039 | J30: 0 | K30: 0 | L30: 0 | M30: 0 | N30: 0 | O30: 0 | P30: 0 | Q30: 0 | R30: 0 | S30: 0 | T30: 0
D31: Inspection obligation - 2024 Installations | E31: # Meters | F31: n/a | G31: ='Input|Installations'!F27 -> 2024 | H31: ='Input|Installations'!N27 -> 8283 | I31: 2040 | J31: 0 | K31: 0 | L31: 0 | M31: 0 | N31: 0 | O31: 0 | P31: 0 | Q31: 0 | R31: 0 | S31: 0 | T31: 0
D32: Inspection obligation - 2025 Installations | E32: # Meters | F32: n/a | G32: ='Input|Installations'!F28 -> 2025 | H32: ='Input|Installations'!N28 -> 8983 | I32: 2041 | J32: 0 | K32: 0 | L32: 0 | M32: 0 | N32: 0 | O32: 0 | P32: 0 | Q32: 0 | R32: 0 | S32: 0 | T32: 0
D34: Total inspection obligation | E34: # Meters | F34: n/a | J34: =SUM(J17:J32) -> 28384.66667 | K34: =SUM(K17:K32) -> 36918.33333 | L34: 56660.5 | M34: 89616.5 | N34: 75332 | O34: 22219.5 | P34: 9423.5 | Q34: 9257 | R34: 9249 | S34: 9301.5 | T34: 9343.5
D36: Smoothing adjustment | E36: # Meters | F36: n/a | J36: 0 | K36: 0 | L36: 0 | M36: 0 | N36: 0 | O36: 0 | P36: 0 | Q36: 0 | R36: 0 | S36: 0 | T36: 0
D38: Total smoothed inspection obligations | E38: # Meters | F38: n/a | J38: =J34+J36 -> 28384.66667 | K38: =K34+K36 -> 36918.33333 | L38: 56660.5 | M38: 89616.5 | N38: 75332 | O38: 22219.5 | P38: 9423.5 | Q38: 9257 | R38: 9249 | S38: 9301.5 | T38: 9343.5
D40: Less allowed replacements | E40: # Meters | F40: n/a | J40: 0 | K40: =-'Output|Charts'!Q14 -> -3032.714142 | L40: =-'Output|Charts'!R14 -> -18196.28485 | M40: =-'Output|Charts'!S14 -> -30327.14142 | N40: =-'Output|Charts'!T14 -> -36392.5697 | O40: =-'Output|Charts'!U14 -> -42457.99799
D42: Outstanding Inspections | E42: # Meters | F42: n/a | J42: =MAX(0,J38+SUM(J40:J40)) -> 28384.66667 | K42: 33885.61919 | L42: 38464.21515 | M42: 59289.35858 | N42: 38939.4303 | O42: 0 | P42: 9423.5 | Q42: 9257 | R42: 9249 | S42: 9301.5 | T42: 9343.5
D44: Cumulative outstanding inspections / replacements | E44: # Meters | F44: n/a | J44: =SUM($J42:J42) -> 28384.66667 | K44: =SUM($J42:K42) -> 62270.28586 | L44: =SUM($J42:L42) -> 100734.501 | M44: =SUM($J42:M42) -> 160023.8596 | N44: =SUM($J42:N42) -> 198963.2899 | O44: =SUM($J42:O42) -> 198963.2899 | P44: =SUM($J42:P42) -> 208386.7899 | Q44: =SUM($J42:Q42) -> 217643.7899 | R44: =SUM($J42:R42) -> 226892.7899 | S44: =SUM($J42:S42) -> 236194.2899 | T44: =SUM($J42:T42) -> 245537.7899
D46: Meters remaining in the field due for inspection / replacements | E46: # Meters | F46: n/a | J46: =SUMIF($I$17:$I$32,"<="&J$3,$H$17:$H$32)+SUM($J40:J40) -> 28384.66667 | K46: =SUMIF($I$17:$I$32,"<="&K$3,$H$17:$H$32)+SUM($J40:K40) -> 62270.28586 | L46: =SUMIF($I$17:$I$32,"<="&L$3,$H$17:$H$32)+SUM($J40:L40) -> 100734.501 | M46: =SUMIF($I$17:$I$32,"<="&M$3,$H$17:$H$32)+SUM($J40:M40) -> 160023.8596 | N46: =SUMIF($I$17:$I$32,"<="&N$3,$H$17:$H$32)+SUM($J40:N40) -> 198963.2899 | O46: =SUMIF($I$17:$I$32,"<="&O$3,$H$17:$H$32)+SUM($J40:O40) -> 178724.7919 | P46: =SUMIF($I$17:$I$32,"<="&P$3,$H$17:$H$32)+SUM($J40:P40) -> 188148.2919 | Q46: =SUMIF($I$17:$I$32,"<="&Q$3,$H$17:$H$32)+SUM($J40:Q40) -> 197405.2919 | R46: =SUMIF($I$17:$I$32,"<="&R$3,$H$17:$H$32)+SUM($J40:R40) -> 206654.2919 | S46: =SUMIF($I$17:$I$32,"<="&S$3,$H$17:$H$32)+SUM($J40:S40) -> 215955.7919 | T46: =SUMIF($I$17:$I$32,"<="&T$3,$H$17:$H$32)+SUM($J40:T40) -> 225299.2919
B48: Input | Allocation of annual replacements and inspections to meter installation year
D50: Summary | E50: =E$4 -> Unit | F50: =F$4 -> Basis | J50: =IF(CF_Type=Annually,"FY"&RIGHT(J$3,2),TEXT(DATE(J$3,J$4,1),"mmm-yyyy")) -> FY26 | K50: FY27 | L50: FY28 | M50: FY29 | N50: FY30 | O50: FY31 | P50: FY32 | Q50: FY33 | R50: FY34 | S50: FY35 | T50: =$T$3 -> 2036
D52: =H12 -> Installation Volume (#) | E52: # Meters | F52: n/a | J52: =TRANSPOSE(H17:H27) -> 28384.66667 | K52: 36918.33333 | L52: 56660.5 | M52: 89616.5 | N52: 75332 | O52: 22219.5 | P52: 9423.5 | Q52: 9257 | R52: 9249 | S52: 9301.5 | T52: 9343.5
D54: Less allowed replacements | E54: # Meters | F54: n/a | J54: 0 | K54: =-'Output|Charts'!Q14 -> -3032.714142 | L54: =-'Output|Charts'!R14 -> -18196.28485 | M54: =-'Output|Charts'!S14 -> -30327.14142 | N54: =-'Output|Charts'!T14 -> -36392.5697 | O54: =-'Output|Charts'!U14 -> -42457.99799
D55: Less allowed inspections | E55: # Meters | F55: n/a | J55: 0 | K55: =-'Output|Charts'!Q37 -> 0 | L55: =-'Output|Charts'!R37 -> 0 | M55: =-'Output|Charts'!S37 -> 0 | N55: =-'Output|Charts'!T37 -> 0 | O55: =-'Output|Charts'!U37 -> 0
D57: =D44 -> Cumulative outstanding inspections / replacements | E57: # Meters | F57: n/a | J57: =SUM($J52:J55) -> 28384.66667 | K57: =SUM($J52:K55) -> 62270.28586 | L57: =SUM($J52:L55) -> 100734.501 | M57: =SUM($J52:M55) -> 160023.8596 | N57: =SUM($J52:N55) -> 198963.2899 | O57: =SUM($J52:O55) -> 178724.7919 | P57: =SUM($J52:P55) -> 188148.2919 | Q57: =SUM($J52:Q55) -> 197405.2919 | R57: =SUM($J52:R55) -> 206654.2919 | S57: =SUM($J52:S55) -> 215955.7919 | T57: =SUM($J52:T55) -> 225299.2919
D59: Inspection Volumes - 2026-31 Regulatory Period | E59: =E$4 -> Unit | F59: =F$4 -> Basis | G59: Installation Year | H59: Installation Volume (#) | I59: Inspection Year | J59: =IF(CF_Type=Annually,"FY"&RIGHT(J$3,2),TEXT(DATE(J$3,J$4,1),"mmm-yyyy")) -> FY26 | K59: FY27 | L59: FY28 | M59: FY29 | N59: FY30 | O59: FY31 | P59: FY32 | Q59: FY33 | R59: FY34 | S59: FY35 | T59: FY36
D61: ="Opening Inspections Due - "&I61 -> Opening Inspections Due - 2026 | E61: # Meters | F61: n/a | G61: =G17 -> 2010 | H61: 28384.66667 | I61: 2026 | J61: =IF(J$3=$I61,$H61,I137) -> 28384.66667 | K61: 28384.66667 | L61: 25351.95252 | M61: 7155.667673 | N61: 0 | O61: 0 | P61: 0 | Q61: 0 | R61: 0 | S61: 0 | T61: 0
D62: Opening Inspections Due - 2027 | E62: # Meters | F62: n/a | G62: 2011 | H62: 36918.33333 | I62: 2027 | J62: 0 | K62: 36918.33333 | L62: 36918.33333 | M62: 36918.33333 | N62: 13746.85959 | O62: 0 | P62: 0 | Q62: 0 | R62: 0 | S62: 0 | T62: 0
D63: Opening Inspections Due - 2028 | E63: # Meters | F63: n/a | G63: 2012 | H63: 56660.5 | I63: 2028 | J63: 0 | K63: 0 | L63: 56660.5 | M63: 56660.5 | N63: 56660.5 | O63: 34014.78989 | P63: 0 | Q63: 0 | R63: 0 | S63: 0 | T63: 0
D64: Opening Inspections Due - 2029 | E64: # Meters | F64: n/a | G64: 2013 | H64: 89616.5 | I64: 2029 | J64: 0 | K64: 0 | L64: 0 | M64: 89616.5 | N64: 89616.5 | O64: 89616.5 | P64: 81173.2919 | Q64: 81173.2919 | R64: 81173.2919 | S64: 81173.2919 | T64: 81173.2919
D65: Opening Inspections Due - 2030 | E65: # Meters | F65: n/a | G65: 2014 | H65: 75332 | I65: 2030 | J65: 0 | K65: 0 | L65: 0 | M65: 0 | N65: 75332 | O65: 75332 | P65: 75332 | Q65: 75332 | R65: 75332 | S65: 75332 | T65: 75332
D66: Opening Inspections Due - 2031 | E66: # Meters | F66: n/a | G66: 2015 | H66: 22219.5 | I66: 2031 | J66: 0 | K66: 0 | L66: 0 | M66: 0 | N66: 0 | O66: 22219.5 | P66: 22219.5 | Q66: 22219.5 | R66: 22219.5 | S66: 22219.5 | T66: 22219.5
D67: Opening Inspections Due - 2032 | E67: # Meters | F67: n/a | G67: 2016 | H67: 9423.5 | I67: 2032 | J67: 0 | K67: 0 | L67: 0 | M67: 0 | N67: 0 | O67: 0 | P67: 9423.5 | Q67: 9423.5 | R67: 9423.5 | S67: 9423.5 | T67: 9423.5
D68: Opening Inspections Due - 2033 | E68: # Meters | F68: n/a | G68: 2017 | H68: 9257 | I68: 2033 | J68: 0 | K68: 0 | L68: 0 | M68: 0 | N68: 0 | O68: 0 | P68: 0 | Q68: 9257 | R68: 9257 | S68: 9257 | T68: 9257
D69: Opening Inspections Due - 2034 | E69: # Meters | F69: n/a | G69: 2018 | H69: 9249 | I69: 2034 | J69: 0 | K69: 0 | L69: 0 | M69: 0 | N69: 0 | O69: 0 | P69: 0 | Q69: 0 | R69: 9249 | S69: 9249 | T69: 9249
D70: Opening Inspections Due - 2035 | E70: # Meters | F70: n/a | G70: 2019 | H70: 9301.5 | I70: 2035 | J70: 0 | K70: 0 | L70: 0 | M70: 0 | N70: 0 | O70: 0 | P70: 0 | Q70: 0 | R70: 0 | S70: 9301.5 | T70: 9301.5
D71: Opening Inspections Due - 2036 | E71: # Meters | F71: n/a | G71: 2020 | H71: 9343.5 | I71: 2036 | J71: 0 | K71: 0 | L71: 0 | M71: 0 | N71: 0 | O71: 0 | P71: 0 | Q71: 0 | R71: 0 | S71: 0 | T71: 9343.5
D72: Opening Inspections Due - 2037 | E72: # Meters | F72: n/a | G72: 2021 | H72: 8430 | I72: 2037 | J72: 0 | K72: 0 | L72: 0 | M72: 0 | N72: 0 | O72: 0 | P72: 0 | Q72: 0 | R72: 0 | S72: 0 | T72: 0
D73: Opening Inspections Due - 2038 | E73: # Meters | F73: n/a | G73: 2022 | H73: 9186 | I73: 2038 | J73: 0 | K73: 0 | L73: 0 | M73: 0 | N73: 0 | O73: 0 | P73: 0 | Q73: 0 | R73: 0 | S73: 0 | T73: 0
D74: Opening Inspections Due - 2039 | E74: # Meters | F74: n/a | G74: 2023 | H74: 9538 | I74: 2039 | J74: 0 | K74: 0 | L74: 0 | M74: 0 | N74: 0 | O74: 0 | P74: 0 | Q74: 0 | R74: 0 | S74: 0 | T74: 0
D75: Opening Inspections Due - 2040 | E75: # Meters | F75: n/a | G75: 2024 | H75: 8283 | I75: 2040 | J75: 0 | K75: 0 | L75: 0 | M75: 0 | N75: 0 | O75: 0 | P75: 0 | Q75: 0 | R75: 0 | S75: 0 | T75: 0
D76: Opening Inspections Due - 2041 | E76: # Meters | F76: n/a | G76: 2025 | H76: 8983 | I76: 2041 | J76: 0 | K76: 0 | L76: 0 | M76: 0 | N76: 0 | O76: 0 | P76: 0 | Q76: 0 | R76: 0 | S76: 0 | T76: 0
D78: Total Opening Inspections Due | E78: # Meters | F78: n/a | J78: =SUM(J61:J76) -> 28384.66667 | K78: =SUM(K61:K76) -> 65303 | L78: 118930.7859 | M78: 190351.001 | N78: 235355.8596 | O78: 221182.7899 | P78: 188148.2919 | Q78: 197405.2919 | R78: 206654.2919 | S78: 215955.7919 | T78: 225299.2919
D80: ="Inspections avoided due to replacements - "&I61 -> Inspections avoided due to replacements - 2026 | E80: # Meters | F80: n/a | J80: 0 | K80: =K$54 -> -3032.714142 | L80: =L$54 -> -18196.28485 | M80: =-M61 -> -7155.667673 | N80: 0 | O80: 0 | P80: 0 | Q80: 0 | R80: 0 | S80: 0 | T80: 0
D81: Inspections avoided due to replacements - 2027 | E81: # Meters | F81: n/a | J81: 0 | K81: 0 | L81: 0 | M81: =M$54-M80 -> -23171.47375 | N81: =-N62 -> -13746.85959 | O81: 0 | P81: 0 | Q81: 0 | R81: 0 | S81: 0 | T81: 0
D82: Inspections avoided due to replacements - 2028 | E82: # Meters | F82: n/a | J82: 0 | K82: 0 | L82: 0 | M82: 0 | N82: =N$54-N81 -> -22645.71011 | O82: =-O63 -> -34014.78989 | P82: 0 | Q82: 0 | R82: 0 | S82: 0 | T82: 0
D83: Inspections avoided due to replacements - 2029 | E83: # Meters | F83: n/a | J83: 0 | K83: 0 | L83: 0 | M83: 0 | N83: 0 | O83: =O$54-O82 -> -8443.208101 | P83: 0 | Q83: 0 | R83: 0 | S83: 0 | T83: 0
D84: Inspections avoided due to replacements - 2030 | E84: # Meters | F84: n/a | J84: 0 | K84: 0 | L84: 0 | M84: 0 | N84: 0 | O84: 0 | P84: 0 | Q84: 0 | R84: 0 | S84: 0 | T84: 0
D85: Inspections avoided due to replacements - 2031 | E85: # Meters | F85: n/a | J85: 0 | K85: 0 | L85: 0 | M85: 0 | N85: 0 | O85: 0 | P85: 0 | Q85: 0 | R85: 0 | S85: 0 | T85: 0
D86: Inspections avoided due to replacements - 2032 | E86: # Meters | F86: n/a | J86: 0 | K86: 0 | L86: 0 | M86: 0 | N86: 0 | O86: 0 | P86: 0 | Q86: 0 | R86: 0 | S86: 0 | T86: 0
D87: Inspections avoided due to replacements - 2033 | E87: # Meters | F87: n/a | J87: 0 | K87: 0 | L87: 0 | M87: 0 | N87: 0 | O87: 0 | P87: 0 | Q87: 0 | R87: 0 | S87: 0 | T87: 0
D88: Inspections avoided due to replacements - 2034 | E88: # Meters | F88: n/a | J88: 0 | K88: 0 | L88: 0 | M88: 0 | N88: 0 | O88: 0 | P88: 0 | Q88: 0 | R88: 0 | S88: 0 | T88: 0
D89: Inspections avoided due to replacements - 2035 | E89: # Meters | F89: n/a | J89: 0 | K89: 0 | L89: 0 | M89: 0 | N89: 0 | O89: 0 | P89: 0 | Q89: 0 | R89: 0 | S89: 0 | T89: 0
D90: Inspections avoided due to replacements - 2036 | E90: # Meters | F90: n/a | J90: 0 | K90: 0 | L90: 0 | M90: 0 | N90: 0 | O90: 0 | P90: 0 | Q90: 0 | R90: 0 | S90: 0 | T90: 0
D91: Inspections avoided due to replacements - 2037 | E91: # Meters | F91: n/a | J91: 0 | K91: 0 | L91: 0 | M91: 0 | N91: 0 | O91: 0 | P91: 0 | Q91: 0 | R91: 0 | S91: 0 | T91: 0
D92: Inspections avoided due to replacements - 2038 | E92: # Meters | F92: n/a | J92: 0 | K92: 0 | L92: 0 | M92: 0 | N92: 0 | O92: 0 | P92: 0 | Q92: 0 | R92: 0 | S92: 0 | T92: 0
D93: Inspections avoided due to replacements - 2039 | E93: # Meters | F93: n/a | J93: 0 | K93: 0 | L93: 0 | M93: 0 | N93: 0 | O93: 0 | P93: 0 | Q93: 0 | R93: 0 | S93: 0 | T93: 0
D94: Inspections avoided due to replacements - 2040 | E94: # Meters | F94: n/a | J94: 0 | K94: 0 | L94: 0 | M94: 0 | N94: 0 | O94: 0 | P94: 0 | Q94: 0 | R94: 0 | S94: 0 | T94: 0
D95: Inspections avoided due to replacements - 2041 | E95: # Meters | F95: n/a | J95: 0 | K95: 0 | L95: 0 | M95: 0 | N95: 0 | O95: 0 | P95: 0 | Q95: 0 | R95: 0 | S95: 0 | T95: 0
D97: Total inspections avoided due to replacements | E97: # Meters | F97: n/a | J97: =SUM(J80:J95) -> 0 | K97: =SUM(K80:K95) -> -3032.714142 | L97: -18196.28485 | M97: -30327.14142 | N97: -36392.5697 | O97: -42457.99799 | P97: 0 | Q97: 0 | R97: 0 | S97: 0 | T97: 0
D99: ="Interim Balance - Prior to inspections - "&I61 -> Interim Balance - Prior to inspections - 2026 | E99: # Meters | F99: n/a | J99: =J61+J80 -> 28384.66667 | K99: =K61+K80 -> 25351.95252 | L99: 7155.667673 | M99: 0 | N99: 0 | O99: 0 | P99: 0 | Q99: 0 | R99: 0 | S99: 0 | T99: 0
D100: ="Interim Balance - Prior to inspections - "&I62 -> Interim Balance - Prior to inspections - 2027 | E100: # Meters | F100: n/a | J100: =J62+J81 -> 0 | K100: 36918.33333 | L100: 36918.33333 | M100: 13746.85959 | N100: 0 | O100: 0 | P100: 0 | Q100: 0 | R100: 0 | S100: 0 | T100: 0
D101: Interim Balance - Prior to inspections - 2028 | E101: # Meters | F101: n/a | J101: 0 | K101: 0 | L101: 56660.5 | M101: 56660.5 | N101: 34014.78989 | O101: 0 | P101: 0 | Q101: 0 | R101: 0 | S101: 0 | T101: 0
D102: Interim Balance - Prior to inspections - 2029 | E102: # Meters | F102: n/a | J102: 0 | K102: 0 | L102: 0 | M102: 89616.5 | N102: 89616.5 | O102: 81173.2919 | P102: 81173.2919 | Q102: 81173.2919 | R102: 81173.2919 | S102: 81173.2919 | T102: 81173.2919
D103: Interim Balance - Prior to inspections - 2030 | E103: # Meters | F103: n/a | J103: 0 | K103: 0 | L103: 0 | M103: 0 | N103: 75332 | O103: 75332 | P103: 75332 | Q103: 75332 | R103: 75332 | S103: 75332 | T103: 75332
D104: Interim Balance - Prior to inspections - 2031 | E104: # Meters | F104: n/a | J104: 0 | K104: 0 | L104: 0 | M104: 0 | N104: 0 | O104: 22219.5 | P104: 22219.5 | Q104: 22219.5 | R104: 22219.5 | S104: 22219.5 | T104: 22219.5
D105: Interim Balance - Prior to inspections - 2032 | E105: # Meters | F105: n/a | J105: 0 | K105: 0 | L105: 0 | M105: 0 | N105: 0 | O105: 0 | P105: 9423.5 | Q105: 9423.5 | R105: 9423.5 | S105: 9423.5 | T105: 9423.5
D106: Interim Balance - Prior to inspections - 2033 | E106: # Meters | F106: n/a | J106: 0 | K106: 0 | L106: 0 | M106: 0 | N106: 0 | O106: 0 | P106: 0 | Q106: 9257 | R106: 9257 | S106: 9257 | T106: 9257
D107: Interim Balance - Prior to inspections - 2034 | E107: # Meters | F107: n/a | J107: 0 | K107: 0 | L107: 0 | M107: 0 | N107: 0 | O107: 0 | P107: 0 | Q107: 0 | R107: 9249 | S107: 9249 | T107: 9249
D108: Interim Balance - Prior to inspections - 2035 | E108: # Meters | F108: n/a | J108: 0 | K108: 0 | L108: 0 | M108: 0 | N108: 0 | O108: 0 | P108: 0 | Q108: 0 | R108: 0 | S108: 9301.5 | T108: 9301.5
D109: Interim Balance - Prior to inspections - 2036 | E109: # Meters | F109: n/a | J109: 0 | K109: 0 | L109: 0 | M109: 0 | N109: 0 | O109: 0 | P109: 0 | Q109: 0 | R109: 0 | S109: 0 | T109: 9343.5
D110: Interim Balance - Prior to inspections - 2037 | E110: # Meters | F110: n/a | J110: 0 | K110: 0 | L110: 0 | M110: 0 | N110: 0 | O110: 0 | P110: 0 | Q110: 0 | R110: 0 | S110: 0 | T110: 0
D111: Interim Balance - Prior to inspections - 2038 | E111: # Meters | F111: n/a | J111: 0 | K111: 0 | L111: 0 | M111: 0 | N111: 0 | O111: 0 | P111: 0 | Q111: 0 | R111: 0 | S111: 0 | T111: 0
D112: Interim Balance - Prior to inspections - 2039 | E112: # Meters | F112: n/a | J112: 0 | K112: 0 | L112: 0 | M112: 0 | N112: 0 | O112: 0 | P112: 0 | Q112: 0 | R112: 0 | S112: 0 | T112: 0
D113: Interim Balance - Prior to inspections - 2040 | E113: # Meters | F113: n/a | J113: 0 | K113: 0 | L113: 0 | M113: 0 | N113: 0 | O113: 0 | P113: 0 | Q113: 0 | R113: 0 | S113: 0 | T113: 0
D114: Interim Balance - Prior to inspections - 2041 | E114: # Meters | F114: n/a | J114: 0 | K114: 0 | L114: 0 | M114: 0 | N114: 0 | O114: 0 | P114: 0 | Q114: 0 | R114: 0 | S114: 0 | T114: 0
D116: Total Interim Balance | E116: # Meters | F116: n/a | J116: =SUM(J99:J114) -> 28384.66667 | K116: =SUM(K99:K114) -> 62270.28586 | L116: 100734.501 | M116: 160023.8596 | N116: 198963.2899 | O116: 178724.7919 | P116: 188148.2919 | Q116: 197405.2919 | R116: 206654.2919 | S116: 215955.7919 | T116: 225299.2919
D118: ="Inspections completed - "&I61 -> Inspections completed - 2026 | E118: # Meters | F118: n/a | J118: 0 | K118: 0 | L118: 0 | M118: 0 | N118: 0 | O118: 0 | P118: 0 | Q118: 0 | R118: 0 | S118: 0 | T118: 0
D119: ="Inspections completed - "&I62 -> Inspections completed - 2027 | E119: # Meters | F119: n/a | J119: 0 | K119: 0 | L119: 0 | M119: 0 | N119: 0 | O119: 0 | P119: 0 | Q119: 0 | R119: 0 | S119: 0 | T119: 0
D120: Inspections completed - 2028 | E120: # Meters | F120: n/a | J120: 0 | K120: 0 | L120: 0 | M120: 0 | N120: 0 | O120: 0 | P120: 0 | Q120: 0 | R120: 0 | S120: 0 | T120: 0
D121: Inspections completed - 2029 | E121: # Meters | F121: n/a | J121: 0 | K121: 0 | L121: 0 | M121: 0 | N121: 0 | O121: 0 | P121: 0 | Q121: 0 | R121: 0 | S121: 0 | T121: 0
D122: Inspections completed - 2030 | E122: # Meters | F122: n/a | J122: 0 | K122: 0 | L122: 0 | M122: 0 | N122: 0 | O122: 0 | P122: 0 | Q122: 0 | R122: 0 | S122: 0 | T122: 0
D123: Inspections completed - 2031 | E123: # Meters | F123: n/a | J123: 0 | K123: 0 | L123: 0 | M123: 0 | N123: 0 | O123: 0 | P123: 0 | Q123: 0 | R123: 0 | S123: 0 | T123: 0
D124: Inspections completed - 2032 | E124: # Meters | F124: n/a | J124: 0 | K124: 0 | L124: 0 | M124: 0 | N124: 0 | O124: 0 | P124: 0 | Q124: 0 | R124: 0 | S124: 0 | T124: 0
D125: Inspections completed - 2033 | E125: # Meters | F125: n/a | J125: 0 | K125: 0 | L125: 0 | M125: 0 | N125: 0 | O125: 0 | P125: 0 | Q125: 0 | R125: 0 | S125: 0 | T125: 0
D126: Inspections completed - 2034 | E126: # Meters | F126: n/a | J126: 0 | K126: 0 | L126: 0 | M126: 0 | N126: 0 | O126: 0 | P126: 0 | Q126: 0 | R126: 0 | S126: 0 | T126: 0
D127: Inspections completed - 2035 | E127: # Meters | F127: n/a | J127: 0 | K127: 0 | L127: 0 | M127: 0 | N127: 0 | O127: 0 | P127: 0 | Q127: 0 | R127: 0 | S127: 0 | T127: 0
D128: Inspections completed - 2036 | E128: # Meters | F128: n/a | J128: 0 | K128: 0 | L128: 0 | M128: 0 | N128: 0 | O128: 0 | P128: 0 | Q128: 0 | R128: 0 | S128: 0 | T128: 0
D129: Inspections completed - 2037 | E129: # Meters | F129: n/a | J129: 0 | K129: 0 | L129: 0 | M129: 0 | N129: 0 | O129: 0 | P129: 0 | Q129: 0 | R129: 0 | S129: 0 | T129: 0
D130: Inspections completed - 2038 | E130: # Meters | F130: n/a | J130: 0 | K130: 0 | L130: 0 | M130: 0 | N130: 0 | O130: 0 | P130: 0 | Q130: 0 | R130: 0 | S130: 0 | T130: 0
D131: Inspections completed - 2039 | E131: # Meters | F131: n/a | J131: 0 | K131: 0 | L131: 0 | M131: 0 | N131: 0 | O131: 0 | P131: 0 | Q131: 0 | R131: 0 | S131: 0 | T131: 0
D132: Inspections completed - 2040 | E132: # Meters | F132: n/a | J132: 0 | K132: 0 | L132: 0 | M132: 0 | N132: 0 | O132: 0 | P132: 0 | Q132: 0 | R132: 0 | S132: 0 | T132: 0
D133: Inspections completed - 2041 | E133: # Meters | F133: n/a | J133: 0 | K133: 0 | L133: 0 | M133: 0 | N133: 0 | O133: 0 | P133: 0 | Q133: 0 | R133: 0 | S133: 0 | T133: 0
D135: Total inspections completed | E135: # Meters | F135: n/a | J135: =SUM(J118:J133) -> 0 | K135: =SUM(K118:K133) -> 0 | L135: 0 | M135: 0 | N135: 0 | O135: 0 | P135: 0 | Q135: 0 | R135: 0 | S135: 0 | T135: 0
D137: ="Closing Inspections Due - "&I61 -> Closing Inspections Due - 2026 | E137: # Meters | F137: n/a | J137: =J61+J80+J118 -> 28384.66667 | K137: =K61+K80+K118 -> 25351.95252 | L137: 7155.667673 | M137: 0 | N137: 0 | O137: 0 | P137: 0 | Q137: 0 | R137: 0 | S137: 0 | T137: 0
D138: Closing Inspections Due - 2027 | E138: # Meters | F138: n/a | J138: =J62+J81+J119 -> 0 | K138: 36918.33333 | L138: 36918.33333 | M138: 13746.85959 | N138: 0 | O138: 0 | P138: 0 | Q138: 0 | R138: 0 | S138: 0 | T138: 0
D139: Closing Inspections Due - 2028 | E139: # Meters | F139: n/a | J139: 0 | K139: 0 | L139: 56660.5 | M139: 56660.5 | N139: 34014.78989 | O139: 0 | P139: 0 | Q139: 0 | R139: 0 | S139: 0 | T139: 0
D140: Closing Inspections Due - 2029 | E140: # Meters | F140: n/a | J140: 0 | K140: 0 | L140: 0 | M140: 89616.5 | N140: 89616.5 | O140: 81173.2919 | P140: 81173.2919 | Q140: 81173.2919 | R140: 81173.2919 | S140: 81173.2919 | T140: 81173.2919
D141: Closing Inspections Due - 2030 | E141: # Meters | F141: n/a | J141: 0 | K141: 0 | L141: 0 | M141: 0 | N141: 75332 | O141: 75332 | P141: 75332 | Q141: 75332 | R141: 75332 | S141: 75332 | T141: 75332
D142: Closing Inspections Due - 2031 | E142: # Meters | F142: n/a | J142: 0 | K142: 0 | L142: 0 | M142: 0 | N142: 0 | O142: 22219.5 | P142: 22219.5 | Q142: 22219.5 | R142: 22219.5 | S142: 22219.5 | T142: 22219.5
D143: Closing Inspections Due - 2032 | E143: # Meters | F143: n/a | J143: 0 | K143: 0 | L143: 0 | M143: 0 | N143: 0 | O143: 0 | P143: 9423.5 | Q143: 9423.5 | R143: 9423.5 | S143: 9423.5 | T143: 9423.5
D144: Closing Inspections Due - 2033 | E144: # Meters | F144: n/a | J144: 0 | K144: 0 | L144: 0 | M144: 0 | N144: 0 | O144: 0 | P144: 0 | Q144: 9257 | R144: 9257 | S144: 9257 | T144: 9257
D145: Closing Inspections Due - 2034 | E145: # Meters | F145: n/a | J145: 0 | K145: 0 | L145: 0 | M145: 0 | N145: 0 | O145: 0 | P145: 0 | Q145: 0 | R145: 9249 | S145: 9249 | T145: 9249
D146: Closing Inspections Due - 2035 | E146: # Meters | F146: n/a | J146: 0 | K146: 0 | L146: 0 | M146: 0 | N146: 0 | O146: 0 | P146: 0 | Q146: 0 | R146: 0 | S146: 9301.5 | T146: 9301.5
D147: Closing Inspections Due - 2036 | E147: # Meters | F147: n/a | J147: 0 | K147: 0 | L147: 0 | M147: 0 | N147: 0 | O147: 0 | P147: 0 | Q147: 0 | R147: 0 | S147: 0 | T147: 9343.5
D148: Closing Inspections Due - 2037 | E148: # Meters | F148: n/a | J148: 0 | K148: 0 | L148: 0 | M148: 0 | N148: 0 | O148: 0 | P148: 0 | Q148: 0 | R148: 0 | S148: 0 | T148: 0
D149: Closing Inspections Due - 2038 | E149: # Meters | F149: n/a | J149: 0 | K149: 0 | L149: 0 | M149: 0 | N149: 0 | O149: 0 | P149: 0 | Q149: 0 | R149: 0 | S149: 0 | T149: 0
D150: Closing Inspections Due - 2039 | E150: # Meters | F150: n/a | J150: 0 | K150: 0 | L150: 0 | M150: 0 | N150: 0 | O150: 0 | P150: 0 | Q150: 0 | R150: 0 | S150: 0 | T150: 0
D151: Closing Inspections Due - 2040 | E151: # Meters | F151: n/a | J151: 0 | K151: 0 | L151: 0 | M151: 0 | N151: 0 | O151: 0 | P151: 0 | Q151: 0 | R151: 0 | S151: 0 | T151: 0
D152: Closing Inspections Due - 2041 | E152: # Meters | F152: n/a | J152: 0 | K152: 0 | L152: 0 | M152: 0 | N152: 0 | O152: 0 | P152: 0 | Q152: 0 | R152: 0 | S152: 0 | T152: 0
D154: Total Outstanding Inspections Due | E154: # Meters | F154: n/a | J154: =SUM(J137:J152) -> 28384.66667 | K154: =SUM(K137:K152) -> 62270.28586 | L154: 100734.501 | M154: 160023.8596 | N154: 198963.2899 | O154: 178724.7919 | P154: 188148.2919 | Q154: 197405.2919 | R154: 206654.2919 | S154: 215955.7919 | T154: 225299.2919
A156: =IF(SUM(J156:T156)=0,0,1) -> 0 | D156: Check - replacements | E156: n/a | F156: n/a | J156: =IF(ROUND(J97-J$54,3)=0,0,1) -> 0 | K156: =IF(ROUND(K97-K$54,3)=0,0,1) -> 0 | L156: 0 | M156: 0 | N156: 0 | O156: 0 | P156: 0 | Q156: 0 | R156: 0 | S156: 0 | T156: 0
A157: =IF(SUM(J157:T157)=0,0,1) -> 0 | D157: Check - inspections | E157: n/a | F157: n/a | J157: =IF(ROUND(J135-J$55,3)=0,0,1) -> 0 | K157: =IF(ROUND(K135-K$55,3)=0,0,1) -> 0 | L157: 0 | M157: 0 | N157: 0 | O157: 0 | P157: 0 | Q157: 0 | R157: 0 | S157: 0 | T157: 0
B159: Calculation | Inspection Delay and Meter Age
C161: Calculation | Chart Data - Inspection Delay
D163: Inspection Delay | E163: =E$4 -> Unit | F163: =F$4 -> Basis | J163: =IF(CF_Type=Annually,"FY"&RIGHT(J$3,2),TEXT(DATE(J$3,J$4,1),"mmm-yyyy")) -> FY26 | K163: FY27 | L163: FY28 | M163: FY29 | N163: FY30 | O163: FY31 | P163: FY32 | Q163: FY33 | R163: FY34 | S163: FY35 | T163: =$T$3 -> 2036
D165: ="Inspections - "&I61 -> Inspections - 2026 | E165: =Year -> year | F165: n/a | J165: 1 | K165: =J165+1 -> 2 | L165: =K165+1 -> 3 | M165: 4 | N165: 5 | O165: 6 | P165: 7 | Q165: 8 | R165: 9 | S165: 10 | T165: 11
D166: ="Inspections - "&I62 -> Inspections - 2027 | E166: year | F166: n/a | J166: 0 | K166: 1 | L166: =K166+1 -> 2 | M166: 3 | N166: 4 | O166: 5 | P166: 6 | Q166: 7 | R166: 8 | S166: 9 | T166: 10
D167: Inspections - 2028 | E167: year | F167: n/a | J167: 0 | K167: 0 | L167: 1 | M167: =L167+1 -> 2 | N167: 3 | O167: 4 | P167: 5 | Q167: 6 | R167: 7 | S167: 8 | T167: 9
D168: Inspections - 2029 | E168: year | F168: n/a | J168: 0 | K168: 0 | L168: 0 | M168: 1 | N168: =M168+1 -> 2 | O168: 3 | P168: 4 | Q168: 5 | R168: 6 | S168: 7 | T168: 8
D169: Inspections - 2030 | E169: year | F169: n/a | J169: 0 | K169: 0 | L169: 0 | M169: 0 | N169: 1 | O169: =N169+1 -> 2 | P169: 3 | Q169: 4 | R169: 5 | S169: 6 | T169: 7
D170: Inspections - 2031 | E170: year | F170: n/a | J170: 0 | K170: 0 | L170: 0 | M170: 0 | N170: 0 | O170: 1 | P170: =O170+1 -> 2 | Q170: 3 | R170: 4 | S170: 5 | T170: 6
D171: Inspections - 2032 | E171: year | F171: n/a | J171: 0 | K171: 0 | L171: 0 | M171: 0 | N171: 0 | O171: 0 | P171: 1 | Q171: =P171+1 -> 2 | R171: 3 | S171: 4 | T171: 5
D172: Inspections - 2033 | E172: year | F172: n/a | J172: 0 | K172: 0 | L172: 0 | M172: 0 | N172: 0 | O172: 0 | P172: 0 | Q172: 1 | R172: =Q172+1 -> 2 | S172: 3 | T172: 4
D173: Inspections - 2034 | E173: year | F173: n/a | J173: 0 | K173: 0 | L173: 0 | M173: 0 | N173: 0 | O173: 0 | P173: 0 | Q173: 0 | R173: 1 | S173: =R173+1 -> 2 | T173: 3
D174: Inspections - 2035 | E174: year | F174: n/a | J174: 0 | K174: 0 | L174: 0 | M174: 0 | N174: 0 | O174: 0 | P174: 0 | Q174: 0 | R174: 0 | S174: 1 | T174: =S174+1 -> 2
D175: Inspections - 2036 | E175: year | F175: n/a | J175: 0 | K175: 0 | L175: 0 | M175: 0 | N175: 0 | O175: 0 | P175: 0 | Q175: 0 | R175: 0 | S175: 0 | T175: 1
D176: Inspections - 2037 | E176: year | F176: n/a | J176: 0 | K176: 0 | L176: 0 | M176: 0 | N176: 0 | O176: 0 | P176: 0 | Q176: 0 | R176: 0 | S176: 0 | T176: 0
B178: End

Sheet Input|IP_Vol
D1: =Model_Name -> Inspection and Replacement Obligation Volume Model | H1: Section Check: | J1: =IF(COUNTA($A$8:$A$178)=COUNTIF($A$8:$A$178,0),"Ok","Check") -> Ok | L1: Overall Check: | M1: =Overall_Check -> Ok | O1: Legend: | P1: Input | Q1: Internal | R1: Select | S1: Calculation
D2: =RIGHT(CELL("filename",D1),LEN(CELL("filename",D1))-FIND("]",CELL("filename",D1))) -> Input|IP_Vol
H3: Year | J3: ='Input|RP_Vol'!$J$3 -> 2026 | K3: =IF(CF_Type=Annually,J3+1,IF(K4=1,J3+1,J3)) -> 2027 | L3: 2028 | M3: 2029 | N3: 2030 | O3: 2031 | P3: 2032 | Q3: 2033 | R3: 2034 | S3: 2035 | T3: 2036
E4: Unit | F4: Basis | H4: Month | J4: =IF(CF_Type=Annually,NA,Start_Month) -> n/a | K4: =IF(J4=NA,NA,IF(J4+1=Months_in_year,Months_in_year,MOD(J4+1,Months_in_year))) -> n/a | L4: n/a | M4: n/a | N4: n/a | O4: n/a | P4: n/a | Q4: n/a | R4: n/a | S4: n/a | T4: n/a
B6: Copyright Jemena Limited. All rights reserved. Jemena is not liable for any loss caused by reliance on this document.
B8: Input | Impact of Replacement Volumes on Inspection Obligations
C10: ="Calculation | "&'Output|Charts'!P15&" outstanding inspection obligations / replacements" -> Calculation | Initial Proposal outstanding inspection obligations / replacements
D12: Item | E12: =E$4 -> Unit | F12: =F$4 -> Basis | G12: Installation Year | H12: Installation Volume (#) | I12: Inspection Year | J12: =IF(CF_Type=Annually,"FY"&RIGHT(J$3,2),TEXT(DATE(J$3,J$4,1),"mmm-yyyy")) -> FY26 | K12: FY27 | L12: FY28 | M12: FY29 | N12: FY30 | O12: FY31 | P12: FY32 | Q12: FY33 | R12: FY34 | S12: FY35 | T12: =$T$3 -> 2036
D14: ='Input|Installations'!D39 -> Inspection obligation starts after x years | E14: Years | F14: n/a | I14: ='Input|Installations'!$J$39 -> 15
D15: ='Input|Installations'!D40 -> Inspection avoided if replacements done within x years | E15: Years | F15: n/a | I15: 1
D17: ="Inspection obligation - "&G17&" Installations" -> Inspection obligation - 2010 Installations | E17: # Meters | F17: n/a | G17: ='Input|Installations'!F13 -> 2010 | H17: ='Input|Installations'!N13 -> 28384.66667 | I17: =G17+$I$14+1 -> 2026 | J17: =AND(J$3>=$I17,J$3<=$I17+$I$15-1)*$H17/$I$15 -> 28384.66667 | K17: =AND(K$3>=$I17,K$3<=$I17+$I$15-1)*$H17/$I$15 -> 0 | L17: 0 | M17: 0 | N17: 0 | O17: 0 | P17: 0 | Q17: 0 | R17: 0 | S17: 0 | T17: 0
D18: ="Inspection obligation - "&G18&" Installations" -> Inspection obligation - 2011 Installations | E18: # Meters | F18: n/a | G18: ='Input|Installations'!F14 -> 2011 | H18: ='Input|Installations'!N14 -> 36918.33333 | I18: =G18+$I$14+1 -> 2027 | J18: =AND(J$3>=$I18,J$3<=$I18+$I$15-1)*$H18/$I$15 -> 0 | K18: 36918.33333 | L18: 0 | M18: 0 | N18: 0 | O18: 0 | P18: 0 | Q18: 0 | R18: 0 | S18: 0 | T18: 0
D19: Inspection obligation - 2012 Installations | E19: # Meters | F19: n/a | G19: ='Input|Installations'!F15 -> 2012 | H19: ='Input|Installations'!N15 -> 56660.5 | I19: 2028 | J19: 0 | K19: 0 | L19: 56660.5 | M19: 0 | N19: 0 | O19: 0 | P19: 0 | Q19: 0 | R19: 0 | S19: 0 | T19: 0
D20: Inspection obligation - 2013 Installations | E20: # Meters | F20: n/a | G20: ='Input|Installations'!F16 -> 2013 | H20: ='Input|Installations'!N16 -> 89616.5 | I20: 2029 | J20: 0 | K20: 0 | L20: 0 | M20: 89616.5 | N20: 0 | O20: 0 | P20: 0 | Q20: 0 | R20: 0 | S20: 0 | T20: 0
D21: Inspection obligation - 2014 Installations | E21: # Meters | F21: n/a | G21: ='Input|Installations'!F17 -> 2014 | H21: ='Input|Installations'!N17 -> 75332 | I21: 2030 | J21: 0 | K21: 0 | L21: 0 | M21: 0 | N21: 75332 | O21: 0 | P21: 0 | Q21: 0 | R21: 0 | S21: 0 | T21: 0
D22: Inspection obligation - 2015 Installations | E22: # Meters | F22: n/a | G22: ='Input|Installations'!F18 -> 2015 | H22: ='Input|Installations'!N18 -> 22219.5 | I22: 2031 | J22: 0 | K22: 0 | L22: 0 | M22: 0 | N22: 0 | O22: 22219.5 | P22: 0 | Q22: 0 | R22: 0 | S22: 0 | T22: 0
D23: Inspection obligation - 2016 Installations | E23: # Meters | F23: n/a | G23: ='Input|Installations'!F19 -> 2016 | H23: ='Input|Installations'!N19 -> 9423.5 | I23: 2032 | J23: 0 | K23: 0 | L23: 0 | M23: 0 | N23: 0 | O23: 0 | P23: 9423.5 | Q23: 0 | R23: 0 | S23: 0 | T23: 0
D24: Inspection obligation - 2017 Installations | E24: # Meters | F24: n/a | G24: ='Input|Installations'!F20 -> 2017 | H24: ='Input|Installations'!N20 -> 9257 | I24: 2033 | J24: 0 | K24: 0 | L24: 0 | M24: 0 | N24: 0 | O24: 0 | P24: 0 | Q24: 9257 | R24: 0 | S24: 0 | T24: 0
D25: Inspection obligation - 2018 Installations | E25: # Meters | F25: n/a | G25: ='Input|Installations'!F21 -> 2018 | H25: ='Input|Installations'!N21 -> 9249 | I25: 2034 | J25: 0 | K25: 0 | L25: 0 | M25: 0 | N25: 0 | O25: 0 | P25: 0 | Q25: 0 | R25: 9249 | S25: 0 | T25: 0
D26: Inspection obligation - 2019 Installations | E26: # Meters | F26: n/a | G26: ='Input|Installations'!F22 -> 2019 | H26: ='Input|Installations'!N22 -> 9301.5 | I26: 2035 | J26: 0 | K26: 0 | L26: 0 | M26: 0 | N26: 0 | O26: 0 | P26: 0 | Q26: 0 | R26: 0 | S26: 9301.5 | T26: 0
D27: Inspection obligation - 2020 Installations | E27: # Meters | F27: n/a | G27: ='Input|Installations'!F23 -> 2020 | H27: ='Input|Installations'!N23 -> 9343.5 | I27: 2036 | J27: 0 | K27: 0 | L27: 0 | M27: 0 | N27: 0 | O27: 0 | P27: 0 | Q27: 0 | R27: 0 | S27: 0 | T27: 9343.5
D28: Inspection obligation - 2021 Installations | E28: # Meters | F28: n/a | G28: ='Input|Installations'!F24 -> 2021 | H28: ='Input|Installations'!N24 -> 8430 | I28: 2037 | J28: 0 | K28: 0 | L28: 0 | M28: 0 | N28: 0 | O28: 0 | P28: 0 | Q28: 0 | R28: 0 | S28: 0 | T28: 0
D29: Inspection obligation - 2022 Installations | E29: # Meters | F29: n/a | G29: ='Input|Installations'!F25 -> 2022 | H29: ='Input|Installations'!N25 -> 9186 | I29: 2038 | J29: 0 | K29: 0 | L29: 0 | M29: 0 | N29: 0 | O29: 0 | P29: 0 | Q29: 0 | R29: 0 | S29: 0 | T29: 0
D30: Inspection obligation - 2023 Installations | E30: # Meters | F30: n/a | G30: ='Input|Installations'!F26 -> 2023 | H30: ='Input|Installations'!N26 -> 9538 | I30: 2039 | J30: 0 | K30: 0 | L30: 0 | M30: 0 | N30: 0 | O30: 0 | P30: 0 | Q30: 0 | R30: 0 | S30: 0 | T30: 0
D31: Inspection obligation - 2024 Installations | E31: # Meters | F31: n/a | G31: ='Input|Installations'!F27 -> 2024 | H31: ='Input|Installations'!N27 -> 8283 | I31: 2040 | J31: 0 | K31: 0 | L31: 0 | M31: 0 | N31: 0 | O31: 0 | P31: 0 | Q31: 0 | R31: 0 | S31: 0 | T31: 0
D32: Inspection obligation - 2025 Installations | E32: # Meters | F32: n/a | G32: ='Input|Installations'!F28 -> 2025 | H32: ='Input|Installations'!N28 -> 8983 | I32: 2041 | J32: 0 | K32: 0 | L32: 0 | M32: 0 | N32: 0 | O32: 0 | P32: 0 | Q32: 0 | R32: 0 | S32: 0 | T32: 0
D34: Total inspection obligation | E34: # Meters | F34: n/a | J34: =SUM(J17:J32) -> 28384.66667 | K34: =SUM(K17:K32) -> 36918.33333 | L34: 56660.5 | M34: 89616.5 | N34: 75332 | O34: 22219.5 | P34: 9423.5 | Q34: 9257 | R34: 9249 | S34: 9301.5 | T34: 9343.5
D36: Smoothing adjustment | E36: # Meters | F36: n/a | J36: 0 | K36: 0 | L36: 0 | M36: 0 | N36: 0 | O36: 0 | P36: 0 | Q36: 0 | R36: 0 | S36: 0 | T36: 0
D38: Total smoothed inspection obligations | E38: # Meters | F38: n/a | J38: =J34+J36 -> 28384.66667 | K38: =K34+K36 -> 36918.33333 | L38: 56660.5 | M38: 89616.5 | N38: 75332 | O38: 22219.5 | P38: 9423.5 | Q38: 9257 | R38: 9249 | S38: 9301.5 | T38: 9343.5
D40: Less allowed replacements | E40: # Meters | F40: n/a | J40: 0 | K40: =-'Output|Charts'!Q15 -> -1910.06 | L40: =-'Output|Charts'!R15 -> -11460.36 | M40: =-'Output|Charts'!S15 -> -19100.6 | N40: =-'Output|Charts'!T15 -> -22920.72 | O40: =-'Output|Charts'!U15 -> -26740.84
D42: Outstanding Inspections | E42: # Meters | F42: n/a | J42: =MAX(0,J38+SUM(J40:J40)) -> 28384.66667 | K42: 35008.27333 | L42: 45200.14 | M42: 70515.9 | N42: 52411.28 | O42: 0 | P42: 9423.5 | Q42: 9257 | R42: 9249 | S42: 9301.5 | T42: 9343.5
D44: Cumulative outstanding inspections / replacements | E44: # Meters | F44: n/a | J44: =SUM($J42:J42) -> 28384.66667 | K44: =SUM($J42:K42) -> 63392.94 | L44: =SUM($J42:L42) -> 108593.08 | M44: =SUM($J42:M42) -> 179108.98 | N44: =SUM($J42:N42) -> 231520.26 | O44: =SUM($J42:O42) -> 231520.26 | P44: =SUM($J42:P42) -> 240943.76 | Q44: =SUM($J42:Q42) -> 250200.76 | R44: =SUM($J42:R42) -> 259449.76 | S44: =SUM($J42:S42) -> 268751.26 | T44: =SUM($J42:T42) -> 278094.76
D46: Meters remaining in the field due for inspection / replacements | E46: # Meters | F46: n/a | J46: =SUMIF($I$17:$I$32,"<="&J$3,$H$17:$H$32)+SUM($J40:J40) -> 28384.66667 | K46: =SUMIF($I$17:$I$32,"<="&K$3,$H$17:$H$32)+SUM($J40:K40) -> 63392.94 | L46: =SUMIF($I$17:$I$32,"<="&L$3,$H$17:$H$32)+SUM($J40:L40) -> 108593.08 | M46: =SUMIF($I$17:$I$32,"<="&M$3,$H$17:$H$32)+SUM($J40:M40) -> 179108.98 | N46: =SUMIF($I$17:$I$32,"<="&N$3,$H$17:$H$32)+SUM($J40:N40) -> 231520.26 | O46: =SUMIF($I$17:$I$32,"<="&O$3,$H$17:$H$32)+SUM($J40:O40) -> 226998.92 | P46: =SUMIF($I$17:$I$32,"<="&P$3,$H$17:$H$32)+SUM($J40:P40) -> 236422.42 | Q46: =SUMIF($I$17:$I$32,"<="&Q$3,$H$17:$H$32)+SUM($J40:Q40) -> 245679.42 | R46: =SUMIF($I$17:$I$32,"<="&R$3,$H$17:$H$32)+SUM($J40:R40) -> 254928.42 | S46: =SUMIF($I$17:$I$32,"<="&S$3,$H$17:$H$32)+SUM($J40:S40) -> 264229.92 | T46: =SUMIF($I$17:$I$32,"<="&T$3,$H$17:$H$32)+SUM($J40:T40) -> 273573.42
B48: Input | Allocation of annual replacements and inspections to meter installation year
D50: Summary | E50: =E$4 -> Unit | F50: =F$4 -> Basis | J50: =IF(CF_Type=Annually,"FY"&RIGHT(J$3,2),TEXT(DATE(J$3,J$4,1),"mmm-yyyy")) -> FY26 | K50: FY27 | L50: FY28 | M50: FY29 | N50: FY30 | O50: FY31 | P50: FY32 | Q50: FY33 | R50: FY34 | S50: FY35 | T50: =$T$3 -> 2036
D52: =H12 -> Installation Volume (#) | E52: # Meters | F52: n/a | J52: =TRANSPOSE(H17:H27) -> 28384.66667 | K52: 36918.33333 | L52: 56660.5 | M52: 89616.5 | N52: 75332 | O52: 22219.5 | P52: 9423.5 | Q52: 9257 | R52: 9249 | S52: 9301.5 | T52: 9343.5
D54: Less allowed replacements | E54: # Meters | F54: n/a | J54: 0 | K54: =-'Output|Charts'!Q15 -> -1910.06 | L54: =-'Output|Charts'!R15 -> -11460.36 | M54: =-'Output|Charts'!S15 -> -19100.6 | N54: =-'Output|Charts'!T15 -> -22920.72 | O54: =-'Output|Charts'!U15 -> -26740.84
D55: Less allowed inspections | E55: # Meters | F55: n/a | J55: 0 | K55: =-'Output|Charts'!Q38 -> -21079.97332 | L55: =-'Output|Charts'!R38 -> -21260.03188 | M55: =-'Output|Charts'!S38 -> -30674.76318 | N55: =-'Output|Charts'!T38 -> -30657.71077 | O55: =-'Output|Charts'!U38 -> -23453.10301
D57: =D44 -> Cumulative outstanding inspections / replacements | E57: # Meters | F57: n/a | J57: =SUM($J52:J55) -> 28384.66667 | K57: =SUM($J52:K55) -> 42312.96668 | L57: =SUM($J52:L55) -> 66253.0748 | M57: =SUM($J52:M55) -> 106094.2116 | N57: =SUM($J52:N55) -> 127847.7808 | O57: =SUM($J52:O55) -> 99873.33783 | P57: =SUM($J52:P55) -> 109296.8378 | Q57: =SUM($J52:Q55) -> 118553.8378 | R57: =SUM($J52:R55) -> 127802.8378 | S57: =SUM($J52:S55) -> 137104.3378 | T57: =SUM($J52:T55) -> 146447.8378
D59: Inspection Volumes - 2026-31 Regulatory Period | E59: =E$4 -> Unit | F59: =F$4 -> Basis | G59: Installation Year | H59: Installation Volume (#) | I59: Inspection Year | J59: =IF(CF_Type=Annually,"FY"&RIGHT(J$3,2),TEXT(DATE(J$3,J$4,1),"mmm-yyyy")) -> FY26 | K59: FY27 | L59: FY28 | M59: FY29 | N59: FY30 | O59: FY31 | P59: FY32 | Q59: FY33 | R59: FY34 | S59: FY35 | T59: =$T$3 -> 2036
D61: ="Opening Inspections Due - "&I61 -> Opening Inspections Due - 2026 | E61: # Meters | F61: n/a | G61: =G17 -> 2010 | H61: 28384.66667 | I61: 2026 | J61: =IF(J$3=$I61,$H61,I137) -> 28384.66667 | K61: 28384.66667 | L61: 5394.633348 | M61: 0 | N61: 0 | O61: 0 | P61: 0 | Q61: 0 | R61: 0 | S61: 0 | T61: 0
D62: Opening Inspections Due - 2027 | E62: # Meters | F62: n/a | G62: 2011 | H62: 36918.33333 | I62: 2027 | J62: 0 | K62: 36918.33333 | L62: 36918.33333 | M62: 9592.574803 | N62: 0 | O62: 0 | P62: 0 | Q62: 0 | R62: 0 | S62: 0 | T62: 0
D63: Opening Inspections Due - 2028 | E63: # Meters | F63: n/a | G63: 2012 | H63: 56660.5 | I63: 2028 | J63: 0 | K63: 0 | L63: 56660.5 | M63: 56660.5 | N63: 16477.71162 | O63: 0 | P63: 0 | Q63: 0 | R63: 0 | S63: 0 | T63: 0
D64: Opening Inspections Due - 2029 | E64: # Meters | F64: n/a | G64: 2013 | H64: 89616.5 | I64: 2029 | J64: 0 | K64: 0 | L64: 0 | M64: 89616.5 | N64: 89616.5 | O64: 52515.78085 | P64: 2321.837834 | Q64: 2321.837834 | R64: 2321.837834 | S64: 2321.837834 | T64: 2321.837834
D65: Opening Inspections Due - 2030 | E65: # Meters | F65: n/a | G65: 2014 | H65: 75332 | I65: 2030 | J65: 0 | K65: 0 | L65: 0 | M65: 0 | N65: 75332 | O65: 75332 | P65: 75332 | Q65: 75332 | R65: 75332 | S65: 75332 | T65: 75332
D66: Opening Inspections Due - 2031 | E66: # Meters | F66: n/a | G66: 2015 | H66: 22219.5 | I66: 2031 | J66: 0 | K66: 0 | L66: 0 | M66: 0 | N66: 0 | O66: 22219.5 | P66: 22219.5 | Q66: 22219.5 | R66: 22219.5 | S66: 22219.5 | T66: 22219.5
D67: Opening Inspections Due - 2032 | E67: # Meters | F67: n/a | G67: 2016 | H67: 9423.5 | I67: 2032 | J67: 0 | K67: 0 | L67: 0 | M67: 0 | N67: 0 | O67: 0 | P67: 9423.5 | Q67: 9423.5 | R67: 9423.5 | S67: 9423.5 | T67: 9423.5
D68: Opening Inspections Due - 2033 | E68: # Meters | F68: n/a | G68: 2017 | H68: 9257 | I68: 2033 | J68: 0 | K68: 0 | L68: 0 | M68: 0 | N68: 0 | O68: 0 | P68: 0 | Q68: 9257 | R68: 9257 | S68: 9257 | T68: 9257
D69: Opening Inspections Due - 2034 | E69: # Meters | F69: n/a | G69: 2018 | H69: 9249 | I69: 2034 | J69: 0 | K69: 0 | L69: 0 | M69: 0 | N69: 0 | O69: 0 | P69: 0 | Q69: 0 | R69: 9249 | S69: 9249 | T69: 9249
D70: Opening Inspections Due - 2035 | E70: # Meters | F70: n/a | G70: 2019 | H70: 9301.5 | I70: 2035 | J70: 0 | K70: 0 | L70: 0 | M70: 0 | N70: 0 | O70: 0 | P70: 0 | Q70: 0 | R70: 0 | S70: 9301.5 | T70: 9301.5
D71: Opening Inspections Due - 2036 | E71: # Meters | F71: n/a | G71: 2020 | H71: 9343.5 | I71: 2036 | J71: 0 | K71: 0 | L71: 0 | M71: 0 | N71: 0 | O71: 0 | P71: 0 | Q71: 0 | R71: 0 | S71: 0 | T71: 9343.5
D72: Opening Inspections Due - 2037 | E72: # Meters | F72: n/a | G72: 2021 | H72: 8430 | I72: 2037 | J72: 0 | K72: 0 | L72: 0 | M72: 0 | N72: 0 | O72: 0 | P72: 0 | Q72: 0 | R72: 0 | S72: 0 | T72: 0
D73: Opening Inspections Due - 2038 | E73: # Meters | F73: n/a | G73: 2022 | H73: 9186 | I73: 2038 | J73: 0 | K73: 0 | L73: 0 | M73: 0 | N73: 0 | O73: 0 | P73: 0 | Q73: 0 | R73: 0 | S73: 0 | T73: 0
D74: Opening Inspections Due - 2039 | E74: # Meters | F74: n/a | G74: 2023 | H74: 9538 | I74: 2039 | J74: 0 | K74: 0 | L74: 0 | M74: 0 | N74: 0 | O74: 0 | P74: 0 | Q74: 0 | R74: 0 | S74: 0 | T74: 0
D75: Opening Inspections Due - 2040 | E75: # Meters | F75: n/a | G75: 2024 | H75: 8283 | I75: 2040 | J75: 0 | K75: 0 | L75: 0 | M75: 0 | N75: 0 | O75: 0 | P75: 0 | Q75: 0 | R75: 0 | S75: 0 | T75: 0
D76: Opening Inspections Due - 2041 | E76: # Meters | F76: n/a | G76: 2025 | H76: 8983 | I76: 2041 | J76: 0 | K76: 0 | L76: 0 | M76: 0 | N76: 0 | O76: 0 | P76: 0 | Q76: 0 | R76: 0 | S76: 0 | T76: 0
D78: Total Opening Inspections Due | E78: # Meters | F78: n/a | J78: =SUM(J61:J76) -> 28384.66667 | K78: =SUM(K61:K76) -> 65303 | L78: 98973.46668 | M78: 155869.5748 | N78: 181426.2116 | O78: 150067.2808 | P78: 109296.8378 | Q78: 118553.8378 | R78: 127802.8378 | S78: 137104.3378 | T78: 146447.8378
D80: ="Inspections avoided due to replacements - "&I61 -> Inspections avoided due to replacements - 2026 | E80: # Meters | F80: n/a | J80: 0 | K80: =K54 -> -1910.06 | L80: =-L61 -> -5394.633348 | M80: 0 | N80: 0 | O80: 0 | P80: 0 | Q80: 0 | R80: 0 | S80: 0 | T80: 0
D81: Inspections avoided due to replacements - 2027 | E81: # Meters | F81: n/a | J81: 0 | K81: 0 | L81: =L$54-L80 -> -6065.726652 | M81: =-M62 -> -9592.574803 | N81: 0 | O81: 0 | P81: 0 | Q81: 0 | R81: 0 | S81: 0 | T81: 0
D82: Inspections avoided due to replacements - 2028 | E82: # Meters | F82: n/a | J82: 0 | K82: 0 | L82: 0 | M82: =M$54-M81 -> -9508.025197 | N82: =-N63 -> -16477.71162 | O82: 0 | P82: 0 | Q82: 0 | R82: 0 | S82: 0 | T82: 0
D83: Inspections avoided due to replacements - 2029 | E83: # Meters | F83: n/a | J83: 0 | K83: 0 | L83: 0 | M83: 0 | N83: =N$54-N82 -> -6443.008378 | O83: =O54 -> -26740.84 | P83: 0 | Q83: 0 | R83: 0 | S83: 0 | T83: 0
D84: Inspections avoided due to replacements - 2030 | E84: # Meters | F84: n/a | J84: 0 | K84: 0 | L84: 0 | M84: 0 | N84: 0 | O84: 0 | P84: 0 | Q84: 0 | R84: 0 | S84: 0 | T84: 0
D85: Inspections avoided due to replacements - 2031 | E85: # Meters | F85: n/a | J85: 0 | K85: 0 | L85: 0 | M85: 0 | N85: 0 | O85: 0 | P85: 0 | Q85: 0 | R85: 0 | S85: 0 | T85: 0
D86: Inspections avoided due to replacements - 2032 | E86: # Meters | F86: n/a | J86: 0 | K86: 0 | L86: 0 | M86: 0 | N86: 0 | O86: 0 | P86: 0 | Q86: 0 | R86: 0 | S86: 0 | T86: 0
D87: Inspections avoided due to replacements - 2033 | E87: # Meters | F87: n/a | J87: 0 | K87: 0 | L87: 0 | M87: 0 | N87: 0 | O87: 0 | P87: 0 | Q87: 0 | R87: 0 | S87: 0 | T87: 0
D88: Inspections avoided due to replacements - 2034 | E88: # Meters | F88: n/a | J88: 0 | K88: 0 | L88: 0 | M88: 0 | N88: 0 | O88: 0 | P88: 0 | Q88: 0 | R88: 0 | S88: 0 | T88: 0
D89: Inspections avoided due to replacements - 2035 | E89: # Meters | F89: n/a | J89: 0 | K89: 0 | L89: 0 | M89: 0 | N89: 0 | O89: 0 | P89: 0 | Q89: 0 | R89: 0 | S89: 0 | T89: 0
D90: Inspections avoided due to replacements - 2036 | E90: # Meters | F90: n/a | J90: 0 | K90: 0 | L90: 0 | M90: 0 | N90: 0 | O90: 0 | P90: 0 | Q90: 0 | R90: 0 | S90: 0 | T90: 0
D91: Inspections avoided due to replacements - 2037 | E91: # Meters | F91: n/a | J91: 0 | K91: 0 | L91: 0 | M91: 0 | N91: 0 | O91: 0 | P91: 0 | Q91: 0 | R91: 0 | S91: 0 | T91: 0
D92: Inspections avoided due to replacements - 2038 | E92: # Meters | F92: n/a | J92: 0 | K92: 0 | L92: 0 | M92: 0 | N92: 0 | O92: 0 | P92: 0 | Q92: 0 | R92: 0 | S92: 0 | T92: 0
D93: Inspections avoided due to replacements - 2039 | E93: # Meters | F93: n/a | J93: 0 | K93: 0 | L93: 0 | M93: 0 | N93: 0 | O93: 0 | P93: 0 | Q93: 0 | R93: 0 | S93: 0 | T93: 0
D94: Inspections avoided due to replacements - 2040 | E94: # Meters | F94: n/a | J94: 0 | K94: 0 | L94: 0 | M94: 0 | N94: 0 | O94: 0 | P94: 0 | Q94: 0 | R94: 0 | S94: 0 | T94: 0
D95: Inspections avoided due to replacements - 2041 | E95: # Meters | F95: n/a | J95: 0 | K95: 0 | L95: 0 | M95: 0 | N95: 0 | O95: 0 | P95: 0 | Q95: 0 | R95: 0 | S95: 0 | T95: 0
D97: Total inspections avoided due to replacements | E97: # Meters | F97: n/a | J97: =SUM(J80:J95) -> 0 | K97: =SUM(K80:K95) -> -1910.06 | L97: -11460.36 | M97: -19100.6 | N97: -22920.72 | O97: -26740.84 | P97: 0 | Q97: 0 | R97: 0 | S97: 0 | T97: 0
D99: ="Interim Balance - Prior to inspections - "&I61 -> Interim Balance - Prior to inspections - 2026 | E99: # Meters | F99: n/a | J99: =J61+J80 -> 28384.66667 | K99: =K61+K80 -> 26474.60667 | L99: 0 | M99: 0 | N99: 0 | O99: 0 | P99: 0 | Q99: 0 | R99: 0 | S99: 0 | T99: 0
D100: ="Interim Balance - Prior to inspections - "&I62 -> Interim Balance - Prior to inspections - 2027 | E100: # Meters | F100: n/a | J100: =J62+J81 -> 0 | K100: 36918.33333 | L100: 30852.60668 | M100: 0 | N100: 0 | O100: 0 | P100: 0 | Q100: 0 | R100: 0 | S100: 0 | T100: 0
D101: Interim Balance - Prior to inspections - 2028 | E101: # Meters | F101: n/a | J101: 0 | K101: 0 | L101: 56660.5 | M101: 47152.4748 | N101: 0 | O101: 0 | P101: 0 | Q101: 0 | R101: 0 | S101: 0 | T101: 0
D102: Interim Balance - Prior to inspections - 2029 | E102: # Meters | F102: n/a | J102: 0 | K102: 0 | L102: 0 | M102: 89616.5 | N102: 83173.49162 | O102: 25774.94085 | P102: 2321.837834 | Q102: 2321.837834 | R102: 2321.837834 | S102: 2321.837834 | T102: 2321.837834
D103: Interim Balance - Prior to inspections - 2030 | E103: # Meters | F103: n/a | J103: 0 | K103: 0 | L103: 0 | M103: 0 | N103: 75332 | O103: 75332 | P103: 75332 | Q103: 75332 | R103: 75332 | S103: 75332 | T103: 75332
D104: Interim Balance - Prior to inspections - 2031 | E104: # Meters | F104: n/a | J104: 0 | K104: 0 | L104: 0 | M104: 0 | N104: 0 | O104: 22219.5 | P104: 22219.5 | Q104: 22219.5 | R104: 22219.5 | S104: 22219.5 | T104: 22219.5
D105: Interim Balance - Prior to inspections - 2032 | E105: # Meters | F105: n/a | J105: 0 | K105: 0 | L105: 0 | M105: 0 | N105: 0 | O105: 0 | P105: 9423.5 | Q105: 9423.5 | R105: 9423.5 | S105: 9423.5 | T105: 9423.5
D106: Interim Balance - Prior to inspections - 2033 | E106: # Meters | F106: n/a | J106: 0 | K106: 0 | L106: 0 | M106: 0 | N106: 0 | O106: 0 | P106: 0 | Q106: 9257 | R106: 9257 | S106: 9257 | T106: 9257
D107: Interim Balance - Prior to inspections - 2034 | E107: # Meters | F107: n/a | J107: 0 | K107: 0 | L107: 0 | M107: 0 | N107: 0 | O107: 0 | P107: 0 | Q107: 0 | R107: 9249 | S107: 9249 | T107: 9249
D108: Interim Balance - Prior to inspections - 2035 | E108: # Meters | F108: n/a | J108: 0 | K108: 0 | L108: 0 | M108: 0 | N108: 0 | O108: 0 | P108: 0 | Q108: 0 | R108: 0 | S108: 9301.5 | T108: 9301.5
D109: Interim Balance - Prior to inspections - 2036 | E109: # Meters | F109: n/a | J109: 0 | K109: 0 | L109: 0 | M109: 0 | N109: 0 | O109: 0 | P109: 0 | Q109: 0 | R109: 0 | S109: 0 | T109: 9343.5
D110: Interim Balance - Prior to inspections - 2037 | E110: # Meters | F110: n/a | J110: 0 | K110: 0 | L110: 0 | M110: 0 | N110: 0 | O110: 0 | P110: 0 | Q110: 0 | R110: 0 | S110: 0 | T110: 0
D111: Interim Balance - Prior to inspections - 2038 | E111: # Meters | F111: n/a | J111: 0 | K111: 0 | L111: 0 | M111: 0 | N111: 0 | O111: 0 | P111: 0 | Q111: 0 | R111: 0 | S111: 0 | T111: 0
D112: Interim Balance - Prior to inspections - 2039 | E112: # Meters | F112: n/a | J112: 0 | K112: 0 | L112: 0 | M112: 0 | N112: 0 | O112: 0 | P112: 0 | Q112: 0 | R112: 0 | S112: 0 | T112: 0
D113: Interim Balance - Prior to inspections - 2040 | E113: # Meters | F113: n/a | J113: 0 | K113: 0 | L113: 0 | M113: 0 | N113: 0 | O113: 0 | P113: 0 | Q113: 0 | R113: 0 | S113: 0 | T113: 0
D114: Interim Balance - Prior to inspections - 2041 | E114: # Meters | F114: n/a | J114: 0 | K114: 0 | L114: 0 | M114: 0 | N114: 0 | O114: 0 | P114: 0 | Q114: 0 | R114: 0 | S114: 0 | T114: 0
D116: Total Interim Balance | E116: # Meters | F116: n/a | J116: =SUM(J99:J114) -> 28384.66667 | K116: =SUM(K99:K114) -> 63392.94 | L116: 87513.10668 | M116: 136768.9748 | N116: 158505.4916 | O116: 123326.4408 | P116: 109296.8378 | Q116: 118553.8378 | R116: 127802.8378 | S116: 137104.3378 | T116: 146447.8378
D118: ="Inspections completed - "&I61 -> Inspections completed - 2026 | E118: # Meters | F118: n/a | J118: 0 | K118: =K55 -> -21079.97332 | L118: 0 | M118: 0 | N118: 0 | O118: 0 | P118: 0 | Q118: 0 | R118: 0 | S118: 0 | T118: 0
D119: ="Inspections completed - "&I62 -> Inspections completed - 2027 | E119: # Meters | F119: n/a | J119: 0 | K119: 0 | L119: =L55 -> -21260.03188 | M119: =-M62-M81 -> 0 | N119: 0 | O119: 0 | P119: 0 | Q119: 0 | R119: 0 | S119: 0 | T119: 0
D120: Inspections completed - 2028 | E120: # Meters | F120: n/a | J120: 0 | K120: 0 | L120: 0 | M120: =M55-M119 -> -30674.76318 | N120: =-N63-N82 -> 0 | O120: 0 | P120: 0 | Q120: 0 | R120: 0 | S120: 0 | T120: 0
D121: Inspections completed - 2029 | E121: # Meters | F121: n/a | J121: 0 | K121: 0 | L121: 0 | M121: 0 | N121: =N55-N120 -> -30657.71077 | O121: =O55 -> -23453.10301 | P121: 0 | Q121: 0 | R121: 0 | S121: 0 | T121: 0
D122: Inspections completed - 2030 | E122: # Meters | F122: n/a | J122: 0 | K122: 0 | L122: 0 | M122: 0 | N122: 0 | O122: 0 | P122: 0 | Q122: 0 | R122: 0 | S122: 0 | T122: 0
D123: Inspections completed - 2031 | E123: # Meters | F123: n/a | J123: 0 | K123: 0 | L123: 0 | M123: 0 | N123: 0 | O123: 0 | P123: 0 | Q123: 0 | R123: 0 | S123: 0 | T123: 0
D124: Inspections completed - 2032 | E124: # Meters | F124: n/a | J124: 0 | K124: 0 | L124: 0 | M124: 0 | N124: 0 | O124: 0 | P124: 0 | Q124: 0 | R124: 0 | S124: 0 | T124: 0
D125: Inspections completed - 2033 | E125: # Meters | F125: n/a | J125: 0 | K125: 0 | L125: 0 | M125: 0 | N125: 0 | O125: 0 | P125: 0 | Q125: 0 | R125: 0 | S125: 0 | T125: 0
D126: Inspections completed - 2034 | E126: # Meters | F126: n/a | J126: 0 | K126: 0 | L126: 0 | M126: 0 | N126: 0 | O126: 0 | P126: 0 | Q126: 0 | R126: 0 | S126: 0 | T126: 0
D127: Inspections completed - 2035 | E127: # Meters | F127: n/a | J127: 0 | K127: 0 | L127: 0 | M127: 0 | N127: 0 | O127: 0 | P127: 0 | Q127: 0 | R127: 0 | S127: 0 | T127: 0
D128: Inspections completed - 2036 | E128: # Meters | F128: n/a | J128: 0 | K128: 0 | L128: 0 | M128: 0 | N128: 0 | O128: 0 | P128: 0 | Q128: 0 | R128: 0 | S128: 0 | T128: 0
D129: Inspections completed - 2037 | E129: # Meters | F129: n/a | J129: 0 | K129: 0 | L129: 0 | M129: 0 | N129: 0 | O129: 0 | P129: 0 | Q129: 0 | R129: 0 | S129: 0 | T129: 0
D130: Inspections completed - 2038 | E130: # Meters | F130: n/a | J130: 0 | K130: 0 | L130: 0 | M130: 0 | N130: 0 | O130: 0 | P130: 0 | Q130: 0 | R130: 0 | S130: 0 | T130: 0
D131: Inspections completed - 2039 | E131: # Meters | F131: n/a | J131: 0 | K131: 0 | L131: 0 | M131: 0 | N131: 0 | O131: 0 | P131: 0 | Q131: 0 | R131: 0 | S131: 0 | T131: 0
D132: Inspections completed - 2040 | E132: # Meters | F132: n/a | J132: 0 | K132: 0 | L132: 0 | M132: 0 | N132: 0 | O132: 0 | P132: 0 | Q132: 0 | R132: 0 | S132: 0 | T132: 0
D133: Inspections completed - 2041 | E133: # Meters | F133: n/a | J133: 0 | K133: 0 | L133: 0 | M133: 0 | N133: 0 | O133: 0 | P133: 0 | Q133: 0 | R133: 0 | S133: 0 | T133: 0
D135: Total inspections completed | E135: # Meters | F135: n/a | J135: =SUM(J118:J133) -> 0 | K135: =SUM(K118:K133) -> -21079.97332 | L135: -21260.03188 | M135: -30674.76318 | N135: -30657.71077 | O135: -23453.10301 | P135: 0 | Q135: 0 | R135: 0 | S135: 0 | T135: 0
D137: ="Closing Inspections Due - "&I61 -> Closing Inspections Due - 2026 | E137: # Meters | F137: n/a | J137: =J61+J80+J118 -> 28384.66667 | K137: =K61+K80+K118 -> 5394.633348 | L137: 0 | M137: 0 | N137: 0 | O137: 0 | P137: 0 | Q137: 0 | R137: 0 | S137: 0 | T137: 0
D138: Closing Inspections Due - 2027 | E138: # Meters | F138: n/a | J138: =J62+J81+J119 -> 0 | K138: 36918.33333 | L138: 9592.574803 | M138: 0 | N138: 0 | O138: 0 | P138: 0 | Q138: 0 | R138: 0 | S138: 0 | T138: 0
D139: Closing Inspections Due - 2028 | E139: # Meters | F139: n/a | J139: 0 | K139: 0 | L139: 56660.5 | M139: 16477.71162 | N139: 0 | O139: 0 | P139: 0 | Q139: 0 | R139: 0 | S139: 0 | T139: 0
D140: Closing Inspections Due - 2029 | E140: # Meters | F140: n/a | J140: 0 | K140: 0 | L140: 0 | M140: 89616.5 | N140: 52515.78085 | O140: 2321.837834 | P140: 2321.837834 | Q140: 2321.837834 | R140: 2321.837834 | S140: 2321.837834 | T140: 2321.837834
D141: Closing Inspections Due - 2030 | E141: # Meters | F141: n/a | J141: 0 | K141: 0 | L141: 0 | M141: 0 | N141: 75332 | O141: 75332 | P141: 75332 | Q141: 75332 | R141: 75332 | S141: 75332 | T141: 75332
D142: Closing Inspections Due - 2031 | E142: # Meters | F142: n/a | J142: 0 | K142: 0 | L142: 0 | M142: 0 | N142: 0 | O142: 22219.5 | P142: 22219.5 | Q142: 22219.5 | R142: 22219.5 | S142: 22219.5 | T142: 22219.5
D143: Closing Inspections Due - 2032 | E143: # Meters | F143: n/a | J143: 0 | K143: 0 | L143: 0 | M143: 0 | N143: 0 | O143: 0 | P143: 9423.5 | Q143: 9423.5 | R143: 9423.5 | S143: 9423.5 | T143: 9423.5
D144: Closing Inspections Due - 2033 | E144: # Meters | F144: n/a | J144: 0 | K144: 0 | L144: 0 | M144: 0 | N144: 0 | O144: 0 | P144: 0 | Q144: 9257 | R144: 9257 | S144: 9257 | T144: 9257
D145: Closing Inspections Due - 2034 | E145: # Meters | F145: n/a | J145: 0 | K145: 0 | L145: 0 | M145: 0 | N145: 0 | O145: 0 | P145: 0 | Q145: 0 | R145: 9249 | S145: 9249 | T145: 9249
D146: Closing Inspections Due - 2035 | E146: # Meters | F146: n/a | J146: 0 | K146: 0 | L146: 0 | M146: 0 | N146: 0 | O146: 0 | P146: 0 | Q146: 0 | R146: 0 | S146: 9301.5 | T146: 9301.5
D147: Closing Inspections Due - 2036 | E147: # Meters | F147: n/a | J147: 0 | K147: 0 | L147: 0 | M147: 0 | N147: 0 | O147: 0 | P147: 0 | Q147: 0 | R147: 0 | S147: 0 | T147: 9343.5
D148: Closing Inspections Due - 2037 | E148: # Meters | F148: n/a | J148: 0 | K148: 0 | L148: 0 | M148: 0 | N148: 0 | O148: 0 | P148: 0 | Q148: 0 | R148: 0 | S148: 0 | T148: 0
D149: Closing Inspections Due - 2038 | E149: # Meters | F149: n/a | J149: 0 | K149: 0 | L149: 0 | M149: 0 | N149: 0 | O149: 0 | P149: 0 | Q149: 0 | R149: 0 | S149: 0 | T149: 0
D150: Closing Inspections Due - 2039 | E150: # Meters | F150: n/a | J150: 0 | K150: 0 | L150: 0 | M150: 0 | N150: 0 | O150: 0 | P150: 0 | Q150: 0 | R150: 0 | S150: 0 | T150: 0
D151: Closing Inspections Due - 2040 | E151: # Meters | F151: n/a | J151: 0 | K151: 0 | L151: 0 | M151: 0 | N151: 0 | O151: 0 | P151: 0 | Q151: 0 | R151: 0 | S151: 0 | T151: 0
D152: Closing Inspections Due - 2041 | E152: # Meters | F152: n/a | J152: 0 | K152: 0 | L152: 0 | M152: 0 | N152: 0 | O152: 0 | P152: 0 | Q152: 0 | R152: 0 | S152: 0 | T152: 0
D154: Total Outstanding Inspections Due | E154: # Meters | F154: n/a | J154: =SUM(J137:J152) -> 28384.66667 | K154: =SUM(K137:K152) -> 42312.96668 | L154: 66253.0748 | M154: 106094.2116 | N154: 127847.7808 | O154: 99873.33783 | P154: 109296.8378 | Q154: 118553.8378 | R154: 127802.8378 | S154: 137104.3378 | T154: 146447.8378
A156: =IF(SUM(J156:T156)=0,0,1) -> 0 | D156: Check - replacements | E156: n/a | F156: n/a | J156: =IF(ROUND(J97-J$54,3)=0,0,1) -> 0 | K156: =IF(ROUND(K97-K$54,3)=0,0,1) -> 0 | L156: 0 | M156: 0 | N156: 0 | O156: 0 | P156: 0 | Q156: 0 | R156: 0 | S156: 0 | T156: 0
A157: =IF(SUM(J157:T157)=0,0,1) -> 0 | D157: Check - inspections | E157: n/a | F157: n/a | J157: =IF(ROUND(J135-J$55,3)=0,0,1) -> 0 | K157: =IF(ROUND(K135-K$55,3)=0,0,1) -> 0 | L157: 0 | M157: 0 | N157: 0 | O157: 0 | P157: 0 | Q157: 0 | R157: 0 | S157: 0 | T157: 0
B159: Calculation | Inspection Delay and Meter Age
C161: Calculation | Chart Data - Inspection Delay
D163: Inspection Delay | E163: =E$4 -> Unit | F163: =F$4 -> Basis | J163: =IF(CF_Type=Annually,"FY"&RIGHT(J$3,2),TEXT(DATE(J$3,J$4,1),"mmm-yyyy")) -> FY26 | K163: FY27 | L163: FY28 | M163: FY29 | N163: FY30 | O163: FY31 | P163: FY32 | Q163: FY33 | R163: FY34 | S163: FY35 | T163: =$T$3 -> 2036
D165: ="Inspections - "&I61 -> Inspections - 2026 | E165: =Year -> year | F165: n/a | J165: 1 | K165: =J165+1 -> 2 | L165: =K165+1 -> 3 | M165: 4 | N165: 5 | O165: 6 | P165: 7 | Q165: 8 | R165: 9 | S165: 10 | T165: 11
D166: ="Inspections - "&I62 -> Inspections - 2027 | E166: year | F166: n/a | J166: 0 | K166: 1 | L166: =K166+1 -> 2 | M166: 3 | N166: 4 | O166: 5 | P166: 6 | Q166: 7 | R166: 8 | S166: 9 | T166: 10
D167: Inspections - 2028 | E167: year | F167: n/a | J167: 0 | K167: 0 | L167: 1 | M167: =L167+1 -> 2 | N167: 3 | O167: 4 | P167: 5 | Q167: 6 | R167: 7 | S167: 8 | T167: 9
D168: Inspections - 2029 | E168: year | F168: n/a | J168: 0 | K168: 0 | L168: 0 | M168: 1 | N168: =M168+1 -> 2 | O168: 3 | P168: 4 | Q168: 5 | R168: 6 | S168: 7 | T168: 8
D169: Inspections - 2030 | E169: year | F169: n/a | J169: 0 | K169: 0 | L169: 0 | M169: 0 | N169: 1 | O169: =N169+1 -> 2 | P169: 3 | Q169: 4 | R169: 5 | S169: 6 | T169: 7
D170: Inspections - 2031 | E170: year | F170: n/a | J170: 0 | K170: 0 | L170: 0 | M170: 0 | N170: 0 | O170: 1 | P170: =O170+1 -> 2 | Q170: 3 | R170: 4 | S170: 5 | T170: 6
D171: Inspections - 2032 | E171: year | F171: n/a | J171: 0 | K171: 0 | L171: 0 | M171: 0 | N171: 0 | O171: 0 | P171: 1 | Q171: =P171+1 -> 2 | R171: 3 | S171: 4 | T171: 5
D172: Inspections - 2033 | E172: year | F172: n/a | J172: 0 | K172: 0 | L172: 0 | M172: 0 | N172: 0 | O172: 0 | P172: 0 | Q172: 1 | R172: =Q172+1 -> 2 | S172: 3 | T172: 4
D173: Inspections - 2034 | E173: year | F173: n/a | J173: 0 | K173: 0 | L173: 0 | M173: 0 | N173: 0 | O173: 0 | P173: 0 | Q173: 0 | R173: 1 | S173: =R173+1 -> 2 | T173: 3
D174: Inspections - 2035 | E174: year | F174: n/a | J174: 0 | K174: 0 | L174: 0 | M174: 0 | N174: 0 | O174: 0 | P174: 0 | Q174: 0 | R174: 0 | S174: 1 | T174: =S174+1 -> 2
D175: Inspections - 2036 | E175: year | F175: n/a | J175: 0 | K175: 0 | L175: 0 | M175: 0 | N175: 0 | O175: 0 | P175: 0 | Q175: 0 | R175: 0 | S175: 0 | T175: 1
D176: Inspections - 2037 | E176: year | F176: n/a | J176: 0 | K176: 0 | L176: 0 | M176: 0 | N176: 0 | O176: 0 | P176: 0 | Q176: 0 | R176: 0 | S176: 0 | T176: 0
B178: End

Sheet Output|Charts
D1: =Model_Name -> Inspection and Replacement Obligation Volume Model | M1: Section Check: | N1: =IF(COUNTA($A$7:$A$253)=COUNTIF($A$7:$A$253,0),"Ok","Check") -> Ok | P1: Overall Check: | Q1: =Overall_Check -> Ok | S1: Legend: | T1: Input | U1: Internal | V1: Select | W1: Calculation
D2: =RIGHT(CELL("filename",D1),LEN(CELL("filename",D1))-FIND("]",CELL("filename",D1))) -> Output|Charts | Q2: Next Period | V2: Future Period
P3: 2026 | Q3: ='Input|RP_Vol'!$K$3 -> 2027 | R3: =IF(CF_Type=Annually,Q3+1,IF(R4=1,Q3+1,Q3)) -> 2028 | S3: 2029 | T3: 2030 | U3: 2031 | V3: 2032 | W3: 2033 | X3: 2034 | Y3: 2035 | Z3: 2036 | AA3: 2037
B5: Copyright Jemena Limited. All rights reserved. Jemena is not liable for any loss caused by reliance on this document.
B7: Output | Summary by driver
C9: Output | Proactive Replacements by Scenario
Q11: =Q$2 -> Next Period | V11: =V$2 -> Future Period
P12: Proactive Meter Replacements | Q12: ="FY"&RIGHT(Q$3,2) -> FY27 | R12: FY28 | S12: FY29 | T12: FY30 | U12: FY31 | V12: FY32 | W12: FY33 | X12: FY34 | Y12: FY35 | Z12: FY36 | AA12: Total
P13: Revised Proposal | Q13: ='[1]Input|Vol&Costs'!N265 -> 22284.4 | R13: ='[1]Input|Vol&Costs'!O265 -> 29802 | S13: ='[1]Input|Vol&Costs'!P265 -> 34802.2 | T13: ='[1]Input|Vol&Costs'!Q265 -> 37801.8 | U13: ='[1]Input|Vol&Costs'!R265 -> 41664.2 | V13: 50038 | W13: 48573 | X13: 34710 | Y13: 28203 | Z13: 9260 | AA13: =SUM(Q13:Z13) -> 337138.6
P14: Adjusted AER DD | Q14: 3032.714142 | R14: 18196.28485 | S14: 30327.14142 | T14: 36392.5697 | U14: 42457.99799 | V14: =V13/SUM($V$13:$Z$13)*$Q$22 -> 41590.3653 | W14: =W13/SUM($V$13:$Z$13)*$Q$22 -> 40372.69302 | X14: =X13/SUM($V$13:$Z$13)*$Q$22 -> 28850.10551 | Y14: =Y13/SUM($V$13:$Z$13)*$Q$22 -> 23441.6458 | Z14: =Z13/SUM($V$13:$Z$13)*$Q$22 -> 7696.686171 | AA14: =SUM(Q14:Z14) -> 272358.2039
P15: Initial Proposal | Q15: ='[3]Input|Vol&Costs'!N282 -> 1910.06 | R15: ='[3]Input|Vol&Costs'!O282 -> 11460.36 | S15: ='[3]Input|Vol&Costs'!P282 -> 19100.6 | T15: ='[3]Input|Vol&Costs'!Q282 -> 22920.72 | U15: ='[3]Input|Vol&Costs'!R282 -> 26740.84 | V15: ='[3]Input|Vol&Costs'!S282 -> 18807.9943 | W15: ='[3]Input|Vol&Costs'!T282 -> 14454.86645 | X15: ='[3]Input|Vol&Costs'!U282 -> 5821.487418 | Y15: ='[3]Input|Vol&Costs'!V282 -> 3785.061588 | Z15: ='[3]Input|Vol&Costs'!W282 -> 3740.866986 | AA15: =SUM(Q15:Z15) -> 128742.8567
P17: Title: | Q17: Proactive Meter Replacements by Scenario
P18: Y-axis: | Q18: Number of meters
P20: Meter Population (FY31) | Q20: ='[2]Input | Meters Vols & Costs'!U427 -> 430156.0479
P21: Replacement Proportion | Q21: 0.33
P22: Replacements in 2031-36 | Q22: =Q20*Q21 -> 141951.4958
C32: Output | Planned Meter Inspections by Scenario
Q34: =Q$2 -> Next Period | V34: =V$2 -> Future Period
P35: Planned Meter Inspections | Q35: ="FY"&RIGHT(Q$3,2) -> FY27 | R35: FY28 | S35: FY29 | T35: FY30 | U35: FY31 | V35: FY32 | W35: FY33 | X35: FY34 | Y35: FY35 | Z35: FY36 | AA35: Total
P36: =$P$13 -> Revised Proposal | Q36: ='[1]Input|Vol&Costs'!N288 -> 0 | R36: ='[1]Input|Vol&Costs'!O288 -> 0 | S36: ='[1]Input|Vol&Costs'!P288 -> 0 | T36: ='[1]Input|Vol&Costs'!Q288 -> 0 | U36: ='[1]Input|Vol&Costs'!R288 -> 0 | V36: ='[1]Input|Vol&Costs'!S288 -> 0 | W36: ='[1]Input|Vol&Costs'!T288 -> 0 | X36: ='[1]Input|Vol&Costs'!U288 -> 0 | Y36: ='[1]Input|Vol&Costs'!V288 -> 0 | Z36: ='[1]Input|Vol&Costs'!W288 -> 0 | AA36: =SUM(Q36:Z36) -> 0
P37: =$P$14 -> Adjusted AER DD | Q37: 0 | R37: 0 | S37: 0 | T37: 0 | U37: 0 | V37: 0 | W37: 0 | X37: 0 | Y37: 0 | Z37: 0 | AA37: =SUM(Q37:Z37) -> 0
P38: =$P$15 -> Initial Proposal | Q38: ='[3]Input|Vol&Costs'!N283 -> 21079.97332 | R38: ='[3]Input|Vol&Costs'!O283 -> 21260.03188 | S38: ='[3]Input|Vol&Costs'!P283 -> 30674.76318 | T38: ='[3]Input|Vol&Costs'!Q283 -> 30657.71077 | U38: ='[3]Input|Vol&Costs'!R283 -> 23453.10301 | V38: ='[3]Input|Vol&Costs'!S283 -> 24541.78469 | W38: ='[3]Input|Vol&Costs'!T283 -> 17747.45114 | X38: ='[3]Input|Vol&Costs'!U283 -> 4810.259114 | Y38: ='[3]Input|Vol&Costs'!V283 -> 2062.486117 | Z38: ='[3]Input|Vol&Costs'!W283 -> 1892.536957 | AA38: =SUM(Q38:Z38) -> 178180.1002
P40: Title: | Q40: Planned Meter Inspections by Scenario
P41: Y-axis: | Q41: Number of meters
B55: Output | Charts by option
C57: ="Output | "&$P$13 -> Output | Revised Proposal
Q59: =Q$2 -> Next Period | V59: =V$2 -> Future Period
Q60: ="FY"&RIGHT(Q$3,2) -> FY27 | R60: FY28 | S60: FY29 | T60: FY30 | U60: FY31 | V60: FY32 | W60: FY33 | X60: FY34 | Y60: FY35 | Z60: FY36 | AA60: Total
P61: =$P$12 -> Proactive Meter Replacements | Q61: =Q$13 -> 22284.4 | R61: =R$13 -> 29802 | S61: 34802.2 | T61: 37801.8 | U61: 41664.2 | V61: 50038 | W61: 48573 | X61: 34710 | Y61: 28203 | Z61: 9260 | AA61: =SUM(Q61:Z61) -> 337138.6
P62: Planned Meter Inspections | Q62: =Q$36 -> 0 | R62: =R$36 -> 0 | S62: 0 | T62: 0 | U62: 0 | V62: 0 | W62: 0 | X62: 0 | Y62: 0 | Z62: 0 | AA62: =SUM(Q62:Z62) -> 0
P65: Title: | Q65: =$P$13 -> Revised Proposal
P66: Y-axis: | Q66: Number of meters
Q80: =Q$2 -> Next Period | V80: =V$2 -> Future Period
P81: =P61 -> Proactive Meter Replacements | Q81: ="FY"&RIGHT(Q$3,2) -> FY27 | R81: FY28 | S81: FY29 | T81: FY30 | U81: FY31 | V81: FY32 | W81: FY33 | X81: FY34 | Y81: FY35 | Z81: FY36
P82: 2026-31: | Q82: =Q61 -> 22284.4 | R82: =R61 -> 29802 | S82: =S61 -> 34802.2 | T82: =T61 -> 37801.8 | U82: =U61 -> 41664.2 | V82: =NA() ->  | W82: =NA() ->  | X82: =NA() ->  | Y82: =NA() ->  | Z82: =NA() -> 
P83: 2031-36: | Q83: =NA() ->  | R83: =NA() ->  | S83: =NA() ->  | T83: =NA() ->  | U83: =NA() ->  | V83: =V61 -> 50038 | W83: =W61 -> 48573 | X83: =X61 -> 34710 | Y83: =Y61 -> 28203 | Z83: =Z61 -> 9260
P85: 2026-31: | Q85: =SUM(Q61:U61) -> 166354.6 | R85: =TEXT(Q85,"0,000")&" replacements" -> 166,355 replacements
P86: 2031-36: | Q86: =SUM(V61:Z61) -> 170784 | R86: =TEXT(Q86,"0,000")&" replacements" -> 170,784 replacements
C101: ="Output | "&$P$14 -> Output | Adjusted AER DD
Q103: =Q$2 -> Next Period | V103: =V$2 -> Future Period
Q104: ="FY"&RIGHT(Q$3,2) -> FY27 | R104: FY28 | S104: FY29 | T104: FY30 | U104: FY31 | V104: FY32 | W104: FY33 | X104: FY34 | Y104: FY35 | Z104: FY36 | AA104: Total
P105: =$P$12 -> Proactive Meter Replacements | Q105: =Q$14 -> 3032.714142 | R105: =R$14 -> 18196.28485 | S105: 30327.14142 | T105: 36392.5697 | U105: 42457.99799 | V105: 41590.3653 | W105: 40372.69302 | X105: 28850.10551 | Y105: 23441.6458 | Z105: 7696.686171 | AA105: 272358.2039
P106: Planned Meter Inspections | Q106: =Q$37 -> 0 | R106: =R$37 -> 0 | S106: 0 | T106: 0 | U106: 0 | V106: 0 | W106: 0 | X106: 0 | Y106: 0 | Z106: 0 | AA106: 0
P109: Title: | Q109: =$P$14 -> Adjusted AER DD
P110: Y-axis: | Q110: Number of meters
C124: ="Output | "&$P$15 -> Output | Initial Proposal
Q126: =Q$2 -> Next Period | V126: =V$2 -> Future Period
Q127: ="FY"&RIGHT(Q$3,2) -> FY27 | R127: FY28 | S127: FY29 | T127: FY30 | U127: FY31 | V127: FY32 | W127: FY33 | X127: FY34 | Y127: FY35 | Z127: FY36 | AA127: Total
P128: =$P$12 -> Proactive Meter Replacements | Q128: =Q$15 -> 1910.06 | R128: =R$15 -> 11460.36 | S128: 19100.6 | T128: 22920.72 | U128: 26740.84 | V128: 18807.9943 | W128: 14454.86645 | X128: 5821.487418 | Y128: 3785.061588 | Z128: 3740.866986 | AA128: 128742.8567
P129: Planned Meter Inspections | Q129: =Q$38 -> 21079.97332 | R129: =R$38 -> 21260.03188 | S129: 30674.76318 | T129: 30657.71077 | U129: 23453.10301 | V129: 24541.78469 | W129: 17747.45114 | X129: 4810.259114 | Y129: 2062.486117 | Z129: 1892.536957 | AA129: 178180.1002
P132: Title: | Q132: =$P$15 -> Initial Proposal
P133: Y-axis: | Q133: Number of meters
B147: Output | Other charts
C149: Output | Total activity profiles
Q151: =Q$2 -> Next Period | V151: =V$2 -> Future Period
Q152: ="FY"&RIGHT(Q$3,2) -> FY27 | R152: FY28 | S152: FY29 | T152: FY30 | U152: FY31 | V152: FY32 | W152: FY33 | X152: FY34 | Y152: FY35 | Z152: FY36
P153: Revised Proposal | Q153: =Q13+Q36 -> 22284.4 | R153: 29802 | S153: 34802.2 | T153: 37801.8 | U153: 41664.2 | V153: 50038 | W153: 48573 | X153: 34710 | Y153: 28203 | Z153: 9260
P154: Adjusted Draft Decision | Q154: =Q14+Q37 -> 3032.714142 | R154: 18196.28485 | S154: 30327.14142 | T154: 36392.5697 | U154: 42457.99799 | V154: 41590.3653 | W154: 40372.69302 | X154: 28850.10551 | Y154: 23441.6458 | Z154: 7696.686171
P155: Initial Proposal | Q155: =Q15+Q38 -> 22990.03332 | R155: 32720.39188 | S155: 49775.36318 | T155: 53578.43077 | U155: 50193.94301 | V155: 43349.77899 | W155: 32202.31759 | X155: 10631.74653 | Y155: 5847.547705 | Z155: 5633.403943
P157: Title: | Q157: Total Activity: Proactive Replacements + Planned Inspections
P158: Y-axis: | Q158: Number of meters
C172: ="Output | "&Q192 -> Output | Annual balance of aged AMI meter inspection obligations volumes - impact of Revised Proposal on JEN's 2031-36 inspection obligations
Q174: =Q$2 -> Next Period | V174: =V$2 -> Future Period
Q175: ='Input|AER_DD_Vol'!K$59 -> FY27 | R175: ='Input|AER_DD_Vol'!L$59 -> FY28 | S175: ='Input|AER_DD_Vol'!M$59 -> FY29 | T175: ='Input|AER_DD_Vol'!N$59 -> FY30 | U175: ='Input|AER_DD_Vol'!O$59 -> FY31 | V175: ='Input|AER_DD_Vol'!P$59 -> FY32 | W175: ='Input|AER_DD_Vol'!Q$59 -> FY33 | X175: ='Input|AER_DD_Vol'!R$59 -> FY34 | Y175: ='Input|AER_DD_Vol'!S$59 -> FY35 | Z175: ='Input|AER_DD_Vol'!T$59 -> FY36 | AA175: Criteria | AC175: =Q175 -> FY27 | AD175: =R175 -> FY28 | AE175: FY29 | AF175: FY30 | AG175: FY31 | AH175: FY32 | AI175: FY33 | AJ175: =X175 -> FY34 | AK175: =Y175 -> FY35 | AL175: =Z175 -> FY36
P176: Inspection delay - 0-5 yrs | Q176: =SUM(Q181:Q185) -> 43018.6 | R176: 69877.1 | S176: 124691.4 | T176: 162221.6 | U176: 142776.9 | V176: 152200.4 | W176: 161457.4 | X176: 125481 | Y176: 59450.5 | Z176: 46574.5 | AC176: =IF(OR(Q176/SUM(Q$176:Q$179)=0,Q176/SUM(Q$176:Q$179)=1),"",Q176/SUM(Q$176:Q$179)) ->  | AD176: =IF(OR(R176/SUM(R$176:R$179)=0,R176/SUM(R$176:R$179)=1),"",R176/SUM(R$176:R$179)) ->  | AJ176: 0.7350691011 | AK176: 0.3302660605 | AL176: 0.2459686065
P177: ="Inspection delay - "&AA177&" yrs" -> Inspection delay - 6 yrs | Q177: =Q186 -> 0 | R177: 0 | S177: 0 | T177: 0 | U177: 0 | V177: 0 | W177: 0 | X177: 45225.4 | Y177: 75332 | Z177: 22219.5 | AA177: 6 | AC177: =IF(OR(Q177/SUM(Q$176:Q$179)=0,Q177/SUM(Q$176:Q$179)=1),"",Q177/SUM(Q$176:Q$179)) ->  | AD177: =IF(OR(R177/SUM(R$176:R$179)=0,R177/SUM(R$176:R$179)=1),"",R177/SUM(R$176:R$179)) ->  | AJ177: 0.2649308989 | AK177: 0.4184927439 | AL177: 0.1173453167
P178: ="Inspection delay - "&AA178&" yrs" -> Inspection delay - 7 yrs | Q178: =Q187 -> 0 | R178: 0 | S178: 0 | T178: 0 | U178: 0 | V178: 0 | W178: 0 | X178: 0 | Y178: 45225.4 | Z178: 75332 | AA178: =AA177+1 -> 7 | AC178: =IF(OR(Q178/SUM(Q$176:Q$179)=0,Q178/SUM(Q$176:Q$179)=1),"",Q178/SUM(Q$176:Q$179)) ->  | AK178: 0.2512411955 | AL178: 0.3978423186
P179: ="Inspection delay - "&AA179&" yrs" -> Inspection delay - 8 yrs | Q179: =Q188 -> 0 | R179: 0 | S179: 0 | T179: 0 | U179: 0 | V179: 0 | W179: 0 | X179: 0 | Y179: 0 | Z179: 45225.4 | AA179: =AA178+1 -> 8 | AC179: =IF(OR(Q179/SUM(Q$176:Q$179)=0,Q179/SUM(Q$176:Q$179)=1),"",Q179/SUM(Q$176:Q$179)) ->  | AL179: 0.2388437582
P181: ="Inspection delay - "&AA181&" yr" -> Inspection delay - 1 yr | Q181: =SUMPRODUCT(('Input|RP_Vol'!K$137:K$148)*('Input|RP_Vol'!K$165:K$176=$AA181)) -> 36918.33333 | R181: =SUMPRODUCT(('Input|RP_Vol'!L$137:L$148)*('Input|RP_Vol'!L$165:L$176=$AA181)) -> 56660.5 | S181: =SUMPRODUCT(('Input|RP_Vol'!M$137:M$148)*('Input|RP_Vol'!M$165:M$176=$AA181)) -> 89616.5 | T181: =SUMPRODUCT(('Input|RP_Vol'!N$137:N$148)*('Input|RP_Vol'!N$165:N$176=$AA181)) -> 75332 | U181: =SUMPRODUCT(('Input|RP_Vol'!O$137:O$148)*('Input|RP_Vol'!O$165:O$176=$AA181)) -> 22219.5 | V181: =SUMPRODUCT(('Input|RP_Vol'!P$137:P$148)*('Input|RP_Vol'!P$165:P$176=$AA181)) -> 9423.5 | W181: =SUMPRODUCT(('Input|RP_Vol'!Q$137:Q$148)*('Input|RP_Vol'!Q$165:Q$176=$AA181)) -> 9257 | X181: =SUMPRODUCT(('Input|RP_Vol'!R$137:R$148)*('Input|RP_Vol'!R$165:R$176=$AA181)) -> 9249 | Y181: =SUMPRODUCT(('Input|RP_Vol'!S$137:S$148)*('Input|RP_Vol'!S$165:S$176=$AA181)) -> 9301.5 | Z181: =SUMPRODUCT(('Input|RP_Vol'!T$137:T$148)*('Input|RP_Vol'!T$165:T$176=$AA181)) -> 9343.5 | AA181: 1
P182: ="Inspection delay - "&AA182&" yrs" -> Inspection delay - 2 yrs | Q182: =SUMPRODUCT(('Input|RP_Vol'!K$137:K$148)*('Input|RP_Vol'!K$165:K$176=$AA182)) -> 6100.266667 | R182: =SUMPRODUCT(('Input|RP_Vol'!L$137:L$148)*('Input|RP_Vol'!L$165:L$176=$AA182)) -> 13216.6 | S182: =SUMPRODUCT(('Input|RP_Vol'!M$137:M$148)*('Input|RP_Vol'!M$165:M$176=$AA182)) -> 35074.9 | T182: =SUMPRODUCT(('Input|RP_Vol'!N$137:N$148)*('Input|RP_Vol'!N$165:N$176=$AA182)) -> 86889.6 | U182: =SUMPRODUCT(('Input|RP_Vol'!O$137:O$148)*('Input|RP_Vol'!O$165:O$176=$AA182)) -> 75332 | V182: =SUMPRODUCT(('Input|RP_Vol'!P$137:P$148)*('Input|RP_Vol'!P$165:P$176=$AA182)) -> 22219.5 | W182: =SUMPRODUCT(('Input|RP_Vol'!Q$137:Q$148)*('Input|RP_Vol'!Q$165:Q$176=$AA182)) -> 9423.5 | X182: =SUMPRODUCT(('Input|RP_Vol'!R$137:R$148)*('Input|RP_Vol'!R$165:R$176=$AA182)) -> 9257 | Y182: =SUMPRODUCT(('Input|RP_Vol'!S$137:S$148)*('Input|RP_Vol'!S$165:S$176=$AA182)) -> 9249 | Z182: =SUMPRODUCT(('Input|RP_Vol'!T$137:T$148)*('Input|RP_Vol'!T$165:T$176=$AA182)) -> 9301.5 | AA182: =AA181+1 -> 2
P183: ="Inspection delay - "&AA183&" yrs" -> Inspection delay - 3 yrs | Q183: =SUMPRODUCT(('Input|RP_Vol'!K$137:K$148)*('Input|RP_Vol'!K$165:K$176=$AA183)) -> 0 | R183: =SUMPRODUCT(('Input|RP_Vol'!L$137:L$148)*('Input|RP_Vol'!L$165:L$176=$AA183)) -> 0 | S183: =SUMPRODUCT(('Input|RP_Vol'!M$137:M$148)*('Input|RP_Vol'!M$165:M$176=$AA183)) -> 0 | T183: =SUMPRODUCT(('Input|RP_Vol'!N$137:N$148)*('Input|RP_Vol'!N$165:N$176=$AA183)) -> 0 | U183: =SUMPRODUCT(('Input|RP_Vol'!O$137:O$148)*('Input|RP_Vol'!O$165:O$176=$AA183)) -> 45225.4 | V183: =SUMPRODUCT(('Input|RP_Vol'!P$137:P$148)*('Input|RP_Vol'!P$165:P$176=$AA183)) -> 75332 | W183: =SUMPRODUCT(('Input|RP_Vol'!Q$137:Q$148)*('Input|RP_Vol'!Q$165:Q$176=$AA183)) -> 22219.5 | X183: =SUMPRODUCT(('Input|RP_Vol'!R$137:R$148)*('Input|RP_Vol'!R$165:R$176=$AA183)) -> 9423.5 | Y183: =SUMPRODUCT(('Input|RP_Vol'!S$137:S$148)*('Input|RP_Vol'!S$165:S$176=$AA183)) -> 9257 | Z183: =SUMPRODUCT(('Input|RP_Vol'!T$137:T$148)*('Input|RP_Vol'!T$165:T$176=$AA183)) -> 9249 | AA183: 3
P184: Inspection delay - 4 yrs | Q184: =SUMPRODUCT(('Input|RP_Vol'!K$137:K$148)*('Input|RP_Vol'!K$165:K$176=$AA184)) -> 0 | R184: =SUMPRODUCT(('Input|RP_Vol'!L$137:L$148)*('Input|RP_Vol'!L$165:L$176=$AA184)) -> 0 | S184: =SUMPRODUCT(('Input|RP_Vol'!M$137:M$148)*('Input|RP_Vol'!M$165:M$176=$AA184)) -> 0 | T184: =SUMPRODUCT(('Input|RP_Vol'!N$137:N$148)*('Input|RP_Vol'!N$165:N$176=$AA184)) -> 0 | U184: =SUMPRODUCT(('Input|RP_Vol'!O$137:O$148)*('Input|RP_Vol'!O$165:O$176=$AA184)) -> 0 | V184: =SUMPRODUCT(('Input|RP_Vol'!P$137:P$148)*('Input|RP_Vol'!P$165:P$176=$AA184)) -> 45225.4 | W184: =SUMPRODUCT(('Input|RP_Vol'!Q$137:Q$148)*('Input|RP_Vol'!Q$165:Q$176=$AA184)) -> 75332 | X184: =SUMPRODUCT(('Input|RP_Vol'!R$137:R$148)*('Input|RP_Vol'!R$165:R$176=$AA184)) -> 22219.5 | Y184: =SUMPRODUCT(('Input|RP_Vol'!S$137:S$148)*('Input|RP_Vol'!S$165:S$176=$AA184)) -> 9423.5 | Z184: =SUMPRODUCT(('Input|RP_Vol'!T$137:T$148)*('Input|RP_Vol'!T$165:T$176=$AA184)) -> 9257 | AA184: 4
P185: Inspection delay - 5 yrs | Q185: =SUMPRODUCT(('Input|RP_Vol'!K$137:K$148)*('Input|RP_Vol'!K$165:K$176=$AA185)) -> 0 | R185: =SUMPRODUCT(('Input|RP_Vol'!L$137:L$148)*('Input|RP_Vol'!L$165:L$176=$AA185)) -> 0 | S185: =SUMPRODUCT(('Input|RP_Vol'!M$137:M$148)*('Input|RP_Vol'!M$165:M$176=$AA185)) -> 0 | T185: =SUMPRODUCT(('Input|RP_Vol'!N$137:N$148)*('Input|RP_Vol'!N$165:N$176=$AA185)) -> 0 | U185: =SUMPRODUCT(('Input|RP_Vol'!O$137:O$148)*('Input|RP_Vol'!O$165:O$176=$AA185)) -> 0 | V185: =SUMPRODUCT(('Input|RP_Vol'!P$137:P$148)*('Input|RP_Vol'!P$165:P$176=$AA185)) -> 0 | W185: =SUMPRODUCT(('Input|RP_Vol'!Q$137:Q$148)*('Input|RP_Vol'!Q$165:Q$176=$AA185)) -> 45225.4 | X185: =SUMPRODUCT(('Input|RP_Vol'!R$137:R$148)*('Input|RP_Vol'!R$165:R$176=$AA185)) -> 75332 | Y185: =SUMPRODUCT(('Input|RP_Vol'!S$137:S$148)*('Input|RP_Vol'!S$165:S$176=$AA185)) -> 22219.5 | Z185: =SUMPRODUCT(('Input|RP_Vol'!T$137:T$148)*('Input|RP_Vol'!T$165:T$176=$AA185)) -> 9423.5 | AA185: 5
P186: Inspection delay - 6 yrs | Q186: =SUMPRODUCT(('Input|RP_Vol'!K$137:K$148)*('Input|RP_Vol'!K$165:K$176=$AA186)) -> 0 | R186: =SUMPRODUCT(('Input|RP_Vol'!L$137:L$148)*('Input|RP_Vol'!L$165:L$176=$AA186)) -> 0 | S186: =SUMPRODUCT(('Input|RP_Vol'!M$137:M$148)*('Input|RP_Vol'!M$165:M$176=$AA186)) -> 0 | T186: =SUMPRODUCT(('Input|RP_Vol'!N$137:N$148)*('Input|RP_Vol'!N$165:N$176=$AA186)) -> 0 | U186: =SUMPRODUCT(('Input|RP_Vol'!O$137:O$148)*('Input|RP_Vol'!O$165:O$176=$AA186)) -> 0 | V186: =SUMPRODUCT(('Input|RP_Vol'!P$137:P$148)*('Input|RP_Vol'!P$165:P$176=$AA186)) -> 0 | W186: =SUMPRODUCT(('Input|RP_Vol'!Q$137:Q$148)*('Input|RP_Vol'!Q$165:Q$176=$AA186)) -> 0 | X186: =SUMPRODUCT(('Input|RP_Vol'!R$137:R$148)*('Input|RP_Vol'!R$165:R$176=$AA186)) -> 45225.4 | Y186: =SUMPRODUCT(('Input|RP_Vol'!S$137:S$148)*('Input|RP_Vol'!S$165:S$176=$AA186)) -> 75332 | Z186: =SUMPRODUCT(('Input|RP_Vol'!T$137:T$148)*('Input|RP_Vol'!T$165:T$176=$AA186)) -> 22219.5 | AA186: 6
P187: Inspection delay - 7 yrs | Q187: =SUMPRODUCT(('Input|RP_Vol'!K$137:K$148)*('Input|RP_Vol'!K$165:K$176=$AA187)) -> 0 | R187: =SUMPRODUCT(('Input|RP_Vol'!L$137:L$148)*('Input|RP_Vol'!L$165:L$176=$AA187)) -> 0 | S187: =SUMPRODUCT(('Input|RP_Vol'!M$137:M$148)*('Input|RP_Vol'!M$165:M$176=$AA187)) -> 0 | T187: =SUMPRODUCT(('Input|RP_Vol'!N$137:N$148)*('Input|RP_Vol'!N$165:N$176=$AA187)) -> 0 | U187: =SUMPRODUCT(('Input|RP_Vol'!O$137:O$148)*('Input|RP_Vol'!O$165:O$176=$AA187)) -> 0 | V187: =SUMPRODUCT(('Input|RP_Vol'!P$137:P$148)*('Input|RP_Vol'!P$165:P$176=$AA187)) -> 0 | W187: =SUMPRODUCT(('Input|RP_Vol'!Q$137:Q$148)*('Input|RP_Vol'!Q$165:Q$176=$AA187)) -> 0 | X187: =SUMPRODUCT(('Input|RP_Vol'!R$137:R$148)*('Input|RP_Vol'!R$165:R$176=$AA187)) -> 0 | Y187: =SUMPRODUCT(('Input|RP_Vol'!S$137:S$148)*('Input|RP_Vol'!S$165:S$176=$AA187)) -> 45225.4 | Z187: =SUMPRODUCT(('Input|RP_Vol'!T$137:T$148)*('Input|RP_Vol'!T$165:T$176=$AA187)) -> 75332 | AA187: 7
P188: Inspection delay - 8 yrs | Q188: =SUMPRODUCT(('Input|RP_Vol'!K$137:K$148)*('Input|RP_Vol'!K$165:K$176=$AA188)) -> 0 | R188: =SUMPRODUCT(('Input|RP_Vol'!L$137:L$148)*('Input|RP_Vol'!L$165:L$176=$AA188)) -> 0 | S188: =SUMPRODUCT(('Input|RP_Vol'!M$137:M$148)*('Input|RP_Vol'!M$165:M$176=$AA188)) -> 0 | T188: =SUMPRODUCT(('Input|RP_Vol'!N$137:N$148)*('Input|RP_Vol'!N$165:N$176=$AA188)) -> 0 | U188: =SUMPRODUCT(('Input|RP_Vol'!O$137:O$148)*('Input|RP_Vol'!O$165:O$176=$AA188)) -> 0 | V188: =SUMPRODUCT(('Input|RP_Vol'!P$137:P$148)*('Input|RP_Vol'!P$165:P$176=$AA188)) -> 0 | W188: =SUMPRODUCT(('Input|RP_Vol'!Q$137:Q$148)*('Input|RP_Vol'!Q$165:Q$176=$AA188)) -> 0 | X188: =SUMPRODUCT(('Input|RP_Vol'!R$137:R$148)*('Input|RP_Vol'!R$165:R$176=$AA188)) -> 0 | Y188: =SUMPRODUCT(('Input|RP_Vol'!S$137:S$148)*('Input|RP_Vol'!S$165:S$176=$AA188)) -> 0 | Z188: =SUMPRODUCT(('Input|RP_Vol'!T$137:T$148)*('Input|RP_Vol'!T$165:T$176=$AA188)) -> 45225.4 | AA188: 8
P189: Inspection delay - 9 yrs | Q189: =SUMPRODUCT(('Input|RP_Vol'!K$137:K$148)*('Input|RP_Vol'!K$165:K$176=$AA189)) -> 0 | R189: =SUMPRODUCT(('Input|RP_Vol'!L$137:L$148)*('Input|RP_Vol'!L$165:L$176=$AA189)) -> 0 | S189: =SUMPRODUCT(('Input|RP_Vol'!M$137:M$148)*('Input|RP_Vol'!M$165:M$176=$AA189)) -> 0 | T189: =SUMPRODUCT(('Input|RP_Vol'!N$137:N$148)*('Input|RP_Vol'!N$165:N$176=$AA189)) -> 0 | U189: =SUMPRODUCT(('Input|RP_Vol'!O$137:O$148)*('Input|RP_Vol'!O$165:O$176=$AA189)) -> 0 | V189: =SUMPRODUCT(('Input|RP_Vol'!P$137:P$148)*('Input|RP_Vol'!P$165:P$176=$AA189)) -> 0 | W189: =SUMPRODUCT(('Input|RP_Vol'!Q$137:Q$148)*('Input|RP_Vol'!Q$165:Q$176=$AA189)) -> 0 | X189: =SUMPRODUCT(('Input|RP_Vol'!R$137:R$148)*('Input|RP_Vol'!R$165:R$176=$AA189)) -> 0 | Y189: =SUMPRODUCT(('Input|RP_Vol'!S$137:S$148)*('Input|RP_Vol'!S$165:S$176=$AA189)) -> 0 | Z189: =SUMPRODUCT(('Input|RP_Vol'!T$137:T$148)*('Input|RP_Vol'!T$165:T$176=$AA189)) -> 0 | AA189: 9
P190: Inspection delay - 10 yrs | Q190: =SUMPRODUCT(('Input|RP_Vol'!K$137:K$148)*('Input|RP_Vol'!K$165:K$176=$AA190)) -> 0 | R190: =SUMPRODUCT(('Input|RP_Vol'!L$137:L$148)*('Input|RP_Vol'!L$165:L$176=$AA190)) -> 0 | S190: =SUMPRODUCT(('Input|RP_Vol'!M$137:M$148)*('Input|RP_Vol'!M$165:M$176=$AA190)) -> 0 | T190: =SUMPRODUCT(('Input|RP_Vol'!N$137:N$148)*('Input|RP_Vol'!N$165:N$176=$AA190)) -> 0 | U190: =SUMPRODUCT(('Input|RP_Vol'!O$137:O$148)*('Input|RP_Vol'!O$165:O$176=$AA190)) -> 0 | V190: =SUMPRODUCT(('Input|RP_Vol'!P$137:P$148)*('Input|RP_Vol'!P$165:P$176=$AA190)) -> 0 | W190: =SUMPRODUCT(('Input|RP_Vol'!Q$137:Q$148)*('Input|RP_Vol'!Q$165:Q$176=$AA190)) -> 0 | X190: =SUMPRODUCT(('Input|RP_Vol'!R$137:R$148)*('Input|RP_Vol'!R$165:R$176=$AA190)) -> 0 | Y190: =SUMPRODUCT(('Input|RP_Vol'!S$137:S$148)*('Input|RP_Vol'!S$165:S$176=$AA190)) -> 0 | Z190: =SUMPRODUCT(('Input|RP_Vol'!T$137:T$148)*('Input|RP_Vol'!T$165:T$176=$AA190)) -> 0 | AA190: 10
P192: Title: | Q192: Annual balance of aged AMI meter inspection obligations volumes - impact of Revised Proposal on JEN's 2031-36 inspection obligations
P193: Y-axis: | Q193: # of remaining inspections / replacements
P195: Min replacements required to meet obligations: | Q195: =SUM(Z186:Z190) -> 142776.9 | S195: Age profile of inspections due when planning 2031-36 inspections or replacements
P196: Prudent replacements (Min + 50% of 0-5 years): | Q196: =Q195+50%*SUM(Z181:Z185) -> 166064.15
C199: ="Output | "&Q219 -> Output | Annual balance of aged AMI meter inspection obligations volumes - impact of AER Draft Decision on JEN's 2031-36 inspection obligations
Q201: =Q$2 -> Next Period | V201: =V$2 -> Future Period
Q202: ='Input|AER_DD_Vol'!K$59 -> FY27 | R202: ='Input|AER_DD_Vol'!L$59 -> FY28 | S202: ='Input|AER_DD_Vol'!M$59 -> FY29 | T202: ='Input|AER_DD_Vol'!N$59 -> FY30 | U202: ='Input|AER_DD_Vol'!O$59 -> FY31 | V202: ='Input|AER_DD_Vol'!P$59 -> FY32 | W202: ='Input|AER_DD_Vol'!Q$59 -> FY33 | X202: ='Input|AER_DD_Vol'!R$59 -> FY34 | Y202: ='Input|AER_DD_Vol'!S$59 -> FY35 | Z202: ='Input|AER_DD_Vol'!T$59 -> FY36 | AA202: Criteria | AC202: =Q202 -> FY27 | AD202: FY28 | AE202: FY29 | AF202: FY30 | AG202: FY31 | AH202: FY32 | AI202: FY33 | AJ202: FY34 | AK202: FY35 | AL202: FY36
P203: Inspection delay - 0-5 yrs | Q203: =SUM(Q208:Q212) -> 62270.28586 | R203: 100734.501 | S203: 160023.8596 | T203: 198963.2899 | U203: 178724.7919 | V203: 188148.2919 | W203: 197405.2919 | X203: 125481 | Y203: 59450.5 | Z203: 46574.5 | AC203: =IF(OR(Q203/SUM(Q$203:Q$206)=0,Q203/SUM(Q$203:Q$206)=1),"",Q203/SUM(Q$203:Q$206)) ->  | AD203: =IF(OR(R203/SUM(R$203:R$206)=0,R203/SUM(R$203:R$206)=1),"",R203/SUM(R$203:R$206)) ->  | AJ203: 0.607202487 | AK203: 0.2752901391 | AL203: 0.206722798
P204: ="Inspection delay - "&AA204&" yrs" -> Inspection delay - 6 yrs | Q204: =Q213 -> 0 | R204: 0 | S204: 0 | T204: 0 | U204: 0 | V204: 0 | W204: 0 | X204: 81173.2919 | Y204: 75332 | Z204: 22219.5 | AA204: 6 | AC204: =IF(OR(Q204/SUM(Q$203:Q$206)=0,Q204/SUM(Q$203:Q$206)=1),"",Q204/SUM(Q$203:Q$206)) ->  | AD204: =IF(OR(R204/SUM(R$203:R$206)=0,R204/SUM(R$203:R$206)=1),"",R204/SUM(R$203:R$206)) ->  | AJ204: 0.392797513 | AK204: 0.3488306534 | AL204: 0.09862214751
P205: ="Inspection delay - "&AA205&" yrs" -> Inspection delay - 7 yrs | Q205: =Q214 -> 0 | R205: 0 | S205: 0 | T205: 0 | U205: 0 | V205: 0 | W205: 0 | X205: 0 | Y205: 81173.2919 | Z205: 75332 | AA205: =AA204+1 -> 7 | AC205: =IF(OR(Q205/SUM(Q$203:Q$206)=0,Q205/SUM(Q$203:Q$206)=1),"",Q205/SUM(Q$203:Q$206)) ->  | AK205: 0.3758792074 | AL205: 0.3343641223
P206: ="Inspection delay - "&AA206&" yrs" -> Inspection delay - 8 yrs | Q206: =Q215 -> 0 | R206: 0 | S206: 0 | T206: 0 | U206: 0 | V206: 0 | W206: 0 | X206: 0 | Y206: 0 | Z206: 81173.2919 | AA206: =AA205+1 -> 8 | AC206: =IF(OR(Q206/SUM(Q$203:Q$206)=0,Q206/SUM(Q$203:Q$206)=1),"",Q206/SUM(Q$203:Q$206)) ->  | AL206: 0.3602909322
P208: ="Inspection delay - "&AA208&" yr" -> Inspection delay - 1 yr | Q208: =SUMPRODUCT(('Input|AER_DD_Vol'!K$137:K$148)*('Input|AER_DD_Vol'!K$165:K$176=$AA208)) -> 36918.33333 | R208: =SUMPRODUCT(('Input|AER_DD_Vol'!L$137:L$148)*('Input|AER_DD_Vol'!L$165:L$176=$AA208)) -> 56660.5 | S208: =SUMPRODUCT(('Input|AER_DD_Vol'!M$137:M$148)*('Input|AER_DD_Vol'!M$165:M$176=$AA208)) -> 89616.5 | T208: =SUMPRODUCT(('Input|AER_DD_Vol'!N$137:N$148)*('Input|AER_DD_Vol'!N$165:N$176=$AA208)) -> 75332 | U208: =SUMPRODUCT(('Input|AER_DD_Vol'!O$137:O$148)*('Input|AER_DD_Vol'!O$165:O$176=$AA208)) -> 22219.5 | V208: =SUMPRODUCT(('Input|AER_DD_Vol'!P$137:P$148)*('Input|AER_DD_Vol'!P$165:P$176=$AA208)) -> 9423.5 | W208: =SUMPRODUCT(('Input|AER_DD_Vol'!Q$137:Q$148)*('Input|AER_DD_Vol'!Q$165:Q$176=$AA208)) -> 9257 | X208: =SUMPRODUCT(('Input|AER_DD_Vol'!R$137:R$148)*('Input|AER_DD_Vol'!R$165:R$176=$AA208)) -> 9249 | Y208: =SUMPRODUCT(('Input|AER_DD_Vol'!S$137:S$148)*('Input|AER_DD_Vol'!S$165:S$176=$AA208)) -> 9301.5 | Z208: =SUMPRODUCT(('Input|AER_DD_Vol'!T$137:T$148)*('Input|AER_DD_Vol'!T$165:T$176=$AA208)) -> 9343.5 | AA208: 1
P209: ="Inspection delay - "&AA209&" yrs" -> Inspection delay - 2 yrs | Q209: =SUMPRODUCT(('Input|AER_DD_Vol'!K$137:K$148)*('Input|AER_DD_Vol'!K$165:K$176=$AA209)) -> 25351.95252 | R209: =SUMPRODUCT(('Input|AER_DD_Vol'!L$137:L$148)*('Input|AER_DD_Vol'!L$165:L$176=$AA209)) -> 36918.33333 | S209: =SUMPRODUCT(('Input|AER_DD_Vol'!M$137:M$148)*('Input|AER_DD_Vol'!M$165:M$176=$AA209)) -> 56660.5 | T209: =SUMPRODUCT(('Input|AER_DD_Vol'!N$137:N$148)*('Input|AER_DD_Vol'!N$165:N$176=$AA209)) -> 89616.5 | U209: =SUMPRODUCT(('Input|AER_DD_Vol'!O$137:O$148)*('Input|AER_DD_Vol'!O$165:O$176=$AA209)) -> 75332 | V209: =SUMPRODUCT(('Input|AER_DD_Vol'!P$137:P$148)*('Input|AER_DD_Vol'!P$165:P$176=$AA209)) -> 22219.5 | W209: =SUMPRODUCT(('Input|AER_DD_Vol'!Q$137:Q$148)*('Input|AER_DD_Vol'!Q$165:Q$176=$AA209)) -> 9423.5 | X209: =SUMPRODUCT(('Input|AER_DD_Vol'!R$137:R$148)*('Input|AER_DD_Vol'!R$165:R$176=$AA209)) -> 9257 | Y209: =SUMPRODUCT(('Input|AER_DD_Vol'!S$137:S$148)*('Input|AER_DD_Vol'!S$165:S$176=$AA209)) -> 9249 | Z209: =SUMPRODUCT(('Input|AER_DD_Vol'!T$137:T$148)*('Input|AER_DD_Vol'!T$165:T$176=$AA209)) -> 9301.5 | AA209: =AA208+1 -> 2
P210: Inspection delay - 3 yrs | Q210: =SUMPRODUCT(('Input|AER_DD_Vol'!K$137:K$148)*('Input|AER_DD_Vol'!K$165:K$176=$AA210)) -> 0 | R210: =SUMPRODUCT(('Input|AER_DD_Vol'!L$137:L$148)*('Input|AER_DD_Vol'!L$165:L$176=$AA210)) -> 7155.667673 | S210: =SUMPRODUCT(('Input|AER_DD_Vol'!M$137:M$148)*('Input|AER_DD_Vol'!M$165:M$176=$AA210)) -> 13746.85959 | T210: =SUMPRODUCT(('Input|AER_DD_Vol'!N$137:N$148)*('Input|AER_DD_Vol'!N$165:N$176=$AA210)) -> 34014.78989 | U210: =SUMPRODUCT(('Input|AER_DD_Vol'!O$137:O$148)*('Input|AER_DD_Vol'!O$165:O$176=$AA210)) -> 81173.2919 | V210: =SUMPRODUCT(('Input|AER_DD_Vol'!P$137:P$148)*('Input|AER_DD_Vol'!P$165:P$176=$AA210)) -> 75332 | W210: =SUMPRODUCT(('Input|AER_DD_Vol'!Q$137:Q$148)*('Input|AER_DD_Vol'!Q$165:Q$176=$AA210)) -> 22219.5 | X210: =SUMPRODUCT(('Input|AER_DD_Vol'!R$137:R$148)*('Input|AER_DD_Vol'!R$165:R$176=$AA210)) -> 9423.5 | Y210: =SUMPRODUCT(('Input|AER_DD_Vol'!S$137:S$148)*('Input|AER_DD_Vol'!S$165:S$176=$AA210)) -> 9257 | Z210: =SUMPRODUCT(('Input|AER_DD_Vol'!T$137:T$148)*('Input|AER_DD_Vol'!T$165:T$176=$AA210)) -> 9249 | AA210: 3
P211: Inspection delay - 4 yrs | Q211: =SUMPRODUCT(('Input|AER_DD_Vol'!K$137:K$148)*('Input|AER_DD_Vol'!K$165:K$176=$AA211)) -> 0 | R211: =SUMPRODUCT(('Input|AER_DD_Vol'!L$137:L$148)*('Input|AER_DD_Vol'!L$165:L$176=$AA211)) -> 0 | S211: =SUMPRODUCT(('Input|AER_DD_Vol'!M$137:M$148)*('Input|AER_DD_Vol'!M$165:M$176=$AA211)) -> 0 | T211: =SUMPRODUCT(('Input|AER_DD_Vol'!N$137:N$148)*('Input|AER_DD_Vol'!N$165:N$176=$AA211)) -> 0 | U211: =SUMPRODUCT(('Input|AER_DD_Vol'!O$137:O$148)*('Input|AER_DD_Vol'!O$165:O$176=$AA211)) -> 0 | V211: =SUMPRODUCT(('Input|AER_DD_Vol'!P$137:P$148)*('Input|AER_DD_Vol'!P$165:P$176=$AA211)) -> 81173.2919 | W211: =SUMPRODUCT(('Input|AER_DD_Vol'!Q$137:Q$148)*('Input|AER_DD_Vol'!Q$165:Q$176=$AA211)) -> 75332 | X211: =SUMPRODUCT(('Input|AER_DD_Vol'!R$137:R$148)*('Input|AER_DD_Vol'!R$165:R$176=$AA211)) -> 22219.5 | Y211: =SUMPRODUCT(('Input|AER_DD_Vol'!S$137:S$148)*('Input|AER_DD_Vol'!S$165:S$176=$AA211)) -> 9423.5 | Z211: =SUMPRODUCT(('Input|AER_DD_Vol'!T$137:T$148)*('Input|AER_DD_Vol'!T$165:T$176=$AA211)) -> 9257 | AA211: 4
P212: Inspection delay - 5 yrs | Q212: =SUMPRODUCT(('Input|AER_DD_Vol'!K$137:K$148)*('Input|AER_DD_Vol'!K$165:K$176=$AA212)) -> 0 | R212: =SUMPRODUCT(('Input|AER_DD_Vol'!L$137:L$148)*('Input|AER_DD_Vol'!L$165:L$176=$AA212)) -> 0 | S212: =SUMPRODUCT(('Input|AER_DD_Vol'!M$137:M$148)*('Input|AER_DD_Vol'!M$165:M$176=$AA212)) -> 0 | T212: =SUMPRODUCT(('Input|AER_DD_Vol'!N$137:N$148)*('Input|AER_DD_Vol'!N$165:N$176=$AA212)) -> 0 | U212: =SUMPRODUCT(('Input|AER_DD_Vol'!O$137:O$148)*('Input|AER_DD_Vol'!O$165:O$176=$AA212)) -> 0 | V212: =SUMPRODUCT(('Input|AER_DD_Vol'!P$137:P$148)*('Input|AER_DD_Vol'!P$165:P$176=$AA212)) -> 0 | W212: =SUMPRODUCT(('Input|AER_DD_Vol'!Q$137:Q$148)*('Input|AER_DD_Vol'!Q$165:Q$176=$AA212)) -> 81173.2919 | X212: =SUMPRODUCT(('Input|AER_DD_Vol'!R$137:R$148)*('Input|AER_DD_Vol'!R$165:R$176=$AA212)) -> 75332 | Y212: =SUMPRODUCT(('Input|AER_DD_Vol'!S$137:S$148)*('Input|AER_DD_Vol'!S$165:S$176=$AA212)) -> 22219.5 | Z212: =SUMPRODUCT(('Input|AER_DD_Vol'!T$137:T$148)*('Input|AER_DD_Vol'!T$165:T$176=$AA212)) -> 9423.5 | AA212: 5
P213: Inspection delay - 6 yrs | Q213: =SUMPRODUCT(('Input|AER_DD_Vol'!K$137:K$148)*('Input|AER_DD_Vol'!K$165:K$176=$AA213)) -> 0 | R213: =SUMPRODUCT(('Input|AER_DD_Vol'!L$137:L$148)*('Input|AER_DD_Vol'!L$165:L$176=$AA213)) -> 0 | S213: =SUMPRODUCT(('Input|AER_DD_Vol'!M$137:M$148)*('Input|AER_DD_Vol'!M$165:M$176=$AA213)) -> 0 | T213: =SUMPRODUCT(('Input|AER_DD_Vol'!N$137:N$148)*('Input|AER_DD_Vol'!N$165:N$176=$AA213)) -> 0 | U213: =SUMPRODUCT(('Input|AER_DD_Vol'!O$137:O$148)*('Input|AER_DD_Vol'!O$165:O$176=$AA213)) -> 0 | V213: =SUMPRODUCT(('Input|AER_DD_Vol'!P$137:P$148)*('Input|AER_DD_Vol'!P$165:P$176=$AA213)) -> 0 | W213: =SUMPRODUCT(('Input|AER_DD_Vol'!Q$137:Q$148)*('Input|AER_DD_Vol'!Q$165:Q$176=$AA213)) -> 0 | X213: =SUMPRODUCT(('Input|AER_DD_Vol'!R$137:R$148)*('Input|AER_DD_Vol'!R$165:R$176=$AA213)) -> 81173.2919 | Y213: =SUMPRODUCT(('Input|AER_DD_Vol'!S$137:S$148)*('Input|AER_DD_Vol'!S$165:S$176=$AA213)) -> 75332 | Z213: =SUMPRODUCT(('Input|AER_DD_Vol'!T$137:T$148)*('Input|AER_DD_Vol'!T$165:T$176=$AA213)) -> 22219.5 | AA213: 6
P214: Inspection delay - 7 yrs | Q214: =SUMPRODUCT(('Input|AER_DD_Vol'!K$137:K$148)*('Input|AER_DD_Vol'!K$165:K$176=$AA214)) -> 0 | R214: =SUMPRODUCT(('Input|AER_DD_Vol'!L$137:L$148)*('Input|AER_DD_Vol'!L$165:L$176=$AA214)) -> 0 | S214: =SUMPRODUCT(('Input|AER_DD_Vol'!M$137:M$148)*('Input|AER_DD_Vol'!M$165:M$176=$AA214)) -> 0 | T214: =SUMPRODUCT(('Input|AER_DD_Vol'!N$137:N$148)*('Input|AER_DD_Vol'!N$165:N$176=$AA214)) -> 0 | U214: =SUMPRODUCT(('Input|AER_DD_Vol'!O$137:O$148)*('Input|AER_DD_Vol'!O$165:O$176=$AA214)) -> 0 | V214: =SUMPRODUCT(('Input|AER_DD_Vol'!P$137:P$148)*('Input|AER_DD_Vol'!P$165:P$176=$AA214)) -> 0 | W214: =SUMPRODUCT(('Input|AER_DD_Vol'!Q$137:Q$148)*('Input|AER_DD_Vol'!Q$165:Q$176=$AA214)) -> 0 | X214: =SUMPRODUCT(('Input|AER_DD_Vol'!R$137:R$148)*('Input|AER_DD_Vol'!R$165:R$176=$AA214)) -> 0 | Y214: =SUMPRODUCT(('Input|AER_DD_Vol'!S$137:S$148)*('Input|AER_DD_Vol'!S$165:S$176=$AA214)) -> 81173.2919 | Z214: =SUMPRODUCT(('Input|AER_DD_Vol'!T$137:T$148)*('Input|AER_DD_Vol'!T$165:T$176=$AA214)) -> 75332 | AA214: 7
P215: Inspection delay - 8 yrs | Q215: =SUMPRODUCT(('Input|AER_DD_Vol'!K$137:K$148)*('Input|AER_DD_Vol'!K$165:K$176=$AA215)) -> 0 | R215: =SUMPRODUCT(('Input|AER_DD_Vol'!L$137:L$148)*('Input|AER_DD_Vol'!L$165:L$176=$AA215)) -> 0 | S215: =SUMPRODUCT(('Input|AER_DD_Vol'!M$137:M$148)*('Input|AER_DD_Vol'!M$165:M$176=$AA215)) -> 0 | T215: =SUMPRODUCT(('Input|AER_DD_Vol'!N$137:N$148)*('Input|AER_DD_Vol'!N$165:N$176=$AA215)) -> 0 | U215: =SUMPRODUCT(('Input|AER_DD_Vol'!O$137:O$148)*('Input|AER_DD_Vol'!O$165:O$176=$AA215)) -> 0 | V215: =SUMPRODUCT(('Input|AER_DD_Vol'!P$137:P$148)*('Input|AER_DD_Vol'!P$165:P$176=$AA215)) -> 0 | W215: =SUMPRODUCT(('Input|AER_DD_Vol'!Q$137:Q$148)*('Input|AER_DD_Vol'!Q$165:Q$176=$AA215)) -> 0 | X215: =SUMPRODUCT(('Input|AER_DD_Vol'!R$137:R$148)*('Input|AER_DD_Vol'!R$165:R$176=$AA215)) -> 0 | Y215: =SUMPRODUCT(('Input|AER_DD_Vol'!S$137:S$148)*('Input|AER_DD_Vol'!S$165:S$176=$AA215)) -> 0 | Z215: =SUMPRODUCT(('Input|AER_DD_Vol'!T$137:T$148)*('Input|AER_DD_Vol'!T$165:T$176=$AA215)) -> 81173.2919 | AA215: 8
P216: Inspection delay - 9 yrs | Q216: =SUMPRODUCT(('Input|AER_DD_Vol'!K$137:K$148)*('Input|AER_DD_Vol'!K$165:K$176=$AA216)) -> 0 | R216: =SUMPRODUCT(('Input|AER_DD_Vol'!L$137:L$148)*('Input|AER_DD_Vol'!L$165:L$176=$AA216)) -> 0 | S216: =SUMPRODUCT(('Input|AER_DD_Vol'!M$137:M$148)*('Input|AER_DD_Vol'!M$165:M$176=$AA216)) -> 0 | T216: =SUMPRODUCT(('Input|AER_DD_Vol'!N$137:N$148)*('Input|AER_DD_Vol'!N$165:N$176=$AA216)) -> 0 | U216: =SUMPRODUCT(('Input|AER_DD_Vol'!O$137:O$148)*('Input|AER_DD_Vol'!O$165:O$176=$AA216)) -> 0 | V216: =SUMPRODUCT(('Input|AER_DD_Vol'!P$137:P$148)*('Input|AER_DD_Vol'!P$165:P$176=$AA216)) -> 0 | W216: =SUMPRODUCT(('Input|AER_DD_Vol'!Q$137:Q$148)*('Input|AER_DD_Vol'!Q$165:Q$176=$AA216)) -> 0 | X216: =SUMPRODUCT(('Input|AER_DD_Vol'!R$137:R$148)*('Input|AER_DD_Vol'!R$165:R$176=$AA216)) -> 0 | Y216: =SUMPRODUCT(('Input|AER_DD_Vol'!S$137:S$148)*('Input|AER_DD_Vol'!S$165:S$176=$AA216)) -> 0 | Z216: =SUMPRODUCT(('Input|AER_DD_Vol'!T$137:T$148)*('Input|AER_DD_Vol'!T$165:T$176=$AA216)) -> 0 | AA216: 9
P217: Inspection delay - 10 yrs | Q217: =SUMPRODUCT(('Input|AER_DD_Vol'!K$137:K$148)*('Input|AER_DD_Vol'!K$165:K$176=$AA217)) -> 0 | R217: =SUMPRODUCT(('Input|AER_DD_Vol'!L$137:L$148)*('Input|AER_DD_Vol'!L$165:L$176=$AA217)) -> 0 | S217: =SUMPRODUCT(('Input|AER_DD_Vol'!M$137:M$148)*('Input|AER_DD_Vol'!M$165:M$176=$AA217)) -> 0 | T217: =SUMPRODUCT(('Input|AER_DD_Vol'!N$137:N$148)*('Input|AER_DD_Vol'!N$165:N$176=$AA217)) -> 0 | U217: =SUMPRODUCT(('Input|AER_DD_Vol'!O$137:O$148)*('Input|AER_DD_Vol'!O$165:O$176=$AA217)) -> 0 | V217: =SUMPRODUCT(('Input|AER_DD_Vol'!P$137:P$148)*('Input|AER_DD_Vol'!P$165:P$176=$AA217)) -> 0 | W217: =SUMPRODUCT(('Input|AER_DD_Vol'!Q$137:Q$148)*('Input|AER_DD_Vol'!Q$165:Q$176=$AA217)) -> 0 | X217: =SUMPRODUCT(('Input|AER_DD_Vol'!R$137:R$148)*('Input|AER_DD_Vol'!R$165:R$176=$AA217)) -> 0 | Y217: =SUMPRODUCT(('Input|AER_DD_Vol'!S$137:S$148)*('Input|AER_DD_Vol'!S$165:S$176=$AA217)) -> 0 | Z217: =SUMPRODUCT(('Input|AER_DD_Vol'!T$137:T$148)*('Input|AER_DD_Vol'!T$165:T$176=$AA217)) -> 0 | AA217: 10
P219: Title: | Q219: Annual balance of aged AMI meter inspection obligations volumes - impact of AER Draft Decision on JEN's 2031-36 inspection obligations
P220: Y-axis: | Q220: # of remaining inspections / replacements
P222: Min replacements required to meet obligations: | Q222: =SUM(Z213:Z217) -> 178724.7919 | S222: =$S$195 -> Age profile of inspections due when planning 2031-36 inspections or replacements
P223: Prudent replacements (Min + 50% of 0-5 years): | Q223: =Q222+50%*SUM(Z208:Z212) -> 202012.0419
C226: ="Output | "&Q246 -> Output | Annual balance of aged AMI meter inspection obligations volumes - impact of Initial Proposal on JEN's 2031-36 inspection obligations
Q228: =Q$2 -> Next Period | V228: =V$2 -> Future Period
Q229: ='Input|AER_DD_Vol'!K$59 -> FY27 | R229: ='Input|AER_DD_Vol'!L$59 -> FY28 | S229: ='Input|AER_DD_Vol'!M$59 -> FY29 | T229: ='Input|AER_DD_Vol'!N$59 -> FY30 | U229: ='Input|AER_DD_Vol'!O$59 -> FY31 | V229: ='Input|AER_DD_Vol'!P$59 -> FY32 | W229: ='Input|AER_DD_Vol'!Q$59 -> FY33 | X229: ='Input|AER_DD_Vol'!R$59 -> FY34 | Y229: ='Input|AER_DD_Vol'!S$59 -> FY35 | Z229: ='Input|AER_DD_Vol'!T$59 -> FY36 | AA229: Criteria | AC229: =Q229 -> FY27 | AD229: FY28 | AE229: FY29 | AF229: FY30 | AG229: FY31 | AH229: FY32 | AI229: FY33 | AJ229: FY34 | AK229: FY35 | AL229: FY36
P230: Inspection delay - 0-5 yrs | Q230: =SUM(Q235:Q239) -> 42312.96668 | R230: 66253.0748 | S230: 106094.2116 | T230: 127847.7808 | U230: 99873.33783 | V230: 109296.8378 | W230: 118553.8378 | X230: 125481 | Y230: 59450.5 | Z230: 46574.5 | AC230: =IF(OR(Q230/SUM(Q$230:Q$233)=0,Q230/SUM(Q$230:Q$233)=1),"",Q230/SUM(Q$230:Q$233)) ->  | AJ230: 0.9818326582 | AK230: 0.4336150186 | AL230: 0.3180279114
P231: ="Inspection delay - "&AA231&" yrs" -> Inspection delay - 6 yrs | Q231: =Q240 -> 0 | R231: 0 | S231: 0 | T231: 0 | U231: 0 | V231: 0 | W231: 0 | X231: 2321.837834 | Y231: 75332 | Z231: 22219.5 | AA231: 6 | AJ231: 0.01816734177 | AK231: 0.5494501574 | AL231: 0.1517229638
P232: ="Inspection delay - "&AA232&" yrs" -> Inspection delay - 7 yrs | Q232: =Q241 -> 0 | R232: 0 | S232: 0 | T232: 0 | U232: 0 | V232: 0 | W232: 0 | X232: 0 | Y232: 2321.837834 | Z232: 75332 | AA232: =AA231+1 -> 7 | AK232: 0.01693482402 | AL232: 0.5143947573
P233: ="Inspection delay - "&AA233&" yrs" -> Inspection delay - 8 yrs | Q233: =Q242 -> 0 | R233: 0 | S233: 0 | T233: 0 | U233: 0 | V233: 0 | W233: 0 | X233: 0 | Y233: 0 | Z233: 2321.837834 | AA233: =AA232+1 -> 8 | AL233: 0.01585436745
P235: ="Inspection delay - "&AA235&" yr" -> Inspection delay - 1 yr | Q235: =SUMPRODUCT(('Input|IP_Vol'!K$137:K$148)*('Input|IP_Vol'!K$165:K$176=$AA235)) -> 36918.33333 | R235: =SUMPRODUCT(('Input|IP_Vol'!L$137:L$148)*('Input|IP_Vol'!L$165:L$176=$AA235)) -> 56660.5 | S235: =SUMPRODUCT(('Input|IP_Vol'!M$137:M$148)*('Input|IP_Vol'!M$165:M$176=$AA235)) -> 89616.5 | T235: =SUMPRODUCT(('Input|IP_Vol'!N$137:N$148)*('Input|IP_Vol'!N$165:N$176=$AA235)) -> 75332 | U235: =SUMPRODUCT(('Input|IP_Vol'!O$137:O$148)*('Input|IP_Vol'!O$165:O$176=$AA235)) -> 22219.5 | V235: =SUMPRODUCT(('Input|IP_Vol'!P$137:P$148)*('Input|IP_Vol'!P$165:P$176=$AA235)) -> 9423.5 | W235: =SUMPRODUCT(('Input|IP_Vol'!Q$137:Q$148)*('Input|IP_Vol'!Q$165:Q$176=$AA235)) -> 9257 | X235: =SUMPRODUCT(('Input|IP_Vol'!R$137:R$148)*('Input|IP_Vol'!R$165:R$176=$AA235)) -> 9249 | Y235: =SUMPRODUCT(('Input|IP_Vol'!S$137:S$148)*('Input|IP_Vol'!S$165:S$176=$AA235)) -> 9301.5 | Z235: =SUMPRODUCT(('Input|IP_Vol'!T$137:T$148)*('Input|IP_Vol'!T$165:T$176=$AA235)) -> 9343.5 | AA235: 1
P236: ="Inspection delay - "&AA236&" yrs" -> Inspection delay - 2 yrs | Q236: =SUMPRODUCT(('Input|IP_Vol'!K$137:K$148)*('Input|IP_Vol'!K$165:K$176=$AA236)) -> 5394.633348 | R236: =SUMPRODUCT(('Input|IP_Vol'!L$137:L$148)*('Input|IP_Vol'!L$165:L$176=$AA236)) -> 9592.574803 | S236: =SUMPRODUCT(('Input|IP_Vol'!M$137:M$148)*('Input|IP_Vol'!M$165:M$176=$AA236)) -> 16477.71162 | T236: =SUMPRODUCT(('Input|IP_Vol'!N$137:N$148)*('Input|IP_Vol'!N$165:N$176=$AA236)) -> 52515.78085 | U236: =SUMPRODUCT(('Input|IP_Vol'!O$137:O$148)*('Input|IP_Vol'!O$165:O$176=$AA236)) -> 75332 | V236: =SUMPRODUCT(('Input|IP_Vol'!P$137:P$148)*('Input|IP_Vol'!P$165:P$176=$AA236)) -> 22219.5 | W236: =SUMPRODUCT(('Input|IP_Vol'!Q$137:Q$148)*('Input|IP_Vol'!Q$165:Q$176=$AA236)) -> 9423.5 | X236: =SUMPRODUCT(('Input|IP_Vol'!R$137:R$148)*('Input|IP_Vol'!R$165:R$176=$AA236)) -> 9257 | Y236: =SUMPRODUCT(('Input|IP_Vol'!S$137:S$148)*('Input|IP_Vol'!S$165:S$176=$AA236)) -> 9249 | Z236: =SUMPRODUCT(('Input|IP_Vol'!T$137:T$148)*('Input|IP_Vol'!T$165:T$176=$AA236)) -> 9301.5 | AA236: =AA235+1 -> 2
P237: ="Inspection delay - "&AA237&" yrs" -> Inspection delay - 3 yrs | Q237: =SUMPRODUCT(('Input|IP_Vol'!K$137:K$148)*('Input|IP_Vol'!K$165:K$176=$AA237)) -> 0 | R237: =SUMPRODUCT(('Input|IP_Vol'!L$137:L$148)*('Input|IP_Vol'!L$165:L$176=$AA237)) -> 0 | S237: =SUMPRODUCT(('Input|IP_Vol'!M$137:M$148)*('Input|IP_Vol'!M$165:M$176=$AA237)) -> 0 | T237: =SUMPRODUCT(('Input|IP_Vol'!N$137:N$148)*('Input|IP_Vol'!N$165:N$176=$AA237)) -> 0 | U237: =SUMPRODUCT(('Input|IP_Vol'!O$137:O$148)*('Input|IP_Vol'!O$165:O$176=$AA237)) -> 2321.837834 | V237: =SUMPRODUCT(('Input|IP_Vol'!P$137:P$148)*('Input|IP_Vol'!P$165:P$176=$AA237)) -> 75332 | W237: =SUMPRODUCT(('Input|IP_Vol'!Q$137:Q$148)*('Input|IP_Vol'!Q$165:Q$176=$AA237)) -> 22219.5 | X237: =SUMPRODUCT(('Input|IP_Vol'!R$137:R$148)*('Input|IP_Vol'!R$165:R$176=$AA237)) -> 9423.5 | Y237: =SUMPRODUCT(('Input|IP_Vol'!S$137:S$148)*('Input|IP_Vol'!S$165:S$176=$AA237)) -> 9257 | Z237: =SUMPRODUCT(('Input|IP_Vol'!T$137:T$148)*('Input|IP_Vol'!T$165:T$176=$AA237)) -> 9249 | AA237: 3
P238: Inspection delay - 4 yrs | Q238: =SUMPRODUCT(('Input|IP_Vol'!K$137:K$148)*('Input|IP_Vol'!K$165:K$176=$AA238)) -> 0 | R238: =SUMPRODUCT(('Input|IP_Vol'!L$137:L$148)*('Input|IP_Vol'!L$165:L$176=$AA238)) -> 0 | S238: =SUMPRODUCT(('Input|IP_Vol'!M$137:M$148)*('Input|IP_Vol'!M$165:M$176=$AA238)) -> 0 | T238: =SUMPRODUCT(('Input|IP_Vol'!N$137:N$148)*('Input|IP_Vol'!N$165:N$176=$AA238)) -> 0 | U238: =SUMPRODUCT(('Input|IP_Vol'!O$137:O$148)*('Input|IP_Vol'!O$165:O$176=$AA238)) -> 0 | V238: =SUMPRODUCT(('Input|IP_Vol'!P$137:P$148)*('Input|IP_Vol'!P$165:P$176=$AA238)) -> 2321.837834 | W238: =SUMPRODUCT(('Input|IP_Vol'!Q$137:Q$148)*('Input|IP_Vol'!Q$165:Q$176=$AA238)) -> 75332 | X238: =SUMPRODUCT(('Input|IP_Vol'!R$137:R$148)*('Input|IP_Vol'!R$165:R$176=$AA238)) -> 22219.5 | Y238: =SUMPRODUCT(('Input|IP_Vol'!S$137:S$148)*('Input|IP_Vol'!S$165:S$176=$AA238)) -> 9423.5 | Z238: =SUMPRODUCT(('Input|IP_Vol'!T$137:T$148)*('Input|IP_Vol'!T$165:T$176=$AA238)) -> 9257 | AA238: 4
P239: Inspection delay - 5 yrs | Q239: =SUMPRODUCT(('Input|IP_Vol'!K$137:K$148)*('Input|IP_Vol'!K$165:K$176=$AA239)) -> 0 | R239: =SUMPRODUCT(('Input|IP_Vol'!L$137:L$148)*('Input|IP_Vol'!L$165:L$176=$AA239)) -> 0 | S239: =SUMPRODUCT(('Input|IP_Vol'!M$137:M$148)*('Input|IP_Vol'!M$165:M$176=$AA239)) -> 0 | T239: =SUMPRODUCT(('Input|IP_Vol'!N$137:N$148)*('Input|IP_Vol'!N$165:N$176=$AA239)) -> 0 | U239: =SUMPRODUCT(('Input|IP_Vol'!O$137:O$148)*('Input|IP_Vol'!O$165:O$176=$AA239)) -> 0 | V239: =SUMPRODUCT(('Input|IP_Vol'!P$137:P$148)*('Input|IP_Vol'!P$165:P$176=$AA239)) -> 0 | W239: =SUMPRODUCT(('Input|IP_Vol'!Q$137:Q$148)*('Input|IP_Vol'!Q$165:Q$176=$AA239)) -> 2321.837834 | X239: =SUMPRODUCT(('Input|IP_Vol'!R$137:R$148)*('Input|IP_Vol'!R$165:R$176=$AA239)) -> 75332 | Y239: =SUMPRODUCT(('Input|IP_Vol'!S$137:S$148)*('Input|IP_Vol'!S$165:S$176=$AA239)) -> 22219.5 | Z239: =SUMPRODUCT(('Input|IP_Vol'!T$137:T$148)*('Input|IP_Vol'!T$165:T$176=$AA239)) -> 9423.5 | AA239: 5
P240: Inspection delay - 6 yrs | Q240: =SUMPRODUCT(('Input|IP_Vol'!K$137:K$148)*('Input|IP_Vol'!K$165:K$176=$AA240)) -> 0 | R240: =SUMPRODUCT(('Input|IP_Vol'!L$137:L$148)*('Input|IP_Vol'!L$165:L$176=$AA240)) -> 0 | S240: =SUMPRODUCT(('Input|IP_Vol'!M$137:M$148)*('Input|IP_Vol'!M$165:M$176=$AA240)) -> 0 | T240: =SUMPRODUCT(('Input|IP_Vol'!N$137:N$148)*('Input|IP_Vol'!N$165:N$176=$AA240)) -> 0 | U240: =SUMPRODUCT(('Input|IP_Vol'!O$137:O$148)*('Input|IP_Vol'!O$165:O$176=$AA240)) -> 0 | V240: =SUMPRODUCT(('Input|IP_Vol'!P$137:P$148)*('Input|IP_Vol'!P$165:P$176=$AA240)) -> 0 | W240: =SUMPRODUCT(('Input|IP_Vol'!Q$137:Q$148)*('Input|IP_Vol'!Q$165:Q$176=$AA240)) -> 0 | X240: =SUMPRODUCT(('Input|IP_Vol'!R$137:R$148)*('Input|IP_Vol'!R$165:R$176=$AA240)) -> 2321.837834 | Y240: =SUMPRODUCT(('Input|IP_Vol'!S$137:S$148)*('Input|IP_Vol'!S$165:S$176=$AA240)) -> 75332 | Z240: =SUMPRODUCT(('Input|IP_Vol'!T$137:T$148)*('Input|IP_Vol'!T$165:T$176=$AA240)) -> 22219.5 | AA240: 6
P241: Inspection delay - 7 yrs | Q241: =SUMPRODUCT(('Input|IP_Vol'!K$137:K$148)*('Input|IP_Vol'!K$165:K$176=$AA241)) -> 0 | R241: =SUMPRODUCT(('Input|IP_Vol'!L$137:L$148)*('Input|IP_Vol'!L$165:L$176=$AA241)) -> 0 | S241: =SUMPRODUCT(('Input|IP_Vol'!M$137:M$148)*('Input|IP_Vol'!M$165:M$176=$AA241)) -> 0 | T241: =SUMPRODUCT(('Input|IP_Vol'!N$137:N$148)*('Input|IP_Vol'!N$165:N$176=$AA241)) -> 0 | U241: =SUMPRODUCT(('Input|IP_Vol'!O$137:O$148)*('Input|IP_Vol'!O$165:O$176=$AA241)) -> 0 | V241: =SUMPRODUCT(('Input|IP_Vol'!P$137:P$148)*('Input|IP_Vol'!P$165:P$176=$AA241)) -> 0 | W241: =SUMPRODUCT(('Input|IP_Vol'!Q$137:Q$148)*('Input|IP_Vol'!Q$165:Q$176=$AA241)) -> 0 | X241: =SUMPRODUCT(('Input|IP_Vol'!R$137:R$148)*('Input|IP_Vol'!R$165:R$176=$AA241)) -> 0 | Y241: =SUMPRODUCT(('Input|IP_Vol'!S$137:S$148)*('Input|IP_Vol'!S$165:S$176=$AA241)) -> 2321.837834 | Z241: =SUMPRODUCT(('Input|IP_Vol'!T$137:T$148)*('Input|IP_Vol'!T$165:T$176=$AA241)) -> 75332 | AA241: 7
P242: Inspection delay - 8 yrs | Q242: =SUMPRODUCT(('Input|IP_Vol'!K$137:K$148)*('Input|IP_Vol'!K$165:K$176=$AA242)) -> 0 | R242: =SUMPRODUCT(('Input|IP_Vol'!L$137:L$148)*('Input|IP_Vol'!L$165:L$176=$AA242)) -> 0 | S242: =SUMPRODUCT(('Input|IP_Vol'!M$137:M$148)*('Input|IP_Vol'!M$165:M$176=$AA242)) -> 0 | T242: =SUMPRODUCT(('Input|IP_Vol'!N$137:N$148)*('Input|IP_Vol'!N$165:N$176=$AA242)) -> 0 | U242: =SUMPRODUCT(('Input|IP_Vol'!O$137:O$148)*('Input|IP_Vol'!O$165:O$176=$AA242)) -> 0 | V242: =SUMPRODUCT(('Input|IP_Vol'!P$137:P$148)*('Input|IP_Vol'!P$165:P$176=$AA242)) -> 0 | W242: =SUMPRODUCT(('Input|IP_Vol'!Q$137:Q$148)*('Input|IP_Vol'!Q$165:Q$176=$AA242)) -> 0 | X242: =SUMPRODUCT(('Input|IP_Vol'!R$137:R$148)*('Input|IP_Vol'!R$165:R$176=$AA242)) -> 0 | Y242: =SUMPRODUCT(('Input|IP_Vol'!S$137:S$148)*('Input|IP_Vol'!S$165:S$176=$AA242)) -> 0 | Z242: =SUMPRODUCT(('Input|IP_Vol'!T$137:T$148)*('Input|IP_Vol'!T$165:T$176=$AA242)) -> 2321.837834 | AA242: 8
P243: Inspection delay - 9 yrs | Q243: =SUMPRODUCT(('Input|IP_Vol'!K$137:K$148)*('Input|IP_Vol'!K$165:K$176=$AA243)) -> 0 | R243: =SUMPRODUCT(('Input|IP_Vol'!L$137:L$148)*('Input|IP_Vol'!L$165:L$176=$AA243)) -> 0 | S243: =SUMPRODUCT(('Input|IP_Vol'!M$137:M$148)*('Input|IP_Vol'!M$165:M$176=$AA243)) -> 0 | T243: =SUMPRODUCT(('Input|IP_Vol'!N$137:N$148)*('Input|IP_Vol'!N$165:N$176=$AA243)) -> 0 | U243: =SUMPRODUCT(('Input|IP_Vol'!O$137:O$148)*('Input|IP_Vol'!O$165:O$176=$AA243)) -> 0 | V243: =SUMPRODUCT(('Input|IP_Vol'!P$137:P$148)*('Input|IP_Vol'!P$165:P$176=$AA243)) -> 0 | W243: =SUMPRODUCT(('Input|IP_Vol'!Q$137:Q$148)*('Input|IP_Vol'!Q$165:Q$176=$AA243)) -> 0 | X243: =SUMPRODUCT(('Input|IP_Vol'!R$137:R$148)*('Input|IP_Vol'!R$165:R$176=$AA243)) -> 0 | Y243: =SUMPRODUCT(('Input|IP_Vol'!S$137:S$148)*('Input|IP_Vol'!S$165:S$176=$AA243)) -> 0 | Z243: =SUMPRODUCT(('Input|IP_Vol'!T$137:T$148)*('Input|IP_Vol'!T$165:T$176=$AA243)) -> 0 | AA243: 9
P244: Inspection delay - 10 yrs | Q244: =SUMPRODUCT(('Input|IP_Vol'!K$137:K$148)*('Input|IP_Vol'!K$165:K$176=$AA244)) -> 0 | R244: =SUMPRODUCT(('Input|IP_Vol'!L$137:L$148)*('Input|IP_Vol'!L$165:L$176=$AA244)) -> 0 | S244: =SUMPRODUCT(('Input|IP_Vol'!M$137:M$148)*('Input|IP_Vol'!M$165:M$176=$AA244)) -> 0 | T244: =SUMPRODUCT(('Input|IP_Vol'!N$137:N$148)*('Input|IP_Vol'!N$165:N$176=$AA244)) -> 0 | U244: =SUMPRODUCT(('Input|IP_Vol'!O$137:O$148)*('Input|IP_Vol'!O$165:O$176=$AA244)) -> 0 | V244: =SUMPRODUCT(('Input|IP_Vol'!P$137:P$148)*('Input|IP_Vol'!P$165:P$176=$AA244)) -> 0 | W244: =SUMPRODUCT(('Input|IP_Vol'!Q$137:Q$148)*('Input|IP_Vol'!Q$165:Q$176=$AA244)) -> 0 | X244: =SUMPRODUCT(('Input|IP_Vol'!R$137:R$148)*('Input|IP_Vol'!R$165:R$176=$AA244)) -> 0 | Y244: =SUMPRODUCT(('Input|IP_Vol'!S$137:S$148)*('Input|IP_Vol'!S$165:S$176=$AA244)) -> 0 | Z244: =SUMPRODUCT(('Input|IP_Vol'!T$137:T$148)*('Input|IP_Vol'!T$165:T$176=$AA244)) -> 0 | AA244: 10
P246: Title: | Q246: Annual balance of aged AMI meter inspection obligations volumes - impact of Initial Proposal on JEN's 2031-36 inspection obligations
P247: Y-axis: | Q247: # of remaining inspections / replacements
P249: Min replacements required to meet obligations: | Q249: =SUM(Z240:Z244) -> 99873.33783 | S249: =$S$195 -> Age profile of inspections due when planning 2031-36 inspections or replacements
P250: Prudent replacements (Min + 50% of 0-5 years): | Q250: =Q249+50%*SUM(Z235:Z239) -> 123160.5878
B253: End

Sheet Checklist
D1: =Model_Name -> Inspection and Replacement Obligation Volume Model | H1: Section Check: | I1: =IF(COUNTA($A$7:$A$286)=COUNTIF($A$7:$A$286,0),"Ok","Check") -> Ok | K1: Overall Check: | L1: =Overall_Check -> Ok | N1: Legend: | O1: Input | P1: Internal | Q1: Select | R1: Calculation
D2: =RIGHT(CELL("filename",D1),LEN(CELL("filename",D1))-FIND("]",CELL("filename",D1))) -> Checklist
B5: Copyright Jemena Limited. All rights reserved. Jemena is not liable for any loss caused by reliance on this document.
B7: Instructions
D9: Instructions:
D10: This sheet is intended to help users locate the errors in each worksheet and to navigate to the error cells easily in order to fix the errors.
D11: This sheet links in all checks from all sheets in this model. The sheet name is shown in row 16 below.
D12: The RED dots indicate errors in a specific row of a worksheet. GREEN dots indicate no errors.
D13: Double click on the RED dots will take users to the row containing the error in each corresponding sheet
B15: Check List
D17: Sheet Name | F17: =TRANSPOSE(Home!C33:C37) -> Input|Installations | G17: Input|RP_Vol | H17: Input|AER_DD_Vol | I17: Input|IP_Vol | J17: Output|Charts
A19: =IF(COUNTIF(F19:O19,"ERRORS")>0,1,0) -> 0 | D19: Are there errors in this sheet? | F19: =IF(IFERROR(SUM(F23:F284)<>0,TRUE),"ERRORS","NO ERRORS") -> NO ERRORS | G19: NO ERRORS | H19: NO ERRORS | I19: NO ERRORS | J19: NO ERRORS | K19: NO ERRORS | L19: NO ERRORS | M19: NO ERRORS | N19: NO ERRORS | O19: NO ERRORS
D21: What's the row number of the first error? | F21: =IF(F19="NO ERRORS",NA,MATCH(TRUE,F23:F284>0,0)+ROW(F22)) -> n/a | G21: =IF(G19="NO ERRORS",NA,MATCH(TRUE,G23:G284>0,0)+ROW(G22)) -> n/a | H21: =IF(H19="NO ERRORS",NA,MATCH(TRUE,H23:H284>0,0)+ROW(H22)) -> n/a | I21: =IF(I19="NO ERRORS",NA,MATCH(TRUE,I23:I284>0,0)+ROW(I22)) -> n/a | J21: =IF(J19="NO ERRORS",NA,MATCH(TRUE,J23:J284>0,0)+ROW(J22)) -> n/a | K21: =IF(K19="NO ERRORS",NA,MATCH(TRUE,K23:K284>0,0)+ROW(K22)) -> n/a | L21: =IF(L19="NO ERRORS",NA,MATCH(TRUE,L23:L284>0,0)+ROW(L22)) -> n/a | M21: =IF(M19="NO ERRORS",NA,MATCH(TRUE,M23:M284>0,0)+ROW(M22)) -> n/a | N21: =IF(N19="NO ERRORS",NA,MATCH(TRUE,N23:N284>0,0)+ROW(N22)) -> n/a | O21: =IF(O19="NO ERRORS",NA,MATCH(TRUE,O23:O284>0,0)+ROW(O22)) -> n/a
D23: Summary of checks: | F23: =IF('Input|Installations'!$N$1="Ok",0,1) -> 0 | G23: =IF('Input|RP_Vol'!$J$1="Ok",0,1) -> 0 | H23: =IF('Input|AER_DD_Vol'!$J$1="Ok",0,1) -> 0 | I23: =IF('Input|IP_Vol'!$J$1="Ok",0,1) -> 0 | J23: =IF('Output|Charts'!$N$1="Ok",0,1) -> 0
B286: End

Sheet Lookup
D2: =Model_Name -> Inspection and Replacement Obligation Volume Model | J2: Overall check: | K2: =IF(COUNTA(Check_Status_List)=COUNTIF(Check_Status_List,"Ok"),"Ok","Check") -> Ok
D4: =RIGHT(CELL("filename",D3),LEN(CELL("filename",D3))-FIND("]",CELL("filename",D3))) -> Lookup | E4: =RIGHT(CELL("filename",E3),LEN(CELL("filename",E3))-FIND("]",CELL("filename",E3))) -> Lookup | F4: =RIGHT(CELL("filename",F3),LEN(CELL("filename",F3))-FIND("]",CELL("filename",F3))) -> Lookup | G4: =RIGHT(CELL("filename",G3),LEN(CELL("filename",G3))-FIND("]",CELL("filename",G3))) -> Lookup | H4: =RIGHT(CELL("filename",H3),LEN(CELL("filename",H3))-FIND("]",CELL("filename",H3))) -> Lookup | J4: Section check: | K4: =IF(COUNTA($A$8:$A$151)=COUNTIF($A$8:$A$151,0),"Ok","Check") -> Ok
E6: Copyright Jemena Limited. Jemena is not liable for any loss caused by reliance on this document.
B8: Lookup Table
C10: Lookup List | G10: Ref.
C12: Date Assumptions
C13: Project Start Year | G13: =Start_Date -> 2024
C14: Project Month | G14: 7
C15: Model Start Year | G15: 2024
C16: Assumption Lookup Index | G16: =Start_Year-G15 -> 0
C18: Financial unit denomination
C19: Dollars | G19: $dollars
C20: Thousands | G20: $000
C21: Millions | G21: $millions
C22: Chosen Unit | G22: =INDEX(G20:G21,MATCH(Home!$E$22,C20:C21,0)) -> $millions
C24: Non-financial unit denomination
C25: Percent | G25: Per cent
C26: Unit | G26: unit
C27: Number | G27: Number
C28: Factor | G28: Factor
C29: Index | G29: Index
C30: Elec Energy - Kilowatts/hr | G30: kWh
C31: Elec Energy - Gigawatts/hr | G31: GWh
C32: Elec Energy - Megawatts/hr | G32: MWh
C33: Elec Energy - Megawatts | G33: MW
C34: Elec Energy - Kilowatts | G34: kW
C35: Elec Energy - Kilovolt amps | G35: kVa
C36: Gas Energy - Petajoules | G36: PJ
C37: Gas Energy - Terajoules | G37: TJ
C38: Gas Energy - Gigajoules | G38: GJ
C39: Mains | G39: mains
C40: Kilometres | G40: kms
C41: Metres | G41: metres
C43: Periodicity
C44: Actuals | G44: Actual
C45: Forecast | G45: Fcast
C46: Date | G46: date
C47: Month | G47: month
C48: Quarter | G48: quarter
C49: Year | G49: year
C50: Option | G50: Option
C51: Yes/No | G51: yes/no
C52: Actuals/Forecast | G52: (A)/(F)
C54: Time intervals
C55: Number of months in a year | G55: 12
C56: Number of days in a year | G56: 365
C57: Number of weeks in a year | G57: 52
C59: Cash flow timing
C60: Start-year | G60: -0.5
C61: Mid-year | G61: 0
C62: End-year | G62: 0.5
C63: Start-Month | G63: -0.5
C64: Mid-Month | G64: 0
C65: End-Month | G65: 0.5
C67: Yes/No | G67: [Select]
C68: Yes | G68: Yes
C69: No | G69: No
C71: Assets (short)
C72: [Select Asset] | G72: =C72 -> [Select Asset]
C73: JEN | G73: =C73 -> JEN
C74: JGN | G74: =C74 -> JGN
C75: Shared | G75: =C75 -> Shared
C77: Assets (long)
C78: Jemena Gas Networks | G78: JGN
C79: Jemena Electricity Networks | G79: JEN
C81: Asset classes
C82: [Select appropriate asset class]
C83: [Select JGN Asset Class]
C84: JGN - Trunk & HP Mains
C85: JGN - Meters & Meter Reading Devices
C86: JGN - Fixed Plant (Distribution) & Country POTS
C87: JGN - MP Mains & Services, HP Services
C88: JGN - Computers (IT infrastructure)
C89: JGN - Fixed Plant & Furniture
C90: JGN - Land
C91: JGN - Low value assets & Mobile Plant
C92: JGN - Vehicles
C93: JGN - Leasehold Improvements
C94: JGN - Building
C95: JGN - Inhouse Software
C96: [Select JEN Asset Class]
C97: JEN SCS - Subtransmission
C98: JEN SCS - Distribution system assets
C99: JEN SCS - SCADA/Network control
C100: JEN SCS - Non network - IT (Infrastructure)
C101: JEN SCS - Non network - other
C102: JEN SCS - Land
C103: JEN SCS - Building
C104: JEN SCS - Inhouse Software
C105: JEN AMI - Remotely read interval meters & transformers
C106: JEN AMI - Communications
C107: JEN AMI - IT
C108: JEN AMI - Other
C109: JEN AMI - Inhouse Software
C111: Number of Options | G111: Option no. | I111: Option full name
C112: [select option] | G112: [select] | I112: [select option]
C113: ="Option "&G113 -> Option 1 | G113: 1 | I113: [select option]
C114: =IF(No_of_Options<G114,NA,"Option "&G114) -> Option 2 | G114: =G113+1 -> 2 | I114: [select option]
C115: Option 3 | G115: 3 | I115: [select option]
C116: n/a | G116: 4 | I116: [select option]
C117: n/a | G117: 5 | I117: [select option]
C118: n/a | G118: 6 | I118: [select option]
C119: n/a | G119: 7 | I119: [select option]
C121: Cashflow Type
C122: Annual | G122: =C122 -> Annual
C123: Monthly | G123: =C123 -> Monthly
C125: Tax Depreciation Method
C126: Straight-line depreciation | G126: SL
C127: Diminishing value depreciation | G127: DV
C128: Not applicable | G128: =NA -> n/a
C130: Nature of costs (Opex)
C131: [Select from list] | G131: =C131 -> [Select from list]
C132: Ongoing | G132: =C132 -> Ongoing
C133: Project cost (one-off) | G133: =C133 -> Project cost (one-off)
C135: Type of Economic Benefit
C136: [Select from list] | G136: =C136 -> [Select from list]
C137: Avoided cost at asset failure | G137: Avoided cost at asset failure
C138: Improved energy reliability | G138: Improved energy reliability
C139: Reduced energy losses | G139: Reduced energy losses
C140: Increase in DER exports | G140: Increase in DER exports
C141: Other Economic Benefits | G141: Other Economic Benefits
C143: Dollar base
C144: Nominal | G144: Nominal
C145: Real | G145: Real
C147: Nominal | G147: =Nominal -> Nominal
C148: Real | G148: =Real&" "&Start_Year -> Real 2024
C149: Not applicable | G149: n/a
B151: End
